Invoice Date,Transaction Number,Invoice Number,Amount,Supplier Name(T),Supplier Name,VAT Registration Number,Expense Area(T),Expense Code,Expense Code(T),
01/04/2021,60052862,OAKHAM HOPPER MAR 2021,1080,1st Call County Taxis,RC509302,,Public Transport,R5017,TPP - Other,
04/04/2021,60052869,RCC0258,10183.65,A & R Guardian Services Ltd,RC509277,,ASC S&R Homecare OP,R5029,TPP - Home Care,
12/04/2021,60052870,RCC0259,10176.98,A & R Guardian Services Ltd,RC509277,,ASC S&R Homecare OP,R5029,TPP - Home Care,
19/04/2021,60053027,RCC0260,9161.58,A & R Guardian Services Ltd,RC509277,,ASC S&R Homecare OP,R5029,TPP - Home Care,
16/04/2021,60053109,RCC000 - MG,-120.4,A & R Guardian Services Ltd,RC509277,,Interim Beds (CCG),R5028,TPP - Residental Care,
26/04/2021,60053220,RCC 0261,9149.02,A & R Guardian Services Ltd,RC509277,,ASC S&R Homecare OP,R5029,TPP - Home Care,
01/04/2021,60052535,AS 3936,5750,A & S Coaches,RC300684,121 4487 37,Home to School Transport,R3200,Hire of Vehicles & Plant,
09/04/2021,3747584,Redacted Personal Data,139.85,Redacted Personal Data,RC503878,,Placements,R5017,TPP - Other,
16/04/2021,3747808,Redacted Personal Data,139.85,Redacted Personal Data,RC503878,,Placements,R5017,TPP - Other,
22/04/2021,3748050,Redacted Personal Data,139.85,Redacted Personal Data,RC503878,,Placements,R5017,TPP - Other,
29/04/2021,3748262,Redacted Personal Data,139.85,Redacted Personal Data,RC503878,,Placements,R5017,TPP - Other,
01/04/2021,60052424,3857528,94,AAT,RC500114,524 8751 31,Rutland Adult Skill Budget Post July 2014,R4401,Fees and Charges,
01/04/2021,60052479,3857373,578,AAT,RC500114,524 8751 31,Rutland Adult Skill Budget Post July 2014,R4401,Fees and Charges,
23/04/2021,60053163,3891558,249,AAT,RC500114,524 8751 31,Rutland Adult Skill Budget Post July 2014,R4401,Fees and Charges,
06/04/2021,3747619,36575/1,1020,Aberdeen House Care Limited,RC506722,,Older People,R5028,TPP - Residental Care,
06/04/2021,3747620,36575/2,1022,Aberdeen House Care Limited,RC506722,,Older People,R5028,TPP - Residental Care,
06/04/2021,3747621,36575/3,956,Aberdeen House Care Limited,RC506722,,Older People,R5028,TPP - Residental Care,
06/04/2021,3747623,36575/5,956,Aberdeen House Care Limited,RC506722,,Older People,R5028,TPP - Residental Care,
06/04/2021,3747624,36575/6,1720,Aberdeen House Care Limited,RC506722,,Older People,R5028,TPP - Residental Care,
19/04/2021,3748085,36805/1,1020,Aberdeen House Care Limited,RC506722,,Older People,R5028,TPP - Residental Care,
19/04/2021,3748086,36805/2,1022,Aberdeen House Care Limited,RC506722,,Older People,R5028,TPP - Residental Care,
19/04/2021,3748087,36805/3,956,Aberdeen House Care Limited,RC506722,,Older People,R5028,TPP - Residental Care,
19/04/2021,3748089,36805/5,956,Aberdeen House Care Limited,RC506722,,Older People,R5028,TPP - Residental Care,
19/04/2021,3748090,36805/6,1720,Aberdeen House Care Limited,RC506722,,Older People,R5028,TPP - Residental Care,
01/04/2021,60052505,155,2185,Ace Cabs Stamford Ltd,RC500124,184 8594 53,Post 16 Transport,R3200,Hire of Vehicles & Plant,
01/04/2021,60052506,156,2504.7,Ace Cabs Stamford Ltd,RC500124,184 8594 53,Children Looked After Transport,R3200,Hire of Vehicles & Plant,
01/04/2021,60052507,157,2530,Ace Cabs Stamford Ltd,RC500124,184 8594 53,SEN Transport,R3200,Hire of Vehicles & Plant,
01/04/2021,60052508,158,3680,Ace Cabs Stamford Ltd,RC500124,184 8594 53,Post 16 Transport,R3200,Hire of Vehicles & Plant,
01/04/2021,60052509,160,2737,Ace Cabs Stamford Ltd,RC500124,184 8594 53,SEN Transport,R3200,Hire of Vehicles & Plant,
01/04/2021,60052510,161,1150,Ace Cabs Stamford Ltd,RC500124,184 8594 53,SEN Transport,R3200,Hire of Vehicles & Plant,
01/04/2021,60052593,159,2070,Ace Cabs Stamford Ltd,RC500124,184 8594 53,Children Looked After Transport,R3200,Hire of Vehicles & Plant,
01/04/2021,60052480,07-Mar-21,262.35,Ace Cars Peterborough,RC509239,,Home to School Transport,R3200,Hire of Vehicles & Plant,
01/04/2021,60052615,2468,570,Action Deafness Ltd,RC506720,978 8916 31,ASC S&R Homecare PD,R5029,TPP - Home Care,
01/04/2021,60052411,28455261,2607,AECOM Infrastructure & Environment Uk Ltd,RC507238,818 3019 39,Highways S38 Income,R1401,Professional Fees,
16/04/2021,60052992,9532/21,1190,Air Conditioning Consultants,RC508892,981372207,Central Maintenance,R2004,R & M - Programmed,
09/04/2021,3747597,Redacted Personal Data,330.74,Redacted Personal Data,RC301545,,Placements,R5017,TPP - Other,
16/04/2021,3747821,Redacted Personal Data,330.74,Redacted Personal Data,RC301545,,Placements,R5017,TPP - Other,
22/04/2021,3748063,Redacted Personal Data,330.74,Redacted Personal Data,RC301545,,Placements,R5017,TPP - Other,
29/04/2021,3748275,Redacted Personal Data,330.74,Redacted Personal Data,RC301545,,Placements,R5017,TPP - Other,
01/04/2021,60052622,Redacted Personal Data,76.92,Redacted Personal Data,RC508910,,Disabled Children,R6280,Direct Payments,
01/04/2021,60052413,C50643,154.82,Allied Publicity Services (Manchester) Limited t/a APS Group,RC300920,146 4941 52,Blue Badge Scheme,R4401,Fees and Charges,
27/04/2021,60053217,C51609,149.46,Allied Publicity Services (Manchester) Limited t/a APS Group,RC300920,146 4941 52,Blue Badge Scheme,R4401,Fees and Charges,
01/04/2021,60052457,E2013752692,624.52,Allstar Business Solutions Ltd,RC507815,747 8801 91,Pool Cars and Car Hire,R3000,Fuel,
01/04/2021,60052459,E2013752693,67.51,Allstar Business Solutions Ltd,RC507815,747 8801 91,Public Rights of Way,R3000,Fuel,
01/04/2021,60052460,E2013752695,2076.4,Allstar Business Solutions Ltd,RC507815,747 8801 91,Educational Transport Fleet,R3000,Fuel,
01/04/2021,60052525,E2013753709,15.61,Allstar Business Solutions Ltd,RC507815,747 8801 91,Waste Management,R3000,Fuel,
15/04/2021,60053000,E2013804359,355.64,Allstar Business Solutions Ltd,RC507815,747 8801 91,Pool Cars and Car Hire,R3000,Fuel,
15/04/2021,60053001,E2013804360,21,Allstar Business Solutions Ltd,RC507815,747 8801 91,Public Rights of Way,R3000,Fuel,
15/04/2021,60053002,E2013804361,546.75,Allstar Business Solutions Ltd,RC507815,747 8801 91,Educational Transport Fleet,R3000,Fuel,
16/04/2021,3747830,Redacted Personal Data,10.3,Redacted Personal Data,RC301757,,Children Looked After,R3300,Public Transport,
16/04/2021,3747831,Redacted Personal Data,33.7,Redacted Personal Data,RC301757,,Children Looked After,R3300,Public Transport,
01/04/2021,60052392,210456501 - 8714129,1413.08,Anglian Water Business Ltd,RC500175,242 5074 29,Oakham Enterprise Park,R2401,Water Services,
02/04/2021,60052678,390535801 - 8768017,56.5,Anglian Water Business Ltd,RC500175,242 5074 29,Parking,R2401,Water Services,
02/04/2021,60052679,390551801 - 8768876,56.5,Anglian Water Business Ltd,RC500175,242 5074 29,Parking,R2401,Water Services,
02/04/2021,60052738,390183901 - 8775910,56.5,Anglian Water Business Ltd,RC500175,242 5074 29,Parking,R2401,Water Services,
02/04/2021,60052739,390536701 - 8774290,56.5,Anglian Water Business Ltd,RC500175,242 5074 29,Parking,R2401,Water Services,
02/04/2021,60052740,390548301 - 8772629,56.5,Anglian Water Business Ltd,RC500175,242 5074 29,Parking,R2401,Water Services,
02/04/2021,60052958,390553601 - 8775296,56.5,Anglian Water Business Ltd,RC500175,242 5074 29,Parking,R2401,Water Services,
07/04/2021,60053038,247886601 - 8789342,11.72,Anglian Water Business Ltd,RC500175,242 5074 29,Cemeteries,R2401,Water Services,
07/04/2021,60053044,247887501 - 8781580,24.72,Anglian Water Business Ltd,RC500175,242 5074 29,Libraries,R2401,Water Services,
16/04/2021,60053170,326327901 - 8829107,13.14,Anglian Water Business Ltd,RC500175,242 5074 29,Cemeteries,R2401,Water Services,
16/04/2021,60053195,326268501 - 8829172,44.56,Anglian Water Business Ltd,RC500175,242 5074 29,Libraries,R2401,Water Services,
14/04/2021,60052925,INV-0442,94,Animal Care Services Ltd,RC301589,357922272,Waste Management,R4401,Fees and Charges,
14/04/2021,60052959,CN-010,-25,Animal Care Services Ltd,RC301589,357922272,Waste Management,R4401,Fees and Charges,
22/04/2021,3748078,Redacted Personal Data,2760,Redacted Personal Data,RC301554,,SEN (DSG),R6280,Direct Payments,
09/04/2021,3747611,Redacted Personal Data,55,Redacted Personal Data,RC301012,,Care Leavers,R6292,Section 24 Payments,
29/04/2021,3748196,Redacted Personal Data,55,Redacted Personal Data,RC301012,,Care Leavers,R6292,Section 24 Payments,
12/04/2021,3747834,Redacted Personal Data,55.86,Redacted Personal Data,RC505078,,Carer Support,R6280,Direct Payments,
01/04/2021,60052481,339006,1176,Anthony Collins Solicitors LLP,RC508058,112 0288 22,Legal Services,R4400,Professional Fees,
01/04/2021,60052654,345767,2800,Anthony Collins Solicitors LLP,RC508058,112 0288 22,Legal Services,R4400,Professional Fees,
01/04/2021,60052655,345768,1940,Anthony Collins Solicitors LLP,RC508058,112 0288 22,Legal Services,R1401,Professional Fees,
01/04/2021,60052779,339083,3000,Anthony Collins Solicitors LLP,RC508058,112 0288 22,Legal Services,R4400,Professional Fees,
01/04/2021,60052791,345268,900,Anthony Collins Solicitors LLP,RC508058,112 0288 22,Legal Services,R4400,Professional Fees,
01/04/2021,60052781,940817135,115.56,Arco Limited,RC500008,166 9115 46,Environmental Services,R4000,Furniture & Equipment,
01/04/2021,60052782,940876889,75.33,Arco Limited,RC500008,166 9115 46,Environmental Services,R4201,Uniforms,
01/04/2021,60052783,940925928,66.03,Arco Limited,RC500008,166 9115 46,Development Control,R4201,Uniforms,
09/04/2021,3747541,Redacted Personal Data,14.85,Redacted Personal Data,RC301406,,Placements,R5017,TPP - Other,
01/04/2021,60053133,3,10944,Ash Field Academy,RC507698,,SEN (DSG),R5011,TPP - Local Authorities,
22/04/2021,60053134,4,-8161.26,Ash Field Academy,RC507698,,SEN (DSG),R5011,TPP - Local Authorities,
05/04/2021,60052793,993318,147.68,Askews and Holts Library Services Ltd,RC505812,153 4009 95,Libraries,R4309,Books,
14/04/2021,60052943,232-5091659,1468.14,Athena Care Ltd,RC502617,775 5290 95,ASC S&R Homecare MH,R5029,TPP - Home Care,
29/04/2021,3748279,Redacted Personal Data,500,Redacted Personal Data,RC301762,,Aiming High,R4400,Professional Fees,
01/04/2021,60052552,SI14389,2250,Avco Systems Ltd,RC500055,452 7464 38,IT Operational Support,R4534,Computing - Maintenance Agreements,
19/04/2021,3748108,36886/24,1807.14,Avery Healthcare Ltd,RC301750,,Older People,R5028,TPP - Residental Care,
21/04/2021,60053124,INV-3756,1760,AWD Recruitment Limited,RC301737,898 8262 46,Human Resources,R1700,Staff Advertising Costs,
09/04/2021,3747581,Redacted Personal Data,167.4,Redacted Personal Data,RC507009,,Placements,R5017,TPP - Other,
09/04/2021,3747582,Redacted Personal Data,168.13,Redacted Personal Data,RC507009,,Placements,R5017,TPP - Other,
16/04/2021,3747805,Redacted Personal Data,167.4,Redacted Personal Data,RC507009,,Placements,R5017,TPP - Other,
16/04/2021,3747806,Redacted Personal Data,168.13,Redacted Personal Data,RC507009,,Placements,R5017,TPP - Other,
22/04/2021,3748047,Redacted Personal Data,167.4,Redacted Personal Data,RC507009,,Placements,R5017,TPP - Other,
22/04/2021,3748048,Redacted Personal Data,168.13,Redacted Personal Data,RC507009,,Placements,R5017,TPP - Other,
29/04/2021,3748259,Redacted Personal Data,167.4,Redacted Personal Data,RC507009,,Placements,R5017,TPP - Other,
29/04/2021,3748260,Redacted Personal Data,168.13,Redacted Personal Data,RC507009,,Placements,R5017,TPP - Other,
22/04/2021,60053128,INV-0006,240,Baby Sensory Stamford & District,RC301513,,Children's Centres - Revenue,R4401,Fees and Charges,
09/04/2021,3747598,Redacted Personal Data,44.99,Redacted Personal Data,RC301231,,Unaccompanied Asylum Seekers - Over 18,R6292,Section 24 Payments,
09/04/2021,3747599,Redacted Personal Data,23,Redacted Personal Data,RC301231,,Unaccompanied Asylum Seekers - Over 18,R6292,Section 24 Payments,
09/04/2021,3747600,Redacted Personal Data,48,Redacted Personal Data,RC301231,,Unaccompanied Asylum Seekers - Over 18,R6292,Section 24 Payments,
29/04/2021,3748218,Redacted Personal Data,44.99,Redacted Personal Data,RC301231,,Unaccompanied Asylum Seekers - Over 18,R6292,Section 24 Payments,
29/04/2021,3748219,Redacted Personal Data,23,Redacted Personal Data,RC301231,,Unaccompanied Asylum Seekers - Over 18,R6292,Section 24 Payments,
29/04/2021,3748220,Redacted Personal Data,48,Redacted Personal Data,RC301231,,Unaccompanied Asylum Seekers - Over 18,R6292,Section 24 Payments,
01/04/2021,60052379,INV-0228,8000,Bang the Table UK Pty Ltd.,RC301723,218 645 301,Communication,R4400,Professional Fees,
12/04/2021,3747889,Redacted Personal Data,138,Redacted Personal Data,RC506334,,Carer Support,R6280,Direct Payments,
12/04/2021,3747845,Redacted Personal Data,368,Redacted Personal Data,RC508792,,Carer Support,R6280,Direct Payments,
01/04/2021,60052107,1024249713,1240,Bechtle Direct Ltd,RC508730,699 3742 67,Recreation and Leisure,R4530,Computing - Hardware,
13/04/2021,60052851,1024253392,797,Bechtle Direct Ltd,RC508730,699 3742 67,IT Operational Support,R4530,Computing - Hardware,
16/04/2021,3747982,3 and 4 Year Funding - April 2021 Claim and March 2021 Adjustment,4142.05,Belton Pre-School,RC500093,,3 & 4 Year Old Nursery Funding,R5020,TPP - Nursery Provision,
09/04/2021,3747609,Redacted Personal Data,650,Belvoir,RC301611,,Care Leavers,R4900,Accomodation Costs,
29/04/2021,3748281,Redacted Personal Data,600,Redacted Personal Data,RC301063,,Aiming High,R4400,Professional Fees,
22/04/2021,3748067,Redacted Personal Data,465,Bentons,RC301602,,Care Leavers,R4900,Accomodation Costs,
01/04/2021,60052417,21385,2622,Berridge Taxis,RC503277,978 4186 62,SEN Transport,R3200,Hire of Vehicles & Plant,
01/04/2021,60052418,21388,598,Berridge Taxis,RC503277,978 4186 62,Home to School Transport,R3200,Hire of Vehicles & Plant,
01/04/2021,60052419,21399,1930,Berridge Taxis,RC503277,978 4186 62,SEN Transport,R3200,Hire of Vehicles & Plant,
01/04/2021,60052421,213101,1400,Berridge Taxis,RC503277,978 4186 62,SEN Transport,R3200,Hire of Vehicles & Plant,
01/04/2021,60052422,213182,490,Berridge Taxis,RC503277,978 4186 62,SEN Transport,R3200,Hire of Vehicles & Plant,
01/04/2021,60052437,21386,1196,Berridge Taxis,RC503277,978 4186 62,SEN Transport,R3200,Hire of Vehicles & Plant,
01/04/2021,60052438,21387,2829,Berridge Taxis,RC503277,978 4186 62,SEN Transport,R3200,Hire of Vehicles & Plant,
01/04/2021,60052439,21391,3463.6,Berridge Taxis,RC503277,978 4186 62,SEN Transport,R3200,Hire of Vehicles & Plant,
01/04/2021,60052440,21393,2400,Berridge Taxis,RC503277,978 4186 62,Home to School Transport,R3200,Hire of Vehicles & Plant,
01/04/2021,60052441,21396,2080,Berridge Taxis,RC503277,978 4186 62,SEN Transport,R3200,Hire of Vehicles & Plant,
01/04/2021,60052442,213100,1113,Berridge Taxis,RC503277,978 4186 62,SEN Transport,R3200,Hire of Vehicles & Plant,
01/04/2021,60052443,213107,1014,Berridge Taxis,RC503277,978 4186 62,SEN Transport,R3200,Hire of Vehicles & Plant,
01/04/2021,60052444,213179,1304,Berridge Taxis,RC503277,978 4186 62,SEN Transport,R3200,Hire of Vehicles & Plant,
01/04/2021,60052445,CBEC,49,Berridge Taxis,RC503277,978 4186 62,SEN Transport,R3200,Hire of Vehicles & Plant,
01/04/2021,60052446,Cowlbeck,756,Berridge Taxis,RC503277,978 4186 62,SEN Transport,R3200,Hire of Vehicles & Plant,
01/04/2021,60052447,21384,55,Berridge Taxis,RC503277,978 4186 62,SEN Transport,R3200,Hire of Vehicles & Plant,
01/04/2021,60052448,21389,24,Berridge Taxis,RC503277,978 4186 62,SEN Transport,R3200,Hire of Vehicles & Plant,
01/04/2021,60052449,213108,141,Berridge Taxis,RC503277,978 4186 62,SEN Transport,R3200,Hire of Vehicles & Plant,
20/04/2021,60053107,TRAVEL TOKEN REIMBURSEMENT MARCH 21,352,Berridge Taxis,RC503277,978 4186 62,Concessionary Travel,R6270,Concessionary fares,
01/04/2021,60052657,16399,1198,Bibliographic Data Services Limited,RC508706,652431358,Libraries,R4701,Subscriptions,
01/04/2021,60052386,INV-UK08397,2302.15,Bibliotheca Ltd,RC506068,100 1698 59,Libraries,R4530,Computing - Hardware,
05/04/2021,60053012,INV-UK08493,74.93,Bibliotheca Ltd,RC506068,100 1698 59,Libraries,R4530,Computing - Hardware,
12/04/2021,60052929,460M01062,1144.3,Biffa Municipal Ltd,RC501347,537 9116 27,Refuse Collection,R5002,TPP - Waste Collection,
01/04/2021,60052425,169,45.77,Bluebird Care,RC506798,,ASC S&R Homecare OP,R4401,Fees and Charges,
01/04/2021,60052499,171,10302.8,Bluebird Care,RC506798,,ASC S&R Homecare OP,R5029,TPP - Home Care,
01/04/2021,60052789,62705,22.99,Bolinda UK Ltd,RC508367,110 8809 34,Libraries,R4309,Books,
01/04/2021,60052794,24591-00150,6000,Bolinda UK Ltd,RC508367,110 8809 34,Prison Library Service - Stocken,R4309,Books,
01/04/2021,60052795,24593-00150,6000,Bolinda UK Ltd,RC508367,110 8809 34,Libraries,R4309,Books,
01/04/2021,60052998,62706,28.99,Bolinda UK Ltd,RC508367,110 8809 34,Libraries,R4309,Books,
01/04/2021,60052999,62025,182.97,Bolinda UK Ltd,RC508367,110 8809 34,Libraries,R4309,Books,
01/04/2021,60053091,63001,0.14,Bolinda UK Ltd,RC508367,110 8809 34,Libraries,R4309,Books,
06/04/2021,3747633,36586/15,1106,Braceborough Hall,RC502352,,Older People,R5028,TPP - Residental Care,
06/04/2021,3747634,36586/16,1004,Braceborough Hall,RC502352,,Older People,R5028,TPP - Residental Care,
19/04/2021,3748096,36847/12,1106,Braceborough Hall,RC502352,,Older People,R5028,TPP - Residental Care,
19/04/2021,3748097,36847/13,1004,Braceborough Hall,RC502352,,Older People,R5028,TPP - Residental Care,
01/04/2021,60052098,6635364,360,Bradvale Ltd t/a Inspire Healthcare Services,RC301072,614 1656 59,Covid-19 Testing Centre,R5002,TPP - Waste Collection,
09/04/2021,3747551,Redacted Personal Data,60,Redacted Personal Data,RC301739,,Placements,R5017,TPP - Other,
29/04/2021,3748229,Redacted Personal Data,60,Redacted Personal Data,RC301739,,Placements,R5017,TPP - Other,
01/04/2021,60052603,INV 10208,5271,Bridgeway Security Solutions,RC508763,112 1556 60,IT Operational Support,R4534,Computing - Maintenance Agreements,
16/04/2021,3747971,2 Year Funding - April 2021 Claim and March 2021 Adjustment,353.76,Bright Sparks Pre-School,RC501571,,2 Year Old Nursery Funding,R5020,TPP - Nursery Provision,
16/04/2021,3747983,3 and 4 Year Funding - April 2021 Claim and March 2021 Adjustment,2205.75,Bright Sparks Pre-School,RC501571,,3 & 4 Year Old Nursery Funding,R5020,TPP - Nursery Provision,
01/04/2021,60052572,BT012356969,7.05,British Telecommunications Plc,RC501804,245 7193 48,Telecommunications,R4401,Fees and Charges,
04/04/2021,60052683,EM24413663 - M101 MV,14.08,British Telecommunications Plc,RC501804,245 7193 48,IT Operational Support,R4537,Computing - Internet,
08/04/2021,60052818,818874,28681,British Telecommunications Plc,RC508298,245719348,Capital Programme Places - Economic Development,C1010,Capital Fees & Charges,
08/04/2021,60052819,818881,28681,British Telecommunications Plc,RC508298,245719348,Capital Programme Places - Economic Development,C1010,Capital Fees & Charges,
08/04/2021,60052820,818911,29662,British Telecommunications Plc,RC508298,245719348,Capital Programme Places - Economic Development,C1010,Capital Fees & Charges,
08/04/2021,60052821,818953,29662,British Telecommunications Plc,RC508298,245719348,Capital Programme Places - Economic Development,C1010,Capital Fees & Charges,
08/04/2021,60052822,818945,29662,British Telecommunications Plc,RC508298,245719348,Capital Programme Places - Economic Development,C1010,Capital Fees & Charges,
08/04/2021,60052823,819006,29662,British Telecommunications Plc,RC508298,245719348,Capital Programme Places - Economic Development,C1010,Capital Fees & Charges,
08/04/2021,60052824,818949,29662,British Telecommunications Plc,RC508298,245719348,Capital Programme Places - Economic Development,C1010,Capital Fees & Charges,
08/04/2021,60052825,819020,29662,British Telecommunications Plc,RC508298,245719348,Capital Programme Places - Economic Development,C1010,Capital Fees & Charges,
08/04/2021,60052826,818924,29662,British Telecommunications Plc,RC508298,245719348,Capital Programme Places - Economic Development,C1010,Capital Fees & Charges,
08/04/2021,60052827,819011,29662,British Telecommunications Plc,RC508298,245719348,Capital Programme Places - Economic Development,C1010,Capital Fees & Charges,
08/04/2021,60052828,818943,29662,British Telecommunications Plc,RC508298,245719348,Capital Programme Places - Economic Development,C1010,Capital Fees & Charges,
08/04/2021,60052829,818941,29662,British Telecommunications Plc,RC508298,245719348,Capital Programme Places - Economic Development,C1010,Capital Fees & Charges,
08/04/2021,60052830,818927,29662,British Telecommunications Plc,RC508298,245719348,Capital Programme Places - Economic Development,C1010,Capital Fees & Charges,
08/04/2021,60052831,819016,29662,British Telecommunications Plc,RC508298,245719348,Capital Programme Places - Economic Development,C1010,Capital Fees & Charges,
08/04/2021,60052832,818913,29662,British Telecommunications Plc,RC508298,245719348,Capital Programme Places - Economic Development,C1010,Capital Fees & Charges,
08/04/2021,60052833,818891,29662,British Telecommunications Plc,RC508298,245719348,Capital Programme Places - Economic Development,C1010,Capital Fees & Charges,
08/04/2021,60052834,818896,29662,British Telecommunications Plc,RC508298,245719348,Capital Programme Places - Economic Development,C1010,Capital Fees & Charges,
08/04/2021,60052835,819004,29662,British Telecommunications Plc,RC508298,245719348,Capital Programme Places - Economic Development,C1010,Capital Fees & Charges,
08/04/2021,60052836,818951,29662,British Telecommunications Plc,RC508298,245719348,Capital Programme Places - Economic Development,C1010,Capital Fees & Charges,
08/04/2021,60052837,819025,29662,British Telecommunications Plc,RC508298,245719348,Capital Programme Places - Economic Development,C1010,Capital Fees & Charges,
08/04/2021,60052838,818888,9667,British Telecommunications Plc,RC508298,245719348,Capital Programme Places - Economic Development,C1010,Capital Fees & Charges,
08/04/2021,60052839,818909,9667,British Telecommunications Plc,RC508298,245719348,Capital Programme Places - Economic Development,C1010,Capital Fees & Charges,
08/04/2021,60052917,818999,29662,British Telecommunications Plc,RC508298,245719348,Capital Programme Places - Economic Development,C1010,Capital Fees & Charges,
10/04/2021,60052956,PS04351270 Q013 9K,2795.04,British Telecommunications Plc,RC501804,245 7193 48,IT Operational Support,R4537,Computing - Internet,
10/04/2021,60052957,PS97822270 Q013 4N,1397.52,British Telecommunications Plc,RC501804,245 7193 48,IT Operational Support,R4537,Computing - Internet,
06/04/2021,3747635,36587/17,1158,Broadoak Group Of Care Homes (Grange),RC502363,,Older People,R5028,TPP - Residental Care,
06/04/2021,3747636,36587/18,1158,Broadoak Group Of Care Homes (Grange),RC502363,,Older People,R5028,TPP - Residental Care,
19/04/2021,3748098,36848/14,1158,Broadoak Group Of Care Homes (Grange),RC502363,,Older People,R5028,TPP - Residental Care,
19/04/2021,3748099,36848/15,1158,Broadoak Group Of Care Homes (Grange),RC502363,,Older People,R5028,TPP - Residental Care,
01/04/2021,60052487,5356,250,Brolay Care Farm Ltd,RC301630,,Placements,R4400,Professional Fees,
01/04/2021,60052786,5376,500,Brolay Care Farm Ltd,RC301630,,Placements,R4400,Professional Fees,
13/04/2021,3747754,April 2021 dripfeed - High Needs Block Allocation,1680.6,Brooke Hill Academy Trust Ltd,RC501837,,SEN (DSG),R6300,Schools - Budget Share,
16/04/2021,3747984,3 and 4 Year Funding - April 2021 Claim and March 2021 Adjustment,6682.52,Brooke Hill Academy Trust Ltd,RC501837,,3 & 4 Year Old Nursery Funding,R5020,TPP - Nursery Provision,
16/04/2021,3747985,3 and 4 Year Funding - April 2021 Claim and March 2021 Adjustment,3187.5,Brooke Priory School Ltd,RC501848,,3 & 4 Year Old Nursery Funding,R5020,TPP - Nursery Provision,
01/04/2021,60053092,M10234,2216,Buchanan Computing Ltd,RC501971,685 1476 06,Highways Management,R4535,Computing - Licences,
01/04/2021,60052484,43031,262.53,C & M Tractors Ltd,RC502059,119 5252 73,Public Rights of Way,R4000,Furniture & Equipment,
20/04/2021,60053188,43462,46.48,C & M Tractors Ltd,RC502059,119 5252 73,Cemeteries,R4000,Furniture & Equipment,
01/04/2021,60051421,3802436,2450,Cabinet Office,RC300061,88 8801 080,Legal Services,R4401,Fees and Charges,
09/04/2021,60052641,CIL PARISH PAYMENT APRIL 2021,669.23,Caldecott Parish Council,RC502170,,S106 Contributions,R5017,TPP - Other,
16/04/2021,60053169,66183400,700,Cambs Community Services NHS Trust,RC508575,654439952,Sexual Health,R5017,TPP - Other,
01/04/2021,60052737,402275785,2607.67,Canon (UK) Ltd,RC301046,523 7971 28,Printers,R4300,Printing & Photocopying,
01/04/2021,60052947,6004048588,8143.16,Capita Business Services Ltd,RC500260,618 1841 40,IT Operational Support,R4531,Computing - Software,
09/04/2021,3747593,Redacted Personal Data,295.62,Redacted Personal Data,RC300308,,Placements,R5017,TPP - Other,
16/04/2021,3747817,Redacted Personal Data,295.62,Redacted Personal Data,RC300308,,Placements,R5017,TPP - Other,
22/04/2021,3748059,Redacted Personal Data,295.62,Redacted Personal Data,RC300308,,Placements,R5017,TPP - Other,
29/04/2021,3748271,Redacted Personal Data,295.62,Redacted Personal Data,RC300308,,Placements,R5017,TPP - Other,
01/04/2021,60052770,Redacted Personal Data,2400,Redacted Personal Data,RC301300,,SEN (DSG),R4400,Professional Fees,
09/04/2021,3747612,Redacted Personal Data,40,Redacted Personal Data,RC301278,,Care Leavers,R6292,Section 24 Payments,
16/04/2021,3747832,Redacted Personal Data,155.8,Redacted Personal Data,RC301278,,Care Leavers,R6292,Section 24 Payments,
22/04/2021,3748068,Redacted Personal Data,77.9,Redacted Personal Data,RC301278,,Care Leavers,R6292,Section 24 Payments,
29/04/2021,3748197,Redacted Personal Data,77.9,Redacted Personal Data,RC301278,,Care Leavers,R6292,Section 24 Payments,
01/04/2021,60052420,156955,1321.25,Carrington West Limited,RC301640,105 5885 10,Development Control,R1100,Agency Staff,
01/04/2021,60052686,TI020871,1045.6,Carter Brown - The Expert Service Ltd,RC300916,281653589,Children Looked After,R4400,Professional Fees,
29/04/2021,3748193,Redacted Personal Data,475,Redacted Personal Data,RC301413,,Care Leavers,R4900,Accomodation Costs,
01/04/2021,60052785,29508,14102.06,Casepak,RC507209,115128407,Waste Management,R5021,TPP - Waste Disposal,
13/04/2021,3747748,April 2021 - High Needs Block Allocation,3970.83,Casterton College,RC502333,,SEN (DSG),R6300,Schools - Budget Share,
16/04/2021,3747972,2 Year Funding - April 2021 Claim and March 2021 Adjustment,165.09,Casterton Nursery,RC500449,,2 Year Old Nursery Funding,R5020,TPP - Nursery Provision,
16/04/2021,3747986,3 and 4 Year Funding - April 2021 Claim and March 2021 Adjustment,14905.18,Casterton Nursery,RC500449,,3 & 4 Year Old Nursery Funding,R5020,TPP - Nursery Provision,
12/04/2021,3747876,Redacted Personal Data,485.68,Redacted Personal Data,RC301415,,ASC S&R DPs OP,R6280,Direct Payments,
01/04/2021,60052312,INV-0372,562.5,Central Coaches Ltd,RC301579,183939462,Post 16 Transport,R3207,Transport Contract,
30/04/2021,60053181,INV-0386,3600,Central Coaches Ltd,RC301579,183939462,Post 16 Transport,R3207,Transport Contract,
01/04/2021,60052792,SSU219,12075,Centre Academy East Anglia,RC508940,,SEN (DSG),R5017,TPP - Other,
01/04/2021,60052582,25490,10455,Centrebus Ltd,RC500615,834 8659 85,Public Transport,R5017,TPP - Other,
01/04/2021,60052583,25491,11478.25,Centrebus Ltd,RC500615,834 8659 85,Public Transport,R5017,TPP - Other,
01/04/2021,60052584,25492,3178.88,Centrebus Ltd,RC500615,834 8659 85,Public Transport,R5017,TPP - Other,
01/04/2021,60052585,25493,10908.71,Centrebus Ltd,RC500615,834 8659 85,Public Transport,R5017,TPP - Other,
01/04/2021,60052586,25494,4752.14,Centrebus Ltd,RC500615,834 8659 85,Public Transport,R5017,TPP - Other,
01/04/2021,60052587,25495,1774.32,Centrebus Ltd,RC500615,834 8659 85,Public Transport,R5017,TPP - Other,
01/04/2021,60052588,25496,-198.93,Centrebus Ltd,RC500615,834 8659 85,Public Transport,R5017,TPP - Other,
12/04/2021,60052710,25548,5106,Centrebus Ltd,RC500615,834 8659 85,Post 16 Transport,R3207,Transport Contract,
12/04/2021,60052711,25549,1332,Centrebus Ltd,RC500615,834 8659 85,Post 16 Transport,R3207,Transport Contract,
01/04/2021,60052863,25489,14120,Centrebus Ltd,RC500615,834 8659 85,Concessionary Travel,R6270,Concessionary fares,
26/04/2021,60053184,25579,52000,Centrebus Ltd,RC500615,834 8659 85,Public Transport,R5017,TPP - Other,
01/04/2021,60052410,52668,5349.51,CFH Docmail Ltd,RC301223,720978223,Revenues,R4401,Fees and Charges,
14/04/2021,60052762,3062 - MAR 2021,0.69,Charitable Giving Client,RC505683,,Corporate Financial Expenses,R4401,Fees and Charges,
12/04/2021,3747849,Redacted Personal Data,757.82,Redacted Personal Data,RC300365,,ASC S&R DPs LD,R6280,Direct Payments,
12/04/2021,3747919,Redacted Personal Data,276,Redacted Personal Data,RC300602,,Carer Support,R6280,Direct Payments,
06/04/2021,3747641,36579/23,1022,Chater Lodge Care Home,RC502286,,Older People,R5028,TPP - Residental Care,
06/04/2021,3747642,36579/24,2200,Chater Lodge Care Home,RC502286,,Older People,R5028,TPP - Residental Care,
06/04/2021,3747643,36579/25,1022,Chater Lodge Care Home,RC502286,,Older People,R5028,TPP - Residental Care,
19/04/2021,3748103,36806/19,1022,Chater Lodge Care Home,RC502286,,Older People,R5028,TPP - Residental Care,
19/04/2021,3748104,36806/20,2200,Chater Lodge Care Home,RC502286,,Older People,R5028,TPP - Residental Care,
19/04/2021,3748105,36806/21,1022,Chater Lodge Care Home,RC502286,,Older People,R5028,TPP - Residental Care,
06/04/2021,3747644,36588/26,1919.5,Chestnuts (Arnesby) Limited,RC506807,,Learning Disability,R5028,TPP - Residental Care,
06/04/2021,3747645,36588/27,2387.5,Chestnuts (Arnesby) Limited,RC506807,,Learning Disability,R5028,TPP - Residental Care,
19/04/2021,3748106,36849/22,1919.5,Chestnuts (Arnesby) Limited,RC506807,,Learning Disability,R5028,TPP - Residental Care,
19/04/2021,3748107,36849/23,2387.5,Chestnuts (Arnesby) Limited,RC506807,,Learning Disability,R5028,TPP - Residental Care,
22/04/2021,3748066,Redacted Personal Data,450,Redacted Personal Data,RC301604,,Care Leavers,R4900,Accomodation Costs,
29/04/2021,3748198,Redacted Personal Data,27,Redacted Personal Data,RC301604,,Care Leavers,R6292,Section 24 Payments,
29/04/2021,3748199,Redacted Personal Data,16.25,Redacted Personal Data,RC301604,,Care Leavers,R6292,Section 24 Payments,
09/04/2021,3747613,Redacted Personal Data,14.5,Redacted Personal Data,RC301583,,Care Leavers,R6292,Section 24 Payments,
16/04/2021,3747824,Redacted Personal Data,14.5,Redacted Personal Data,RC301583,,Care Leavers,R6292,Section 24 Payments,
19/04/2021,3748008,Redacted Personal Data,77.9,Redacted Personal Data,RC301583,,Care Leavers,R6292,Section 24 Payments,
22/04/2021,3748069,Redacted Personal Data,14.5,Redacted Personal Data,RC301583,,Care Leavers,R6292,Section 24 Payments,
22/04/2021,3748070,Redacted Personal Data,77.9,Redacted Personal Data,RC301583,,Care Leavers,R6292,Section 24 Payments,
29/04/2021,3748200,Redacted Personal Data,23.99,Redacted Personal Data,RC301583,,Care Leavers,R6292,Section 24 Payments,
29/04/2021,3748201,Redacted Personal Data,14.5,Redacted Personal Data,RC301583,,Care Leavers,R6292,Section 24 Payments,
29/04/2021,3748202,Redacted Personal Data,77.9,Redacted Personal Data,RC301583,,Care Leavers,R6292,Section 24 Payments,
06/04/2021,3747692,36583/74,2298.88,Choice Ltd T/A Stoke Lodge,RC300621,,Mental Health,R5028,TPP - Residental Care,
19/04/2021,3748152,36866/68,2298.88,Choice Ltd T/A Stoke Lodge,RC300621,,Mental Health,R5028,TPP - Residental Care,
16/04/2021,3747979,Redacted Personal Data,1584.84,Redacted Personal Data,RC507202,,2 Year Old Nursery Funding,R5020,TPP - Nursery Provision,
16/04/2021,3748006,Redacted Personal Data,11179.8,Redacted Personal Data,RC507202,,3 & 4 Year Old Nursery Funding,R5020,TPP - Nursery Provision,
20/04/2021,60053113,300028412,168,Cilip,RC500982,233 1573 87,Libraries,R4702,Subscriptions - Employee,
01/04/2021,60051546,150293,88.02,Citipost Mail Ltd,RC300882,881 8531 94,Reprographics & Post,R4503,Postage,
01/04/2021,60052427,151228,95.58,Citipost Mail Ltd,RC300882,881 8531 94,Reprographics & Post,R4503,Postage,
01/04/2021,60052367,860123970,-25,City & Guilds,RC501059,788 6564 55,Rutland Adult Skill Budget Post July 2014,R4401,Fees and Charges,
01/04/2021,60052471,805708836,37,City & Guilds,RC501059,788 6564 55,Rutland Adult Skill Budget Post July 2014,R4401,Fees and Charges,
15/04/2021,60053021,805717164,1350,City & Guilds,RC501059,788 6564 55,Rutland Adult Skill Budget Post July 2014,R4401,Fees and Charges,
22/04/2021,60053167,805721852,675,City & Guilds,RC501059,788 6564 55,Rutland Adult Skill Budget Post July 2014,R4401,Fees and Charges,
09/04/2021,60052663,C/RB215266,2277,Civica UK Ltd,RC501070,391 1710 65,Benefit Processing,R4401,Fees and Charges,
01/04/2021,60052565,MDN231801-79,1228.71,Claranet Limited,RC500963,908 7593 83,IT Operational Support,R4537,Computing - Internet,
01/04/2021,60052797,ICB00032,200,Clarity Books Ltd,RC301724,301298137,Libraries,R4309,Books,
16/04/2021,3747998,3 and 4 Year Funding - April 2021 Claim and March 2021 Adjustment,4731.1,Climbing High Nurseries Ltd - The Day Nursery At Oakham,RC300926,,3 & 4 Year Old Nursery Funding,R5020,TPP - Nursery Provision,
01/04/2021,60052498,R210331-71,349.4,Cobalt Telephone Technologies Ltd,RC508614,636 1371 49,Parking,R5017,TPP - Other,
20/04/2021,60053084,9105220423,25,Coca-Cola Enterprises Ltd,RC501215,672 4251 40,Admin Buildings,R4000,Furniture & Equipment,
01/04/2021,60052720,25245,2937.6,Compass Fostering Central Limited,RC501320,153 1739 18,Placements,R5017,TPP - Other,
07/04/2021,60052513,C-0003187264,91.07,Computershare Voucher Services,RC502015,720707460,Corporate Financial Expenses,R4401,Fees and Charges,
27/04/2021,60053213,1541949,25,Cooler Aid Ltd,RC501333,599 5176 72,Community Learning,R4000,Furniture & Equipment,
01/04/2021,60052430,RCC 03/21,1150,Corby Jet Carz,RC508056,,Home to School Transport,R3200,Hire of Vehicles & Plant,
01/04/2021,60052431,RCC 03/21 - SN18,1200,Corby Jet Carz,RC508056,,Home to School Transport,R3200,Hire of Vehicles & Plant,
01/04/2021,60052432,RCC 03/21 - SN25,2960,Corby Jet Carz,RC508056,,SEN Transport,R3200,Hire of Vehicles & Plant,
01/04/2021,60052433,RCC 03/21 - SN48,780,Corby Jet Carz,RC508056,,SEN Transport,R3200,Hire of Vehicles & Plant,
01/04/2021,60052462,INV-0594,1524.6,Corby Star Cars Ltd,RC501949,307243038,Home to School Transport,R3200,Hire of Vehicles & Plant,
01/04/2021,60052463,INV-0595,740,Corby Star Cars Ltd,RC501949,307243038,SEN Transport,R3200,Hire of Vehicles & Plant,
01/04/2021,60052464,INV-0596,3399.4,Corby Star Cars Ltd,RC501949,307243038,SEN Transport,R3200,Hire of Vehicles & Plant,
01/04/2021,60052466,INV-0597,1853.95,Corby Star Cars Ltd,RC501949,307243038,SEN Transport,R3200,Hire of Vehicles & Plant,
01/04/2021,60052467,INV-0598,1932,Corby Star Cars Ltd,RC501949,307243038,SEN Transport,R3200,Hire of Vehicles & Plant,
01/04/2021,60052468,INV-0599,441.6,Corby Star Cars Ltd,RC501949,307243038,SEN Transport,R3200,Hire of Vehicles & Plant,
01/04/2021,60052500,INV-0600,357,Corby Star Cars Ltd,RC501949,307243038,Disabled Children,R3200,Hire of Vehicles & Plant,
01/04/2021,60052501,INV-0601,349,Corby Star Cars Ltd,RC501949,307243038,Home to School Transport,R3200,Hire of Vehicles & Plant,
01/04/2021,60052528,INV-0593,520,Corby Star Cars Ltd,RC501949,307243038,Disabled Children,R3200,Hire of Vehicles & Plant,
06/04/2021,3747684,36599/66,1043.78,Craegmoor Mar Lodge Priory,RC502624,,Learning Disability,R5028,TPP - Residental Care,
19/04/2021,3748146,36874/62,1043.78,Craegmoor Mar Lodge Priory,RC502624,,Learning Disability,R5028,TPP - Residental Care,
06/04/2021,3747704,36580/86,5892.8,Cristalcare Ltd,RC300259,,Learning Disability,R5028,TPP - Residental Care,
19/04/2021,3748165,36863/81,5892.8,Cristalcare Ltd,RC300259,,Learning Disability,R5028,TPP - Residental Care,
01/04/2021,60052531,4867,9800,Cross Media Print and Digital Solutions Limited,RC300906,195 6476 56,Communication,R4300,Printing & Photocopying,
01/04/2021,60052532,4871,5663.12,Cross Media Print and Digital Solutions Limited,RC300906,195 6476 56,Green Waste Collections,R4503,Postage,
01/04/2021,60052573,2065,-274.72,Cross Media Print and Digital Solutions Limited,RC300906,195 6476 56,Green Waste Collections,R4300,Printing & Photocopying,
01/04/2021,60052306,SN61 - March 2021,552,D C Taxis,RC509186,,Children Looked After Transport,R3200,Hire of Vehicles & Plant,
01/04/2021,60052320,SN29 - March 2021,600,D C Taxis,RC509186,,SEN Transport,R3200,Hire of Vehicles & Plant,
01/04/2021,60052321,SN43 - March 2021,640,D C Taxis,RC509186,,Adult Social Services Transport,R3200,Hire of Vehicles & Plant,
28/04/2021,60053244,Redacted Personal Data,256,D C Taxis,RC509186,,SEN Transport,R3207,Transport Contract,
01/04/2021,60052452,95431,82,Datashredders Ltd,RC300141,741 0093 71,Admin Buildings,R4000,Furniture & Equipment,
23/04/2021,60053189,95932,140.5,Datashredders Ltd,RC300141,741 0093 71,Admin Buildings,R4000,Furniture & Equipment,
01/04/2021,60052429,152705,200,Deaf Connect,RC509483,,Early Intervention Youth Services,R4401,Fees and Charges,
16/04/2021,3748000,Redacted Personal Data,280.5,Redacted Personal Data,RC509420,,3 & 4 Year Old Nursery Funding,R5020,TPP - Nursery Provision,
01/04/2021,60052476,Mar-21,884.86,Delaine Buses Ltd,RC501419,119 2077 80,Concessionary Travel,R6270,Concessionary fares,
09/04/2021,3747560,Redacted Personal Data,206,Redacted Personal Data,RC301541,,Placements,R5017,TPP - Other,
09/04/2021,3747579,Redacted Personal Data,124.74,Redacted Personal Data,RC301541,,Placements,R5017,TPP - Other,
16/04/2021,3747784,Redacted Personal Data,206,Redacted Personal Data,RC301541,,Placements,R5017,TPP - Other,
16/04/2021,3747803,Redacted Personal Data,124.74,Redacted Personal Data,RC301541,,Placements,R5017,TPP - Other,
22/04/2021,3748026,Redacted Personal Data,206,Redacted Personal Data,RC301541,,Placements,R5017,TPP - Other,
22/04/2021,3748045,Redacted Personal Data,124.74,Redacted Personal Data,RC301541,,Placements,R5017,TPP - Other,
29/04/2021,3748238,Redacted Personal Data,206,Redacted Personal Data,RC301541,,Placements,R5017,TPP - Other,
29/04/2021,3748257,Redacted Personal Data,124.74,Redacted Personal Data,RC301541,,Placements,R5017,TPP - Other,
09/04/2021,3747610,Redacted Personal Data,850,Dexters London Ltd,RC300942,,Care Leavers,R4900,Accomodation Costs,
09/04/2021,3747556,Redacted Personal Data,165,Redacted Personal Data,RC301040,,Placements,R5017,TPP - Other,
09/04/2021,3747557,Redacted Personal Data,165,Redacted Personal Data,RC301040,,Placements,R5017,TPP - Other,
09/04/2021,3747575,Redacted Personal Data,124.74,Redacted Personal Data,RC301040,,Placements,R5017,TPP - Other,
09/04/2021,3747576,Redacted Personal Data,93.56,Redacted Personal Data,RC301040,,Placements,R5017,TPP - Other,
16/04/2021,3747778,Redacted Personal Data,165,Redacted Personal Data,RC301040,,Placements,R5017,TPP - Other,
16/04/2021,3747779,Redacted Personal Data,165,Redacted Personal Data,RC301040,,Placements,R5017,TPP - Other,
16/04/2021,3747799,Redacted Personal Data,124.74,Redacted Personal Data,RC301040,,Placements,R5017,TPP - Other,
16/04/2021,3747800,Redacted Personal Data,93.56,Redacted Personal Data,RC301040,,Placements,R5017,TPP - Other,
22/04/2021,3748022,Redacted Personal Data,165,Redacted Personal Data,RC301040,,Placements,R5017,TPP - Other,
22/04/2021,3748023,Redacted Personal Data,165,Redacted Personal Data,RC301040,,Placements,R5017,TPP - Other,
22/04/2021,3748041,Redacted Personal Data,124.74,Redacted Personal Data,RC301040,,Placements,R5017,TPP - Other,
22/04/2021,3748042,Redacted Personal Data,93.56,Redacted Personal Data,RC301040,,Placements,R5017,TPP - Other,
29/04/2021,3748234,Redacted Personal Data,165,Redacted Personal Data,RC301040,,Placements,R5017,TPP - Other,
29/04/2021,3748235,Redacted Personal Data,165,Redacted Personal Data,RC301040,,Placements,R5017,TPP - Other,
29/04/2021,3748253,Redacted Personal Data,124.74,Redacted Personal Data,RC301040,,Placements,R5017,TPP - Other,
29/04/2021,3748254,Redacted Personal Data,93.56,Redacted Personal Data,RC301040,,Placements,R5017,TPP - Other,
16/04/2021,3748005,Redacted Personal Data,815.32,Redacted Personal Data,RC509223,,3 & 4 Year Old Nursery Funding,R5020,TPP - Nursery Provision,
12/04/2021,3747936,36731/1,147,Disability Direct,RC503281,,ASC S&R DPs PD,R6280,Direct Payments,
12/04/2021,3747937,36731/2,193,Disability Direct,RC503281,,ASC S&R DPs MH,R6280,Direct Payments,
12/04/2021,3747938,36731/3,23.8,Disability Direct,RC503281,,ASC S&R DPs LD,R6280,Direct Payments,
12/04/2021,3747939,36731/4,2832.58,Disability Direct,RC503281,,ASC S&R DPs LD,R6280,Direct Payments,
12/04/2021,3747940,36731/5,3877.42,Disability Direct,RC503281,,ASC S&R DPs LD,R6280,Direct Payments,
12/04/2021,3747941,36731/6,1476.58,Disability Direct,RC503281,,ASC S&R DPs LD,R6280,Direct Payments,
12/04/2021,3747942,36731/7,232.24,Disability Direct,RC503281,,ASC S&R DPs OP,R6280,Direct Payments,
12/04/2021,3747943,36731/8,193,Disability Direct,RC503281,,ASC S&R DPs MH,R6280,Direct Payments,
12/04/2021,3747944,36731/9,1389,Disability Direct,RC503281,,ASC S&R DPs PD,R6280,Direct Payments,
12/04/2021,3747945,36731/10,138,Disability Direct,RC503281,,Carer Support,R6280,Direct Payments,
12/04/2021,3747946,36731/11,443.69,Disability Direct,RC503281,,ASC S&R DPs LD,R6280,Direct Payments,
12/04/2021,3747947,36731/12,728.24,Disability Direct,RC503281,,ASC S&R DPs OP,R6280,Direct Payments,
12/04/2021,3747948,36731/13,2284.14,Disability Direct,RC503281,,ASC S&R DPs OP,R6280,Direct Payments,
12/04/2021,3747949,36731/14,289,Disability Direct,RC503281,,ASC S&R DPs MH,R6280,Direct Payments,
12/04/2021,3747950,36731/15,2757.59,Disability Direct,RC503281,,ASC S&R DPs LD,R6280,Direct Payments,
12/04/2021,3747951,36731/16,693.1,Disability Direct,RC503281,,ASC S&R DPs LD,R6280,Direct Payments,
12/04/2021,3747952,36731/17,78,Disability Direct,RC503281,,ASC S&R DPs MH,R6280,Direct Payments,
12/04/2021,3747953,36731/18,285,Disability Direct,RC503281,,ASC S&R DPs OP,R6280,Direct Payments,
12/04/2021,3747954,36731/19,355,Disability Direct,RC503281,,ASC S&R DPs MH,R6280,Direct Payments,
12/04/2021,3747955,36731/20,184.88,Disability Direct,RC503281,,ASC S&R DPs LD,R6280,Direct Payments,
12/04/2021,3747956,36731/21,1274,Disability Direct,RC503281,,ASC S&R DPs LD,R6280,Direct Payments,
12/04/2021,3747957,36731/22,9,Disability Direct,RC503281,,ASC S&R DPs OP,R6280,Direct Payments,
12/04/2021,3747958,36731/23,1458,Disability Direct,RC503281,,ASC S&R DPs PD,R6280,Direct Payments,
12/04/2021,3747959,36731/24,561.95,Disability Direct,RC503281,,ASC S&R DPs PD,R6280,Direct Payments,
12/04/2021,3747960,36731/25,1113,Disability Direct,RC503281,,ASC S&R DPs OP,R6280,Direct Payments,
12/04/2021,3747961,36731/26,101,Disability Direct,RC503281,,ASC S&R DPs MH,R6280,Direct Payments,
12/04/2021,3747962,36731/27,986.5,Disability Direct,RC503281,,ASC S&R DPs OP,R6280,Direct Payments,
12/04/2021,3747963,36731/28,9,Disability Direct,RC503281,,ASC S&R DPs LD,R6280,Direct Payments,
12/04/2021,3747964,36731/29,92.9,Disability Direct,RC503281,,ASC S&R DPs OP,R6280,Direct Payments,
12/04/2021,3747965,36731/30,124,Disability Direct,RC503281,,Carer Support,R6280,Direct Payments,
12/04/2021,3747966,36731/31,387,Disability Direct,RC503281,,ASC S&R DPs MH,R6280,Direct Payments,
12/04/2021,3747967,36731/32,193,Disability Direct,RC503281,,ASC S&R DPs LD,R6280,Direct Payments,
12/04/2021,3747968,36731/33,799.21,Disability Direct,RC503281,,ASC S&R DPs PD,R6280,Direct Payments,
12/04/2021,60052673,DP PAYMENT FOR TH 8/4 - 16/5/21,1848.92,Disability Direct,RC503281,,ASC S&R DPs MH,R6280,Direct Payments,
01/04/2021,60051856,26858503,782.62,Ebuyer (UK) Ltd,RC504014,836 5923 00,IT Operational Support,R4530,Computing - Hardware,
01/04/2021,60052323,314609782,16,Eden Springs UK Ltd,RC300505,232 1604 11,The King Centre,R2004,R & M - Programmed,
01/04/2021,60053101,314466266,15.7,Eden Springs UK Ltd,RC300505,232 1604 11,The King Centre,R2004,R & M - Programmed,
25/04/2021,60053178,314642593,16,Eden Springs UK Ltd,RC300505,232 1604 11,The King Centre,R2004,R & M - Programmed,
01/04/2021,60052612,7636210000 / 000009466980,7589.99,EDF Energy Customers Plc,RC501509,523 0412 02,Street Lighting,R2100,Electricity,
01/04/2021,60052613,4556210000 / 000009467020,1189.74,EDF Energy Customers Plc,RC501509,523 0412 02,Safety,R2100,Electricity,
01/04/2021,60052614,7636210000 / 000009467470,2136.02,EDF Energy Customers Plc,RC501509,523 0412 02,Street Lighting,R2100,Electricity,
06/04/2021,60052677,6795510000/000009502169,7682.03,EDF Energy Customers Plc,RC501509,523 0412 02,Oakham Enterprise Park,R2100,Electricity,
25/04/2021,60053255,6795510000 / 000009627530,-7682.03,EDF Energy Customers Plc,RC501509,523 0412 02,Oakham Enterprise Park,R2100,Electricity,
25/04/2021,60053256,6795510000 / 000009629524,7616.07,EDF Energy Customers Plc,RC501509,523 0412 02,Oakham Enterprise Park,R2100,Electricity,
13/04/2021,3747749,April 2021 dripfeed - High Needs Block Allocation,3656.35,Edith Weston Academy,RC509059,,SEN (DSG),R6300,Schools - Budget Share,
09/04/2021,60052642,Redacted Personal Data,3303.14,Edith Weston Parish Council,RC501513,,S106 Contributions,R5017,TPP - Other,
09/04/2021,3747615,Redacted Personal Data,77.9,Redacted Personal Data,RC300764,,Care Leavers,R6292,Section 24 Payments,
16/04/2021,3747826,Redacted Personal Data,77.9,Redacted Personal Data,RC300764,,Care Leavers,R6292,Section 24 Payments,
22/04/2021,3748072,Redacted Personal Data,77.9,Redacted Personal Data,RC300764,,Care Leavers,R6292,Section 24 Payments,
29/04/2021,3748204,Redacted Personal Data,77.9,Redacted Personal Data,RC300764,,Care Leavers,R6292,Section 24 Payments,
29/04/2021,3748205,Redacted Personal Data,17.98,Redacted Personal Data,RC300764,,Care Leavers,R6292,Section 24 Payments,
22/04/2021,3748077,01/04/21 to 30/04/21,4140,Redacted Personal Data,RC301549,,SEN (DSG),R6280,Direct Payments,
01/04/2021,60052517,SI-426,500,Elite Housing & Support,RC300384,,Care Leavers,R4900,Accomodation Costs,
01/04/2021,60052518,SI-427,400,Elite Housing & Support,RC300384,,Care Leavers,R4900,Accomodation Costs,
01/04/2021,60052536,20-420,5209,Elms Landscaping Design Ltd,RC508065,763 6001 46,Capital Programme Places - Culture & Leisure,C1016,Building Works,
01/04/2021,60052550,20-434,625,Elms Landscaping Design Ltd,RC508065,763 6001 46,Oakham Castle,R2075,Grounds Maintenance - Contract,
01/04/2021,60052485,INV-008193,1316,EME Power Systems Ltd,RC507598,82 8914 007,Oakham Enterprise Park,R2004,R & M - Programmed,
01/04/2021,60052563,Redacted Personal Data,105.3,Redacted Personal Data,RC301599,,Childrens Social Care Staffing,R3400,Car Mileage,
01/04/2021,60052398,INV-2636,3127.89,emPSN,RC300371,897 4036 81,Capital Programme Places - Economic Development,C1010,Capital Fees & Charges,
01/04/2021,60052816,RUTCC055,6114,Enterprise Car Club,RC509499,215 5573 14,Pool Cars and Car Hire,R3207,Transport Contract,
21/04/2021,60053090,13000657850,67.58,Enterprise Car Club,RC509499,215 5573 14,Pool Cars and Car Hire,R3207,Transport Contract,
01/04/2021,60052523,26617566,542.18,Enterprise Rent-A-Car UK Ltd,RC506800,641634450,Pool Cars and Car Hire,R3200,Hire of Vehicles & Plant,
01/04/2021,60052665,A00005809T,1109,Environment Agency,RC501563,662 4901 34,Waste Management,R4401,Fees and Charges,
01/04/2021,60052666,A00005810T,1109,Environment Agency,RC501563,662 4901 34,Waste Management,R4401,Fees and Charges,
02/04/2021,60052758,011883144530 - H19AB3DDC5,656.85,Eon Energy UK Plc,RC501484,559 0978 89,Parking,R2100,Electricity,
02/04/2021,60052759,012332466340 - H19AB3F7A3,191.07,Eon Energy UK Plc,RC501484,559 0978 89,CCTV,R2100,Electricity,
16/04/2021,3747822,Redacted Personal Data,5,Redacted Personal Data,RC301476,,Unaccompanied Asylum Seekers - Over 18,R6292,Section 24 Payments,
29/04/2021,3748217,Redacted Personal Data,5,Redacted Personal Data,RC301476,,Unaccompanied Asylum Seekers - Over 18,R6292,Section 24 Payments,
01/04/2021,60052461,EB282216 - 31/3/21,2188.68,Eric's Taxis,RC501572,610 7471 65,SEN Transport,R3200,Hire of Vehicles & Plant,
01/04/2021,60052453,5996720,79.25,Espo,RC502268,705 1805 61,Stationery,R4308,Stationery,
01/04/2021,60052945,6001805,187.45,Espo,RC502268,705 1805 61,Children's Centres - Revenue,R4401,Fees and Charges,
09/04/2021,60053022,6003881,39.2,Espo,RC502268,705 1805 61,Stationery,R4308,Stationery,
12/04/2021,60053023,6005088,76,Espo,RC502268,705 1805 61,Children's Centres - Revenue,R4401,Fees and Charges,
14/04/2021,60053251,6006819,49.9,Espo,RC502268,705 1805 61,Day Opportunities Services,R4000,Furniture & Equipment,
01/04/2021,60052352,G1163680,444.46,Espo (Gas),RC501573,705180561,Oakham Castle,R2101,Gas,
16/04/2021,60053030,G1164706,328.56,Espo (Gas),RC501573,705180561,Libraries,R2101,Gas,
16/04/2021,60053031,G1164707,171.81,Espo (Gas),RC501573,705180561,Early Intervention Youth Services,R2101,Gas,
16/04/2021,60053032,G1164708,1473.87,Espo (Gas),RC501573,705180561,Admin Buildings,R2101,Gas,
16/04/2021,60053033,G1164709,1076.13,Espo (Gas),RC501573,705180561,Admin Buildings,R2101,Gas,
16/04/2021,60053034,G1164705,535.61,Espo (Gas),RC501573,705180561,Oakham Castle,R2101,Gas,
16/04/2021,60053035,G1164710,70.78,Espo (Gas),RC501573,705180561,Libraries,R2101,Gas,
16/04/2021,60053036,G1164711,2096.65,Espo (Gas),RC501573,705180561,Oakham Enterprise Park,R2101,Gas,
16/04/2021,60053037,G1164712,863.67,Espo (Gas),RC501573,705180561,The King Centre,R2101,Gas,
27/04/2021,60053232,G1166651,206.12,Espo (Gas),RC501573,705180561,Admin Buildings,R2101,Gas,
09/04/2021,60052643,Redacted Personal Data,210,Essendine Parish Council,RC501575,,S106 Contributions,R5017,TPP - Other,
18/04/2021,60053071,EFW214755-0 / 936524,209.57,Everflow Limited,RC301184,216493600,The King Centre,R2401,Water Services,
08/04/2021,60052788,INV-439,500,F & P Partners Ltd T/A P & F Commercial,RC300516,244 3330 35,The King Centre,R4400,Professional Fees,
26/04/2021,60053182,INV-441,1000,F & P Partners Ltd T/A P & F Commercial,RC300516,244 3330 35,Oakham Enterprise Park,R4901,Commission,
01/04/2021,60052771,INV-37577,210,First Class Tailored Solutions Ltd,RC301036,153 9852 79,SEN (DSG),R4400,Professional Fees,
01/04/2021,60052772,INV-37580,105,First Class Tailored Solutions Ltd,RC301036,153 9852 79,SEN (DSG),R4400,Professional Fees,
01/04/2021,60052773,INV-37584,105,First Class Tailored Solutions Ltd,RC301036,153 9852 79,SEN (DSG),R4400,Professional Fees,
01/04/2021,60052435,UK136842,238.7,Flowbird Smart City UK Ltd,RC301556,GB821077453,Parking,R5017,TPP - Other,
01/04/2021,60052978,Tx00000260,654.4,Fostering Network,RC501650,231 6335 90,Placements,R4701,Subscriptions,
01/04/2021,60052916,315574,3510,Fostering Solutions Ltd,RC507230,,Placements,R5017,TPP - Other,
01/04/2021,60052031,1249,44.42,G & R Gregg,RC501667,,Oakham Enterprise Park,R2004,R & M - Programmed,
01/04/2021,60052032,1250,40,G & R Gregg,RC501667,,Central Maintenance,R2003,R & M - Emergency Works,
26/04/2021,60053179,1254,40,G & R Gregg,RC501667,,Central Maintenance,R2003,R & M - Emergency Works,
05/04/2021,60052533,INV-0515,489.95,G D Sleath Electronics Ltd,RC508495,775 4891 75,The King Centre,R2003,R & M - Emergency Works,
07/04/2021,60052617,81216,2520,G2 Recruitment Limited - a division of G2V Recruitment Group Limited,RC300732,182 8193 83,Property Services,R1100,Agency Staff,
14/04/2021,60052948,81509,1120,G2 Recruitment Limited - a division of G2V Recruitment Group Limited,RC300732,182 8193 83,Property Services,R1100,Agency Staff,
21/04/2021,60053103,81792,1400,G2 Recruitment Limited - a division of G2V Recruitment Group Limited,RC300732,182 8193 83,Property Services,R1100,Agency Staff,
28/04/2021,60053252,82138,1400,G2 Recruitment Limited - a division of G2V Recruitment Group Limited,RC300732,182 8193 83,Property Services,R1100,Agency Staff,
09/04/2021,60052644,Redacted Personal Data,5322.68,Great Casterton Parish Council,RC501728,,S106 Contributions,R5017,TPP - Other,
01/04/2021,60052944,166196,92.6,Greenline Service & Supplies Ltd,RC501732,610 5559 61,Educational Transport Fleet,R4201,Uniforms,
03/04/2021,60052661,1276 - 03/04/21,166.62,Greetham Village Shop,RC501735,973 8320 94,Prison Library Service - Stocken,R4310,Newspapers and Magazines,
01/04/2021,60052399,4280,800,GTE Electrical Services Ltd,RC507859,892 4700 07,Oakham Enterprise Park,R2004,R & M - Programmed,
07/04/2021,60052597,4288,60,GTE Electrical Services Ltd,RC507859,892 4700 07,The King Centre,R2003,R & M - Emergency Works,
07/04/2021,60052598,4289,110,GTE Electrical Services Ltd,RC507859,892 4700 07,Central Maintenance,R2003,R & M - Emergency Works,
07/04/2021,60052599,4290,30,GTE Electrical Services Ltd,RC507859,892 4700 07,The King Centre,R2003,R & M - Emergency Works,
26/04/2021,60053185,4312,60,GTE Electrical Services Ltd,RC507859,892 4700 07,Ashwell Road Business Units,R2003,R & M - Emergency Works,
13/04/2021,60052855,19710,3190,Guardian Water Treatment Ltd,RC301328,749341022,Central Maintenance,R2004,R & M - Programmed,
01/04/2021,60052302,6705,2550,H2O Ltd,RC301718,874097783,Oakham Enterprise Park,R2003,R & M - Emergency Works,
01/04/2021,60052637,361295,1700,HAS Technology Group,RC503291,884 2460 06,Internal Homecare Staffing,R4535,Computing - Licences,
01/04/2021,60052780,361972,836.77,HAS Technology Group,RC503291,884 2460 06,Internal Homecare Staffing,R4535,Computing - Licences,
12/04/2021,3747842,Redacted Personal Data,3864,Redacted Personal Data,RC506747,,ASC S&R DPs PD,R6280,Direct Payments,
01/04/2021,60052161,1011202575,1652.4,Hays Specialist Recruitment Ltd,RC301540,GB773695871,Property Services,R1100,Agency Staff,
01/04/2021,60052257,1011211164,80,Hays Specialist Recruitment Ltd,RC301540,GB773695871,Pupil Premium Plus,R4401,Fees and Charges,
01/04/2021,60052360,1011221081,1652.4,Hays Specialist Recruitment Ltd,RC301540,GB773695871,Property Services,R1100,Agency Staff,
01/04/2021,60052423,1011224865,40,Hays Specialist Recruitment Ltd,RC301540,GB773695871,Pupil Premium Plus,R4401,Fees and Charges,
01/04/2021,60052451,1011228754,80,Hays Specialist Recruitment Ltd,RC301540,GB773695871,Pupil Premium Plus,R4401,Fees and Charges,
01/04/2021,60052530,1011234094,991.44,Hays Specialist Recruitment Ltd,RC301540,GB773695871,Pupil Premium Plus,R4401,Fees and Charges,
06/04/2021,60052775,INV527371,382.5,Health Management Ltd,RC509363,792 2506 21,Human Resources,R4400,Professional Fees,
09/04/2021,60052682,J Coxhead,365,HM Courts & Tribunals Service,RC507754,,Community Care Finance,R4401,Fees and Charges,
20/04/2021,60052972,267PH00143956 - Tax & NI Mar 21,4098,HM Revenue & Customs,RC502557,,External Levies,R5013,TPP - Government Departments,
12/04/2021,3747918,Redacted Personal Data,276,Redacted Personal Data,RC300650,,ASC S&R DPs MH,R6280,Direct Payments,
06/04/2021,3747652,36593/34,2161.02,Holme Lodge,RC300450,,Physical Disability,R5028,TPP - Residental Care,
19/04/2021,3748115,36860/31,2161.02,Holme Lodge,RC300450,,Physical Disability,R5028,TPP - Residental Care,
01/04/2021,60052465,259,6951.38,Home Straight Partnership Ltd,RC508404,,ASC S&R Homecare OP,R5029,TPP - Home Care,
04/04/2021,60052867,260,8135.6,Home Straight Partnership Ltd,RC508404,,ASC S&R Homecare OP,R5029,TPP - Home Care,
11/04/2021,60052868,261,7963.6,Home Straight Partnership Ltd,RC508404,,ASC S&R Homecare OP,R5029,TPP - Home Care,
18/04/2021,60053029,262,6935.9,Home Straight Partnership Ltd,RC508404,,ASC S&R Homecare OP,R5029,TPP - Home Care,
01/04/2021,60052434,66833294,30353.13,Hoople Ltd,RC509298,113 9813 20,IT Operational Support,R4534,Computing - Maintenance Agreements,
01/04/2021,60052798,66833336,160,Hoople Ltd,RC509298,113 9813 20,Finance,R4400,Professional Fees,
01/04/2021,60052537,20627,14897.1,Horizon Care & Education Group Ltd,RC502356,284410509,Placements,R5017,TPP - Other,
01/04/2021,60052715,20432,9995,Housing Partners Ltd,RC300542,834 8582 94,Homelessness,R5016,TPP - Private Contractors,
01/04/2021,60051714,16862,219.6,Ian Bryers Car & Commercial Repairs,RC502875,550 9095 37,Educational Transport Fleet,R3004,Vehicle Maintenance,
01/04/2021,60052303,16884,624.73,Ian Bryers Car & Commercial Repairs,RC502875,550 9095 37,Educational Transport Fleet,R3004,Vehicle Maintenance,
01/04/2021,60052652,16904,139.6,Ian Bryers Car & Commercial Repairs,RC502875,550 9095 37,Educational Transport Fleet,R3004,Vehicle Maintenance,
02/04/2021,60053137,16919,625.58,Ian Bryers Car & Commercial Repairs,RC502875,550 9095 37,Educational Transport Fleet,R3004,Vehicle Maintenance,
12/04/2021,60053138,16920,100,Ian Bryers Car & Commercial Repairs,RC502875,550 9095 37,Educational Transport Fleet,R3004,Vehicle Maintenance,
12/04/2021,60053139,16921,156.31,Ian Bryers Car & Commercial Repairs,RC502875,550 9095 37,Educational Transport Fleet,R3004,Vehicle Maintenance,
14/04/2021,60053140,16922,24.5,Ian Bryers Car & Commercial Repairs,RC502875,550 9095 37,Educational Transport Fleet,R3004,Vehicle Maintenance,
19/04/2021,60053141,16923,45,Ian Bryers Car & Commercial Repairs,RC502875,550 9095 37,Educational Transport Fleet,R3004,Vehicle Maintenance,
13/04/2021,60052848,7032970,600,Idox Software Ltd,RC506407,766 8008 04,Elections - Police & Crime Commissioner,R4300,Printing & Photocopying,
14/04/2021,60052930,7032991,950,Idox Software Ltd,RC506407,766 8008 04,IT Operational Support,R4400,Professional Fees,
04/04/2021,60052534,I300828,204.6,Iliffe Media Publishing Ltd,RC501920,261 6151 24,Highways Management,R4317,Non Staff Advertising,
04/04/2021,60052549,I300827,91.8,Iliffe Media Publishing Ltd,RC501920,261 6151 24,Development Control,R4317,Non Staff Advertising,
11/04/2021,60052701,I303191,186,Iliffe Media Publishing Ltd,RC501920,261 6151 24,Drainage and Jetting,R4317,Non Staff Advertising,
11/04/2021,60052702,I303192,201.5,Iliffe Media Publishing Ltd,RC501920,261 6151 24,Highways Management,R4317,Non Staff Advertising,
11/04/2021,60052703,I303193,105,Iliffe Media Publishing Ltd,RC501920,261 6151 24,Communication,R4515,Publicity,
11/04/2021,60052728,I303190,55.08,Iliffe Media Publishing Ltd,RC501920,261 6151 24,Development Control,R4317,Non Staff Advertising,
18/04/2021,60053135,I305673,146.88,Iliffe Media Publishing Ltd,RC501920,261 6151 24,Development Control,R4317,Non Staff Advertising,
25/04/2021,60053176,I308848,186,Iliffe Media Publishing Ltd,RC501920,261 6151 24,Highways Management,R4317,Non Staff Advertising,
25/04/2021,60053177,I308849,170.5,Iliffe Media Publishing Ltd,RC501920,261 6151 24,Highways Management,R4317,Non Staff Advertising,
25/04/2021,60053187,I308847,238.68,Iliffe Media Publishing Ltd,RC501920,261 6151 24,Development Control,R4317,Non Staff Advertising,
01/04/2021,60052815,INV0000001534,535.5,Imperial Civil Enforcement Solutions Ltd,RC501321,794 3960 79,Parking,R5017,TPP - Other,
06/04/2021,60052700,33834630,78.42,Initial Washroom Solutions,RC501850,209 9189 33,The King Centre,R4000,Furniture & Equipment,
12/04/2021,60052861,33849345,76.25,Initial Washroom Solutions,RC501850,209 9189 33,Oakham Enterprise Park,R2700,Contract Cleaning,
14/04/2021,60052991,33851153,94.97,Initial Washroom Solutions,RC501850,209 9189 33,The King Centre,R2004,R & M - Programmed,
01/04/2021,60052511,1201,750,Inspire Education Group,RC301650,135551130,New Apprenticeships,R5022,TPP - Schools & Colleges,
13/04/2021,60052989,1533,2400,Intelligent Plans and Examinations (IPE) Ltd,RC301628,237 7641 84,Local Plan Production,R1650,Training Expenses,
01/04/2021,60053227,28378,1030,ITSO Ltd,RC507340,765 6393 88,Concessionary Travel,R6270,Concessionary fares,
09/04/2021,3747552,Redacted Personal Data,249,Redacted Personal Data,RC507010,,Placements,R5017,TPP - Other,
09/04/2021,3747571,Redacted Personal Data,218.81,Redacted Personal Data,RC507010,,Placements,R5017,TPP - Other,
16/04/2021,3747773,Redacted Personal Data,249,Redacted Personal Data,RC507010,,Placements,R5017,TPP - Other,
16/04/2021,3747795,Redacted Personal Data,218.81,Redacted Personal Data,RC507010,,Placements,R5017,TPP - Other,
22/04/2021,3748018,Redacted Personal Data,249,Redacted Personal Data,RC507010,,Placements,R5017,TPP - Other,
22/04/2021,3748037,Redacted Personal Data,218.81,Redacted Personal Data,RC507010,,Placements,R5017,TPP - Other,
29/04/2021,3748230,Redacted Personal Data,249,Redacted Personal Data,RC507010,,Placements,R5017,TPP - Other,
29/04/2021,3748249,Redacted Personal Data,218.81,Redacted Personal Data,RC507010,,Placements,R5017,TPP - Other,
12/04/2021,3747838,Redacted Personal Data,138,Redacted Personal Data,RC506917,,Carer Support,R6280,Direct Payments,
09/04/2021,3747558,Redacted Personal Data,249,Redacted Personal Data,RC301144,,Placements,R5017,TPP - Other,
09/04/2021,3747577,Redacted Personal Data,124.74,Redacted Personal Data,RC301144,,Placements,R5017,TPP - Other,
16/04/2021,3747780,Redacted Personal Data,249,Redacted Personal Data,RC301144,,Placements,R5017,TPP - Other,
16/04/2021,3747781,Redacted Personal Data,249,Redacted Personal Data,RC301144,,Placements,R5017,TPP - Other,
16/04/2021,3747801,Redacted Personal Data,124.74,Redacted Personal Data,RC301144,,Placements,R5017,TPP - Other,
22/04/2021,3748024,Redacted Personal Data,249,Redacted Personal Data,RC301144,,Placements,R5017,TPP - Other,
22/04/2021,3748043,Redacted Personal Data,124.74,Redacted Personal Data,RC301144,,Placements,R5017,TPP - Other,
29/04/2021,3748236,Redacted Personal Data,249,Redacted Personal Data,RC301144,,Placements,R5017,TPP - Other,
29/04/2021,3748255,Redacted Personal Data,124.74,Redacted Personal Data,RC301144,,Placements,R5017,TPP - Other,
12/04/2021,3747909,Redacted Personal Data,184,Redacted Personal Data,RC300333,,ASC S&R DPs PD,R6280,Direct Payments,
16/04/2021,60053014,RCC08,160,Jane Young T/as Welland Good,RC301249,,Education Improvement Consultancy,R4401,Fees and Charges,
12/04/2021,3747836,Redacted Personal Data,184,Redacted Personal Data,RC506150,,Carer Support,R6280,Direct Payments,
01/04/2021,60052849,315758,2997.55,Jay Fostering Limited,RC501901,,Placements,R5017,TPP - Other,
01/04/2021,60052850,315760,3171.77,Jay Fostering Limited,RC501901,,Placements,R5017,TPP - Other,
01/04/2021,60052858,315836,3428.7,Jay Fostering Limited,RC501901,,Placements,R5017,TPP - Other,
01/04/2021,60052859,315837,3428.7,Jay Fostering Limited,RC501901,,Placements,R5017,TPP - Other,
01/04/2021,60052860,315853,3428.7,Jay Fostering Limited,RC501901,,Placements,R5017,TPP - Other,
01/04/2021,60052527,135538,970.71,Jensen Fire & Security Systems Ltd,RC300385,313 1103 33,The King Centre,R2004,R & M - Programmed,
01/04/2021,60052301,370,22255.33,JR Education Ltd t/a Meadow View Farm School,RC300789,,SEN (DSG),R5011,TPP - Local Authorities,
09/04/2021,3747590,Redacted Personal Data,206,Redacted Personal Data,RC502377,,Placements,R5017,TPP - Other,
16/04/2021,3747814,Redacted Personal Data,206,Redacted Personal Data,RC502377,,Placements,R5017,TPP - Other,
22/04/2021,3748056,Redacted Personal Data,206,Redacted Personal Data,RC502377,,Placements,R5017,TPP - Other,
29/04/2021,3748268,Redacted Personal Data,206,Redacted Personal Data,RC502377,,Placements,R5017,TPP - Other,
12/04/2021,3747892,Redacted Personal Data,506,Redacted Personal Data,RC507016,,Carer Support,R6280,Direct Payments,
12/04/2021,3747844,Redacted Personal Data,500,Redacted Personal Data,RC508687,,ASC S&R DPs LD,R6280,Direct Payments,
29/04/2021,3748283,Redacted Personal Data,600,Redacted Personal Data,RC300200,,Aiming High,R4400,Professional Fees,
29/04/2021,3748284,Redacted Personal Data,600,Redacted Personal Data,RC300200,,Aiming High,R4400,Professional Fees,
01/04/2021,60052559,2470-01/04/2021,1875,Kainos Software Limited,RC301586,888810569,Highways Management,R4535,Computing - Licences,
09/04/2021,60052761,EC20660039,263.32,KCOM Group Plc,RC508092,647 2351 37,IT Operational Support,R4537,Computing - Internet,
07/04/2021,60052778,162841,77.55,Keltic,RC501956,754 0807 33,Parking,R4201,Uniforms,
19/04/2021,60052986,CIL Compensatory Payment,3806.75,Ketton Parish Council,RC501969,,Planning Policy,R4961,Compensation Payments,
09/04/2021,3747618,DAF Payment - OT,615,Ketton Playgroup,RC501972,,3 & 4 Year Old Nursery Funding,R5020,TPP - Nursery Provision,
16/04/2021,3747988,3 and 4 Year Funding - April 2021 Claim and March 2021 Adjustment,4788.05,Ketton Playgroup,RC501972,,3 & 4 Year Old Nursery Funding,R5020,TPP - Nursery Provision,
16/04/2021,3747989,3 and 4 Year Funding - April 2021 Claim and March 2021 Adjustment,5366.9,Ketton Road Day Nursery,RC501953,,3 & 4 Year Old Nursery Funding,R5020,TPP - Nursery Provision,
01/04/2021,60052668,27005,3082.33,Key 2 Futures Ltd,RC506973,841 788494,Placements,R4900,Accomodation Costs,
06/04/2021,3747653,36594/35,4672.58,Kisimul Group Ltd,RC506920,,Learning Disability,R5028,TPP - Residental Care,
19/04/2021,3748116,36861/32,4672.58,Kisimul Group Ltd,RC506920,,Learning Disability,R5028,TPP - Residental Care,
19/04/2021,60053120,1B - VISIONS,25,Kleena Windows,RC501990,,Children's Centres - Revenue,R2700,Contract Cleaning,
21/04/2021,60053126,INV096397,305.16,Knighton Janitorial Ltd,RC505319,799 6985 18,Admin Buildings,R4000,Furniture & Equipment,
06/04/2021,3747625,36576/7,949,Kross Investments Ltd T/A Belton House Retirement Home,RC502319,,Older People,R5025,Short Term Care,
06/04/2021,3747626,36576/8,1022,Kross Investments Ltd T/A Belton House Retirement Home,RC502319,,Older People,R5028,TPP - Residental Care,
06/04/2021,3747627,36576/9,1022,Kross Investments Ltd T/A Belton House Retirement Home,RC502319,,Older People,R5028,TPP - Residental Care,
06/04/2021,3747628,36576/10,876,Kross Investments Ltd T/A Belton House Retirement Home,RC502319,,Older People,R5025,Short Term Care,
06/04/2021,3747629,36576/11,956,Kross Investments Ltd T/A Belton House Retirement Home,RC502319,,Older People,R5028,TPP - Residental Care,
06/04/2021,3747630,36576/12,1022,Kross Investments Ltd T/A Belton House Retirement Home,RC502319,,Older People,R5028,TPP - Residental Care,
06/04/2021,3747631,36576/13,1022,Kross Investments Ltd T/A Belton House Retirement Home,RC502319,,Older People,R5025,Short Term Care,
06/04/2021,3747632,36576/14,956,Kross Investments Ltd T/A Belton House Retirement Home,RC502319,,Older People,R5028,TPP - Residental Care,
19/04/2021,3748091,36815/7,1022,Kross Investments Ltd T/A Belton House Retirement Home,RC502319,,ASC P&S Respite OP,R5018,Respite,
19/04/2021,3748092,36815/8,1022,Kross Investments Ltd T/A Belton House Retirement Home,RC502319,,Older People,R5028,TPP - Residental Care,
19/04/2021,3748093,36815/9,1022,Kross Investments Ltd T/A Belton House Retirement Home,RC502319,,Older People,R5028,TPP - Residental Care,
19/04/2021,3748094,36815/10,1022,Kross Investments Ltd T/A Belton House Retirement Home,RC502319,,Older People,R5025,Short Term Care,
19/04/2021,3748095,36815/11,956,Kross Investments Ltd T/A Belton House Retirement Home,RC502319,,Older People,R5028,TPP - Residental Care,
01/04/2021,60052369,SCN-102,-219,Kross Investments Ltd T/A Belton House Retirement Home,RC502319,,Interim Beds (CCG),R5028,TPP - Residental Care,
01/04/2021,60052370,SCN-103,-1168,Kross Investments Ltd T/A Belton House Retirement Home,RC502319,,Interim Beds (CCG),R5028,TPP - Residental Care,
01/04/2021,60052371,SI-1076,2044,Kross Investments Ltd T/A Belton House Retirement Home,RC502319,,Interim Beds (CCG),R5028,TPP - Residental Care,
01/04/2021,60052381,SI-1073,956,Kross Investments Ltd T/A Belton House Retirement Home,RC502319,,Interim Beds (CCG),R5028,TPP - Residental Care,
01/04/2021,60052696,SI-1094,2409,Kross Investments Ltd T/A Belton House Retirement Home,RC502319,,Interim Beds (CCG),R5028,TPP - Residental Care,
01/04/2021,60052393,21-Feb,7839.67,L Jones Surveying Ltd,RC300181,265 1516 11,Building Control,R4401,Fees and Charges,
08/04/2021,60052729,INVJN188,1150,Landmark Chambers,RC301154,,Legal Services,R4400,Professional Fees,
16/04/2021,3747990,3 and 4 Year Funding - April 2021 Claim and March 2021 Adjustment,4720.73,Langham Nursery,RC501101,,3 & 4 Year Old Nursery Funding,R5020,TPP - Nursery Provision,
06/04/2021,3747705,36581/87,3238.4,Langley House Trust,RC300376,,Mental Health,R5028,TPP - Residental Care,
19/04/2021,3748166,36864/82,3238.4,Langley House Trust,RC300376,,Mental Health,R5028,TPP - Residental Care,
01/04/2021,60052334,72472,26.98,Latitude Mapping Ltd,RC502020,676 1882 93,Libraries,R4309,Books,
12/04/2021,3747861,Redacted Personal Data,161,Redacted Personal Data,RC300653,,Carer Support,R6280,Direct Payments,
01/04/2021,60052555,7951,5945.5,Lawson's of Corby Ltd,RC506128,937 1394 07,Home to School Transport,R3207,Transport Contract,
21/04/2021,60053088,88440190,15900,Leicester City Council,RC502036,115 3370 04,"OT's, Aids & Equipment",R5012,TPP - Health Authorities,
09/04/2021,3747607,Redacted Personal Data,445,Leicester Lettings Ltd,RC506055,108245630,Care Leavers,R4900,Accomodation Costs,
29/04/2021,3748195,Redacted Personal Data,435,Leicester Lettings Ltd,RC506055,108245630,Care Leavers,R4900,Accomodation Costs,
29/04/2021,3748215,Redacted Personal Data,415,Leicester Lettings Ltd,RC506055,108245630,Unaccompanied Asylum Seekers - Over 18,R4900,Accomodation Costs,
01/04/2021,60052557,5267,60,Leicester LGBT Centre,RC301107,,Early Intervention Youth Services,R4401,Fees and Charges,
01/04/2021,60052558,5268,270,Leicester LGBT Centre,RC301107,,Early Intervention Youth Services,R4401,Fees and Charges,
01/04/2021,60052954,5250,60,Leicester LGBT Centre,RC301107,,Early Intervention Youth Services,R4401,Fees and Charges,
01/04/2021,60053110,5249,60,Leicester LGBT Centre,RC301107,,Early Intervention Youth Services,R4401,Fees and Charges,
06/04/2021,3747654,36595/36,1276,Leicestershire County Care Ltd,RC509037,,Older People,R5028,TPP - Residental Care,
19/04/2021,3748117,36870/33,1276,Leicestershire County Care Ltd,RC509037,,Older People,R5028,TPP - Residental Care,
01/04/2021,60052454,100028022,275,Leicestershire County Council (Treasurers Dept),RC502058,115 3371 02,Covid_19,R4300,Printing & Photocopying,
01/04/2021,60052455,100028040,90,Leicestershire County Council (Treasurers Dept),RC502058,115 3371 02,Communication,R4400,Professional Fees,
01/04/2021,60052456,100028041,100,Leicestershire County Council (Treasurers Dept),RC502058,115 3371 02,Local Plan Production,R4300,Printing & Photocopying,
01/04/2021,60052600,100024708,136825,Leicestershire County Council (Treasurers Dept),RC502058,115 3371 02,DOLS,R5011,TPP - Local Authorities,
07/04/2021,60052717,100028345,120,Leicestershire County Council (Treasurers Dept),RC502058,115 3371 02,Human Resources,R1700,Staff Advertising Costs,
01/04/2021,60053047,100028245,154286,Leicestershire County Council (Treasurers Dept),RC502058,115 3371 02,Public Health Department,R5017,TPP - Other,
16/04/2021,60053083,100030757,537,Leicestershire County Council (Treasurers Dept),RC502058,115 3371 02,Human Resources,R1601,CRB Police Checks,
01/04/2021,60053097,100028249,39010,Leicestershire County Council (Treasurers Dept),RC502058,115 3371 02,Covid_19,R5011,TPP - Local Authorities,
22/04/2021,60053174,100032584,8299.62,Leicestershire County Council (Treasurers Dept),RC502058,115 3371 02,"Training, Confs & Seminars",R1650,Training Expenses,
13/04/2021,3747745,April 2021 dripfeed - High Needs Block Allocation,648.55,Leighfield Academy,RC507697,,SEN (DSG),R6300,Schools - Budget Share,
01/04/2021,60052768,SIN00473 CK SUM21,29950,Lewis Charlton Group of Learning Centres,RC301707,,SEN (DSG),R5017,TPP - Other,
13/04/2021,60052912,217944,14.6,LGSS Law Ltd,RC301174,206 700 934,Legal Services,R4400,Professional Fees,
13/04/2021,60052914,217945,7.3,LGSS Law Ltd,RC301174,206 700 934,Legal Services,R4400,Professional Fees,
28/04/2021,60053243,M2021-09,250,LIEM,RC502087,,Libraries,R4701,Subscriptions,
20/04/2021,60053114,10121373,22938.5,Lincolnshire County Council,RC502090,129 3923 55,Adoption,R5011,TPP - Local Authorities,
01/04/2021,60053039,4000053458,236,Lincs Community Health Services NHST,RC508052,654 4409 75,Sexual Health,R5017,TPP - Other,
07/04/2021,60052776,DFE80203344,13000,Link Treasury Services Ltd,RC506349,191229017,Corporate Financial Expenses,R4400,Professional Fees,
01/04/2021,60052526,28270,6120,Liquidlogic,RC508957,927 4382 06,Safeguarding QA,R4400,Professional Fees,
16/04/2021,3747973,2 Year Funding - April 2021 Claim and March 2021 Adjustment,787.7,Little Angels Uppingham Ltd,RC505798,,2 Year Old Nursery Funding,R5020,TPP - Nursery Provision,
16/04/2021,3747991,3 and 4 Year Funding - April 2021 Claim and March 2021 Adjustment,9643.59,Little Angels Uppingham Ltd,RC505798,,3 & 4 Year Old Nursery Funding,R5020,TPP - Nursery Provision,
16/04/2021,3747987,3 and 4 Year Funding - April 2021 Claim and March 2021 Adjustment,1841.1,Little Ospreys,RC501514,,3 & 4 Year Old Nursery Funding,R5020,TPP - Nursery Provision,
16/04/2021,3747993,3 and 4 Year Funding - April 2021 Claim and March 2021 Adjustment,4693.4,Little Saints,RC508480,,3 & 4 Year Old Nursery Funding,R5020,TPP - Nursery Provision,
09/04/2021,60053060,40108773,7396.32,Local Government Association,RC502106,676 0781 07,Corporate Subscriptions,R4701,Subscriptions,
12/04/2021,60052714,"13 Priors Close, Oakham",515.12,Longhurst Group,RC301347,763 7502 19,Homelessness,R5017,TPP - Other,
19/04/2021,3748009,Redacted Personal Data,496.76,Longhurst Group Ltd,RC502529,326027036,Care Leavers,R4900,Accomodation Costs,
12/04/2021,60052852,SINVFT00007776,3546,Longhurst Group Ltd,RC502529,326027036,"OT's, Aids & Equipment",R4000,Furniture & Equipment,
13/04/2021,60052854,13944,208,Longhurst Group Ltd,RC502529,326027036,BCF: Assistive Technology,R4000,Furniture & Equipment,
01/04/2021,60052856,SINVFT00007534,2439.98,Longhurst Group Ltd,RC502529,326027036,BCF: Assistive Technology,R4401,Fees and Charges,
01/04/2021,60052857,SINVFT00007535,4416.25,Longhurst Group Ltd,RC502529,326027036,"OT's, Aids & Equipment",R5017,TPP - Other,
26/04/2021,60053186,SINVFT00007951,1215.27,Longhurst Group Ltd,RC502529,326027036,BCF: Assistive Technology,R4000,Furniture & Equipment,
06/04/2021,3747655,36596/37,1027.94,Longueville Court Care Home,RC509439,,Older People,R5034,TPP - Nursing Care,
19/04/2021,3748118,36871/34,1027.94,Longueville Court Care Home,RC509439,,Older People,R5034,TPP - Nursing Care,
12/04/2021,3747899,Redacted Personal Data,1663.14,Redacted Personal Data,RC506457,,ASC S&R DPs PD,R6280,Direct Payments,
23/04/2021,60053171,Redacted Personal Data,22.41,Redacted Personal Data,RC301596,,Childrens Social Care Staffing,R3400,Car Mileage,
12/04/2021,3747835,Redacted Personal Data,644,Redacted Personal Data,RC301325,,ASC S&R DPs PD,R6280,Direct Payments,
16/04/2021,3748007,Redacted Personal Data,523.6,Redacted Personal Data,RC508806,,3 & 4 Year Old Nursery Funding,R5020,TPP - Nursery Provision,
09/04/2021,3747549,Redacted Personal Data,145,Redacted Personal Data,RC502648,,Placements,R5017,TPP - Other,
09/04/2021,3747569,Redacted Personal Data,218.81,Redacted Personal Data,RC502648,,Placements,R5017,TPP - Other,
09/04/2021,3747602,Redacted Personal Data,15,Redacted Personal Data,RC502648,,Placements,R6291,Section 23 Payments,
16/04/2021,3747771,Redacted Personal Data,145,Redacted Personal Data,RC502648,,Placements,R5017,TPP - Other,
16/04/2021,3747793,Redacted Personal Data,218.81,Redacted Personal Data,RC502648,,Placements,R5017,TPP - Other,
22/04/2021,3748016,Redacted Personal Data,145,Redacted Personal Data,RC502648,,Placements,R5017,TPP - Other,
22/04/2021,3748035,Redacted Personal Data,218.81,Redacted Personal Data,RC502648,,Placements,R5017,TPP - Other,
29/04/2021,3748227,Redacted Personal Data,145,Redacted Personal Data,RC502648,,Placements,R5017,TPP - Other,
29/04/2021,3748247,Redacted Personal Data,218.81,Redacted Personal Data,RC502648,,Placements,R5017,TPP - Other,
01/04/2021,60052664,40666,425,MA Education Ltd,RC502140,844127044,SEN Operations,R1700,Staff Advertising Costs,
04/04/2021,60052594,103964,1445.79,Macildowie Associates Limited,RC300706,694 2566 96,Finance,R1100,Agency Staff,
04/04/2021,60052595,103965,1445.79,Macildowie Associates Limited,RC300706,694 2566 96,Finance,R1100,Agency Staff,
11/04/2021,60052840,104038,1445.79,Macildowie Associates Limited,RC300706,694 2566 96,Finance,R1100,Agency Staff,
18/04/2021,60053122,104118,1445.79,Macildowie Associates Limited,RC300706,694 2566 96,Finance,R1100,Agency Staff,
25/04/2021,60053198,104201,1445.79,Macildowie Associates Limited,RC300706,694 2566 96,Finance,R1100,Agency Staff,
06/04/2021,3747656,36568/38,1022,Manton Hall (Foundation),RC502541,,Older People,R5028,TPP - Residental Care,
06/04/2021,3747657,36568/39,956,Manton Hall (Foundation),RC502541,,Older People,R5028,TPP - Residental Care,
06/04/2021,3747658,36568/40,1022,Manton Hall (Foundation),RC502541,,Older People,R5025,Short Term Care,
06/04/2021,3747659,36568/41,650,Manton Hall (Foundation),RC502541,,Older People,R5028,TPP - Residental Care,
06/04/2021,3747660,36568/42,1022,Manton Hall (Foundation),RC502541,,Older People,R5028,TPP - Residental Care,
06/04/2021,3747661,36568/43,956,Manton Hall (Foundation),RC502541,,Older People,R5028,TPP - Residental Care,
06/04/2021,3747662,36568/44,956,Manton Hall (Foundation),RC502541,,Older People,R5028,TPP - Residental Care,
06/04/2021,3747663,36568/45,1022,Manton Hall (Foundation),RC502541,,Older People,R5028,TPP - Residental Care,
06/04/2021,3747664,36568/46,1022,Manton Hall (Foundation),RC502541,,Older People,R5028,TPP - Residental Care,
06/04/2021,3747665,36568/47,511,Manton Hall (Foundation),RC502541,,Older People,R5028,TPP - Residental Care,
06/04/2021,3747666,36568/48,1100,Manton Hall (Foundation),RC502541,,Older People,R5028,TPP - Residental Care,
06/04/2021,3747667,36568/49,1022,Manton Hall (Foundation),RC502541,,Older People,R5028,TPP - Residental Care,
06/04/2021,3747668,36568/50,511,Manton Hall (Foundation),RC502541,,Older People,R5028,TPP - Residental Care,
06/04/2021,3747669,36568/51,1022,Manton Hall (Foundation),RC502541,,Older People,R5028,TPP - Residental Care,
19/04/2021,3748119,36807/35,1022,Manton Hall (Foundation),RC502541,,Older People,R5028,TPP - Residental Care,
19/04/2021,3748120,36807/36,956,Manton Hall (Foundation),RC502541,,Older People,R5028,TPP - Residental Care,
19/04/2021,3748121,36807/37,1022,Manton Hall (Foundation),RC502541,,Older People,R5025,Short Term Care,
19/04/2021,3748122,36807/38,650,Manton Hall (Foundation),RC502541,,Older People,R5028,TPP - Residental Care,
19/04/2021,3748123,36807/39,1022,Manton Hall (Foundation),RC502541,,Older People,R5028,TPP - Residental Care,
19/04/2021,3748124,36807/40,956,Manton Hall (Foundation),RC502541,,Older People,R5028,TPP - Residental Care,
19/04/2021,3748125,36807/41,956,Manton Hall (Foundation),RC502541,,Older People,R5028,TPP - Residental Care,
19/04/2021,3748126,36807/42,1022,Manton Hall (Foundation),RC502541,,Older People,R5028,TPP - Residental Care,
19/04/2021,3748127,36807/43,1022,Manton Hall (Foundation),RC502541,,Older People,R5028,TPP - Residental Care,
19/04/2021,3748128,36807/44,511,Manton Hall (Foundation),RC502541,,Older People,R5028,TPP - Residental Care,
19/04/2021,3748129,36807/45,1100,Manton Hall (Foundation),RC502541,,Older People,R5028,TPP - Residental Care,
19/04/2021,3748130,36807/46,1022,Manton Hall (Foundation),RC502541,,Older People,R5028,TPP - Residental Care,
19/04/2021,3748131,36807/47,511,Manton Hall (Foundation),RC502541,,Older People,R5028,TPP - Residental Care,
19/04/2021,3748132,36807/48,1022,Manton Hall (Foundation),RC502541,,Older People,R5028,TPP - Residental Care,
09/04/2021,3747548,Redacted Personal Data,165,Redacted Personal Data,RC300814,,Placements,R5017,TPP - Other,
09/04/2021,3747568,Redacted Personal Data,218.81,Redacted Personal Data,RC300814,,Placements,R5017,TPP - Other,
16/04/2021,3747770,Redacted Personal Data,165,Redacted Personal Data,RC300814,,Placements,R5017,TPP - Other,
16/04/2021,3747792,Redacted Personal Data,218.81,Redacted Personal Data,RC300814,,Placements,R5017,TPP - Other,
22/04/2021,3748015,Redacted Personal Data,165,Redacted Personal Data,RC300814,,Placements,R5017,TPP - Other,
22/04/2021,3748034,Redacted Personal Data,218.81,Redacted Personal Data,RC300814,,Placements,R5017,TPP - Other,
29/04/2021,3748226,Redacted Personal Data,165,Redacted Personal Data,RC300814,,Placements,R5017,TPP - Other,
29/04/2021,3748246,Redacted Personal Data,218.81,Redacted Personal Data,RC300814,,Placements,R5017,TPP - Other,
29/04/2021,3748276,Redacted Personal Data,68.4,Redacted Personal Data,RC300814,,Placements,R5017,TPP - Other,
29/04/2021,3748277,Redacted Personal Data,54,Redacted Personal Data,RC300814,,Placements,R5017,TPP - Other,
29/04/2021,3748278,Redacted Personal Data,82.8,Redacted Personal Data,RC300814,,Placements,R5017,TPP - Other,
01/04/2021,60052324,11867,5822.8,Mark Bland Travel Ltd,RC502164,610 5787 48,Home to School Transport,R3207,Transport Contract,
01/04/2021,60052325,11868,2239.6,Mark Bland Travel Ltd,RC502164,610 5787 48,Home to School Transport,R3207,Transport Contract,
01/04/2021,60052326,11869,3288.31,Mark Bland Travel Ltd,RC502164,610 5787 48,Home to School Transport,R3207,Transport Contract,
01/04/2021,60052327,11870,3505.89,Mark Bland Travel Ltd,RC502164,610 5787 48,Home to School Transport,R3207,Transport Contract,
01/04/2021,60052328,11871,3450,Mark Bland Travel Ltd,RC502164,610 5787 48,Home to School Transport,R3207,Transport Contract,
01/04/2021,60052329,11872,3450,Mark Bland Travel Ltd,RC502164,610 5787 48,Home to School Transport,R3207,Transport Contract,
01/04/2021,60052330,11873,6555,Mark Bland Travel Ltd,RC502164,610 5787 48,Home to School Transport,R3207,Transport Contract,
01/04/2021,60052331,11874,6325,Mark Bland Travel Ltd,RC502164,610 5787 48,Home to School Transport,R3207,Transport Contract,
01/04/2021,60052332,11875,2990,Mark Bland Travel Ltd,RC502164,610 5787 48,Home to School Transport,R3207,Transport Contract,
01/04/2021,60052333,11876,2135.42,Mark Bland Travel Ltd,RC502164,610 5787 48,Public Transport,R5017,TPP - Other,
12/04/2021,60052707,INV-0019,43291,Mark Bland Travel Ltd,RC502164,610 5787 48,Home to School Transport,R3207,Transport Contract,
12/04/2021,3747840,Redacted Personal Data,200,Redacted Personal Data,RC506641,,ASC S&R DPs PD,R6280,Direct Payments,
01/04/2021,60052694,29279,5195.4,Mason Infotech Ltd,RC300408,209 4874 85,IT Operational Support,R4534,Computing - Maintenance Agreements,
12/04/2021,3747875,Redacted Personal Data,552,Redacted Personal Data,RC509296,,ASC S&R DPs LD,R6280,Direct Payments,
01/04/2021,60052596,21018,750,Maze Training Ltd,RC504208,808 8166 08,"Training, Confs & Seminars",R4405,Training Charges,
01/04/2021,60052414,Redacted Personal Data,380.22,Redacted Personal Data,RC301597,,Childrens Social Care Staffing,R4980,Miscellaneous Expenses,
05/04/2021,60052616,6,400,Melissa Nicola Therapeutic Services Ltd,RC301710,,Children Looked After,R4400,Professional Fees,
19/04/2021,60053119,7,300,Melissa Nicola Therapeutic Services Ltd,RC301710,,Children Looked After,R4400,Professional Fees,
01/04/2021,60052843,1008034,19050,Melton Borough Council,RC502186,115 3945 76,Welland Procurement,R5011,TPP - Local Authorities,
03/04/2021,60052611,43869,651.65,Melton Mowbray Tyre Recycling Centre,RC507527,970 505 131,Waste Management,R5021,TPP - Waste Disposal,
01/04/2021,60052358,210 - 27/03/2021,8,Mercury News Shop,RC502191,377 5866 89,Libraries,R4310,Newspapers and Magazines,
24/04/2021,60053224,210 - 24.04.2021,28.4,Mercury News Shop,RC502191,377 5866 89,Libraries,R4310,Newspapers and Magazines,
14/04/2021,60052953,SLS310482,304.5,MG Recycling Limited,RC301398,333 2986 91,Waste Management,R5021,TPP - Waste Disposal,
01/04/2021,60052319,6705865,3150,Michael Page International Recruitment Ltd.,RC301276,354 2599 36,Environmental Services,R1100,Agency Staff,
01/04/2021,60052389,6706308,3150,Michael Page International Recruitment Ltd.,RC301276,354 2599 36,Environmental Services,R1100,Agency Staff,
09/04/2021,60052662,6708576,2520,Michael Page International Recruitment Ltd.,RC301276,354 2599 36,Environmental Services,R1100,Agency Staff,
12/04/2021,60052713,6709128,2520,Michael Page International Recruitment Ltd.,RC301276,354 2599 36,Environmental Services,R1100,Agency Staff,
09/04/2021,3747592,Redacted Personal Data,121.08,Redacted Personal Data,RC508044,,Placements,R5017,TPP - Other,
16/04/2021,3747816,Redacted Personal Data,121.08,Redacted Personal Data,RC508044,,Placements,R5017,TPP - Other,
22/04/2021,3748058,Redacted Personal Data,121.08,Redacted Personal Data,RC508044,,Placements,R5017,TPP - Other,
29/04/2021,3748270,Redacted Personal Data,121.08,Redacted Personal Data,RC508044,,Placements,R5017,TPP - Other,
01/04/2021,60050431,I0094182,650,Midlands Partnership NHS FT,RC508170,654441580,Sexual Health,R5017,TPP - Other,
01/04/2021,60050612,I0094260,12684.2,Midlands Partnership NHS FT,RC508170,654441580,Sexual Health,R5017,TPP - Other,
01/04/2021,60051364,I0094462,650,Midlands Partnership NHS FT,RC508170,654441580,Sexual Health,R5017,TPP - Other,
01/04/2021,60051720,I0094537,6342.1,Midlands Partnership NHS FT,RC508170,654441580,Sexual Health,R5017,TPP - Other,
13/04/2021,60052976,I0095020,804.17,Midlands Partnership NHS FT,RC508170,654441580,Sexual Health,R5017,TPP - Other,
14/04/2021,60052926,INV-2054,50,Millennium Telecom Ltd,RC508183,876312804,Community Learning,R4537,Computing - Internet,
12/04/2021,3747925,Redacted Personal Data,278.56,Redacted Personal Data,RC301098,,ASC S&R DPs LD,R6280,Direct Payments,
09/04/2021,3747578,Redacted Personal Data,172.8,Redacted Personal Data,RC507547,,Placements,R5017,TPP - Other,
09/04/2021,3747583,Redacted Personal Data,222.96,Redacted Personal Data,RC507547,,Placements,R5017,TPP - Other,
16/04/2021,3747802,Redacted Personal Data,172.8,Redacted Personal Data,RC507547,,Placements,R5017,TPP - Other,
16/04/2021,3747807,Redacted Personal Data,222.96,Redacted Personal Data,RC507547,,Placements,R5017,TPP - Other,
22/04/2021,3748044,Redacted Personal Data,172.8,Redacted Personal Data,RC507547,,Placements,R5017,TPP - Other,
22/04/2021,3748049,Redacted Personal Data,222.96,Redacted Personal Data,RC507547,,Placements,R5017,TPP - Other,
29/04/2021,3748256,Redacted Personal Data,172.8,Redacted Personal Data,RC507547,,Placements,R5017,TPP - Other,
29/04/2021,3748261,Redacted Personal Data,222.96,Redacted Personal Data,RC507547,,Placements,R5017,TPP - Other,
12/04/2021,3747932,Redacted Personal Data,30,Redacted Personal Data,RC301162,,Carer Support,R6280,Direct Payments,
12/04/2021,3747887,Redacted Personal Data,6878.79,Redacted Personal Data,RC301536,,ASC S&R DPs LD,R6280,Direct Payments,
12/04/2021,3747905,Redacted Personal Data,1839.5,Redacted Personal Data,RC509164,,ASC S&R DPs LD,R6280,Direct Payments,
12/04/2021,3747907,Redacted Personal Data,92,Redacted Personal Data,RC509164,,Carer Support,R6280,Direct Payments,
09/04/2021,3747545,Redacted Personal Data,165,Redacted Personal Data,RC506075,,Placements,R5017,TPP - Other,
09/04/2021,3747564,Redacted Personal Data,218.81,Redacted Personal Data,RC506075,,Placements,R5017,TPP - Other,
09/04/2021,3747604,Redacted Personal Data,15,Redacted Personal Data,RC506075,,Placements,R6291,Section 23 Payments,
16/04/2021,3747766,Redacted Personal Data,165,Redacted Personal Data,RC506075,,Placements,R5017,TPP - Other,
16/04/2021,3747788,Redacted Personal Data,218.81,Redacted Personal Data,RC506075,,Placements,R5017,TPP - Other,
22/04/2021,3748012,Redacted Personal Data,165,Redacted Personal Data,RC506075,,Placements,R5017,TPP - Other,
22/04/2021,3748030,Redacted Personal Data,218.81,Redacted Personal Data,RC506075,,Placements,R5017,TPP - Other,
29/04/2021,3748223,Redacted Personal Data,165,Redacted Personal Data,RC506075,,Placements,R5017,TPP - Other,
29/04/2021,3748242,Redacted Personal Data,218.81,Redacted Personal Data,RC506075,,Placements,R5017,TPP - Other,
09/04/2021,3747544,Redacted Personal Data,249,Redacted Personal Data,RC500229,,Placements,R5017,TPP - Other,
09/04/2021,3747563,Redacted Personal Data,218.81,Redacted Personal Data,RC500229,,Placements,R5017,TPP - Other,
09/04/2021,3747603,Redacted Personal Data,15,Redacted Personal Data,RC500229,,Placements,R6291,Section 23 Payments,
16/04/2021,3747765,Redacted Personal Data,249,Redacted Personal Data,RC500229,,Placements,R5017,TPP - Other,
16/04/2021,3747787,Redacted Personal Data,218.81,Redacted Personal Data,RC500229,,Placements,R5017,TPP - Other,
22/04/2021,3748011,Redacted Personal Data,249,Redacted Personal Data,RC500229,,Placements,R5017,TPP - Other,
22/04/2021,3748029,Redacted Personal Data,218.81,Redacted Personal Data,RC500229,,Placements,R5017,TPP - Other,
29/04/2021,3748222,Redacted Personal Data,249,Redacted Personal Data,RC500229,,Placements,R5017,TPP - Other,
29/04/2021,3748241,Redacted Personal Data,218.81,Redacted Personal Data,RC500229,,Placements,R5017,TPP - Other,
01/04/2021,60052254,109111,99.2,MJSW Ltd T/A Autosmart,RC300293,222 4933 26,Educational Transport Fleet,R4000,Furniture & Equipment,
01/04/2021,60053013,INV-0846,400,Mono Roofing Ltd,RC509031,620 2252 95,Central Maintenance,R2003,R & M - Emergency Works,
01/04/2021,60052486,2543,300,Morton Media Services Ltd,RC300569,,ROPE - St Georges Barracks,R4400,Professional Fees,
14/04/2021,60053051,2544,200,Morton Media Services Ltd,RC300569,,Community Learning,R4515,Publicity,
09/04/2021,3747585,Redacted Personal Data,404.59,Redacted Personal Data,RC508604,,Placements,R5017,TPP - Other,
16/04/2021,3747809,Redacted Personal Data,404.59,Redacted Personal Data,RC508604,,Placements,R5017,TPP - Other,
22/04/2021,3748051,Redacted Personal Data,404.59,Redacted Personal Data,RC508604,,Placements,R5017,TPP - Other,
29/04/2021,3748263,Redacted Personal Data,404.59,Redacted Personal Data,RC508604,,Placements,R5017,TPP - Other,
09/04/2021,3747546,Redacted Personal Data,206,Redacted Personal Data,RC506286,,Placements,R5017,TPP - Other,
09/04/2021,3747566,Redacted Personal Data,218.81,Redacted Personal Data,RC506286,,Placements,R5017,TPP - Other,
09/04/2021,3747606,Redacted Personal Data,15,Redacted Personal Data,RC506286,,Placements,R6291,Section 23 Payments,
16/04/2021,3747767,Redacted Personal Data,206,Redacted Personal Data,RC506286,,Placements,R5017,TPP - Other,
16/04/2021,3747790,Redacted Personal Data,218.81,Redacted Personal Data,RC506286,,Placements,R5017,TPP - Other,
22/04/2021,3748013,Redacted Personal Data,206,Redacted Personal Data,RC506286,,Placements,R5017,TPP - Other,
22/04/2021,3748032,Redacted Personal Data,218.81,Redacted Personal Data,RC506286,,Placements,R5017,TPP - Other,
29/04/2021,3748224,Redacted Personal Data,206,Redacted Personal Data,RC506286,,Placements,R5017,TPP - Other,
29/04/2021,3748244,Redacted Personal Data,218.81,Redacted Personal Data,RC506286,,Placements,R5017,TPP - Other,
09/04/2021,3747591,Redacted Personal Data,130.77,Redacted Personal Data,RC507903,,Placements,R5017,TPP - Other,
16/04/2021,3747815,Redacted Personal Data,130.77,Redacted Personal Data,RC507903,,Placements,R5017,TPP - Other,
22/04/2021,3748057,Redacted Personal Data,130.77,Redacted Personal Data,RC507903,,Placements,R5017,TPP - Other,
29/04/2021,3748269,Redacted Personal Data,130.77,Redacted Personal Data,RC507903,,Placements,R5017,TPP - Other,
09/04/2021,3747608,Redacted Personal Data,106.85,Redacted Personal Data,RC502418,,Care Leavers,R4900,Accomodation Costs,
16/04/2021,3747823,Redacted Personal Data,106.85,Redacted Personal Data,RC502418,,Care Leavers,R4900,Accomodation Costs,
22/04/2021,3748064,Redacted Personal Data,106.85,Redacted Personal Data,RC502418,,Care Leavers,R4900,Accomodation Costs,
22/04/2021,3748065,Redacted Personal Data,792,Redacted Personal Data,RC502418,,Care Leavers,R4900,Accomodation Costs,
29/04/2021,3748192,Redacted Personal Data,106.85,Redacted Personal Data,RC502418,,Care Leavers,R4900,Accomodation Costs,
12/04/2021,3747867,Redacted Personal Data,184,Redacted Personal Data,RC300180,,Carer Support,R6280,Direct Payments,
12/04/2021,3747913,Redacted Personal Data,2415,Redacted Personal Data,RC300603,,ASC S&R DPs OP,R6280,Direct Payments,
12/04/2021,3747860,Redacted Personal Data,368,Redacted Personal Data,RC300244,,Carer Support,R6280,Direct Payments,
12/04/2021,3747891,Redacted Personal Data,115,Redacted Personal Data,RC301122,,ASC S&R DPs LD,R6280,Direct Payments,
12/04/2021,3747847,Redacted Personal Data,0,Redacted Personal Data,RC301152,,ASC S&R DPs PD,R6280,Direct Payments,
12/04/2021,3747855,Redacted Personal Data,184,Redacted Personal Data,RC508363,,Carer Support,R6280,Direct Payments,
09/04/2021,3747614,Redacted Personal Data,77.9,Redacted Personal Data,RC301590,,Care Leavers,R6292,Section 24 Payments,
16/04/2021,3747825,Redacted Personal Data,77.9,Redacted Personal Data,RC301590,,Care Leavers,R6292,Section 24 Payments,
22/04/2021,3748071,Redacted Personal Data,77.9,Redacted Personal Data,RC301590,,Care Leavers,R6292,Section 24 Payments,
29/04/2021,3748203,Redacted Personal Data,77.9,Redacted Personal Data,RC301590,,Care Leavers,R6292,Section 24 Payments,
12/04/2021,3747873,Redacted Personal Data,894.12,Redacted Personal Data,RC508054,,ASC S&R DPs LD,R6280,Direct Payments,
09/04/2021,3747587,Redacted Personal Data,124,Redacted Personal Data,RC300006,,Placements,R5017,TPP - Other,
16/04/2021,3747811,Redacted Personal Data,124,Redacted Personal Data,RC300006,,Placements,R5017,TPP - Other,
22/04/2021,3748053,Redacted Personal Data,124,Redacted Personal Data,RC300006,,Placements,R5017,TPP - Other,
29/04/2021,3748265,Redacted Personal Data,124,Redacted Personal Data,RC300006,,Placements,R5017,TPP - Other,
12/04/2021,3747877,Redacted Personal Data,1331.86,Redacted Personal Data,RC502586,,ASC S&R DPs PD,R6280,Direct Payments,
12/04/2021,3747878,Redacted Personal Data,276,Redacted Personal Data,RC502586,,Carer Support,R6280,Direct Payments,
12/04/2021,3747856,Redacted Personal Data,184,Redacted Personal Data,RC300717,,Carer Support,R6280,Direct Payments,
12/04/2021,3747897,Redacted Personal Data,602.7,Redacted Personal Data,RC301584,,ASC S&R DPs LD,R6280,Direct Payments,
12/04/2021,3747841,Redacted Personal Data,138,Redacted Personal Data,RC506786,,Carer Support,R6280,Direct Payments,
01/04/2021,60052844,Redacted Personal Data,24.3,Redacted Personal Data,RC508809,,ASC S&R Homecare OP,R5029,TPP - Home Care,
09/04/2021,60052853,Redacted Personal Data,40.5,Redacted Personal Data,RC508809,,ASC S&R Homecare OP,R5029,TPP - Home Care,
23/04/2021,60053201,Redacted Personal Data,81,Redacted Personal Data,RC508809,,ASC S&R Homecare OP,R5029,TPP - Home Care,
12/04/2021,3747924,Redacted Personal Data,195.5,Redacted Personal Data,RC301411,,ASC S&R DPs PD,R6280,Direct Payments,
12/04/2021,3747929,Redacted Personal Data,1965.61,Redacted Personal Data,RC301308,,ASC S&R DPs OP,R6280,Direct Payments,
12/04/2021,3747858,Redacted Personal Data,230,Redacted Personal Data,RC300453,,Carer Support,R6280,Direct Payments,
12/04/2021,3747922,Redacted Personal Data,184,Redacted Personal Data,RC301121,,Carer Support,R6280,Direct Payments,
12/04/2021,3747869,Redacted Personal Data,138,Redacted Personal Data,RC301204,,Carer Support,R6280,Direct Payments,
12/04/2021,3747933,Redacted Personal Data,565.1,Redacted Personal Data,RC301272,,ASC S&R DPs LD,R6280,Direct Payments,
12/04/2021,3747935,Redacted Personal Data,80,Redacted Personal Data,RC301494,,ASC S&R DPs LD,R6280,Direct Payments,
12/04/2021,3747914,Redacted Personal Data,408.58,Redacted Personal Data,RC301749,,ASC S&R DPs OP,R6280,Direct Payments,
12/04/2021,3747923,Redacted Personal Data,230,Redacted Personal Data,RC300985,,Carer Support,R6280,Direct Payments,
12/04/2021,3747866,Redacted Personal Data,230,Redacted Personal Data,RC508851,,Carer Support,R6280,Direct Payments,
12/04/2021,3747904,Redacted Personal Data,92,Redacted Personal Data,RC506412,,Carer Support,R6280,Direct Payments,
12/04/2021,3747885,Redacted Personal Data,140,Redacted Personal Data,RC506275,,ASC S&R DPs OP,R6280,Direct Payments,
12/04/2021,3747921,Redacted Personal Data,437,Redacted Personal Data,RC300727,,Carer Support,R6280,Direct Payments,
12/04/2021,3747872,Redacted Personal Data,92,Redacted Personal Data,RC300282,,Carer Support,R6280,Direct Payments,
12/04/2021,3747883,Redacted Personal Data,563.26,Redacted Personal Data,RC505508,,ASC S&R DPs LD,R6280,Direct Payments,
12/04/2021,3747890,Redacted Personal Data,310.5,Redacted Personal Data,RC502467,,ASC S&R DPs LD,R6280,Direct Payments,
12/04/2021,3747920,Redacted Personal Data,322,Redacted Personal Data,RC300750,,Carer Support,R6280,Direct Payments,
12/04/2021,3747910,Redacted Personal Data,276,Redacted Personal Data,RC301134,,Carer Support,R6280,Direct Payments,
12/04/2021,3747911,Redacted Personal Data,138,Redacted Personal Data,RC300968,,Carer Support,R6280,Direct Payments,
12/04/2021,3747931,Redacted Personal Data,368,Redacted Personal Data,RC301120,,Carer Support,R6280,Direct Payments,
16/04/2021,3748004,Redacted Personal Data,430.1,Redacted Personal Data,RC506113,,3 & 4 Year Old Nursery Funding,R5020,TPP - Nursery Provision,
22/04/2021,3748080,Redacted Personal Data,600,Redacted Personal Data,RC300873,,Aiming High,R4400,Professional Fees,
12/04/2021,3747915,Redacted Personal Data,138,Redacted Personal Data,RC300295,,Carer Support,R6280,Direct Payments,
12/04/2021,3747928,Redacted Personal Data,294.1,Redacted Personal Data,RC300935,,ASC S&R DPs OP,R6280,Direct Payments,
12/04/2021,3747886,Redacted Personal Data,1537.9,Redacted Personal Data,RC300159,,ASC S&R DPs OP,R6280,Direct Payments,
12/04/2021,3747853,Redacted Personal Data,138,Redacted Personal Data,RC508295,,Carer Support,R6280,Direct Payments,
12/04/2021,3747880,Redacted Personal Data,92,Redacted Personal Data,RC300557,,Carer Support,R6280,Direct Payments,
12/04/2021,3747903,Redacted Personal Data,184,Redacted Personal Data,RC301163,,Carer Support,R6280,Direct Payments,
12/04/2021,3747862,Redacted Personal Data,138,Redacted Personal Data,RC301115,,Carer Support,R6280,Direct Payments,
22/04/2021,3748081,Redacted Personal Data,600,Redacted Personal Data,RC301517,,Aiming High,R4400,Professional Fees,
12/04/2021,3747881,Redacted Personal Data,1479.4,Redacted Personal Data,RC301240,,ASC S&R DPs OP,R6280,Direct Payments,
09/04/2021,3747559,Redacted Personal Data,145,Redacted Personal Data,RC301485,,Placements,R5017,TPP - Other,
16/04/2021,3747782,Redacted Personal Data,145,Redacted Personal Data,RC301485,,Placements,R5017,TPP - Other,
16/04/2021,3747783,Redacted Personal Data,145,Redacted Personal Data,RC301485,,Placements,R5017,TPP - Other,
22/04/2021,3748025,Redacted Personal Data,145,Redacted Personal Data,RC301485,,Placements,R5017,TPP - Other,
29/04/2021,3748237,Redacted Personal Data,145,Redacted Personal Data,RC301485,,Placements,R5017,TPP - Other,
12/04/2021,3747879,Redacted Personal Data,878.72,Redacted Personal Data,RC301555,,ASC S&R DPs OP,R6280,Direct Payments,
12/04/2021,3747930,Redacted Personal Data,40,Redacted Personal Data,RC300999,,Carer Support,R6280,Direct Payments,
12/04/2021,3747893,Redacted Personal Data,1513.7,Redacted Personal Data,RC502472,,ASC S&R DPs LD,R6280,Direct Payments,
12/04/2021,3747894,Redacted Personal Data,230,Redacted Personal Data,RC502472,,Carer Support,R6280,Direct Payments,
12/04/2021,3747843,Redacted Personal Data,92,Redacted Personal Data,RC301170,,Carer Support,R6280,Direct Payments,
12/04/2021,3747902,Redacted Personal Data,230,Redacted Personal Data,RC503422,,Carer Support,R6280,Direct Payments,
12/04/2021,3747901,Redacted Personal Data,184,Redacted Personal Data,RC300967,,Carer Support,R6280,Direct Payments,
12/04/2021,3747906,Redacted Personal Data,2415.4,Redacted Personal Data,RC503306,,ASC S&R DPs OP,R6280,Direct Payments,
12/04/2021,3747848,Redacted Personal Data,46,Redacted Personal Data,RC301309,,Carer Support,R6280,Direct Payments,
12/04/2021,3747846,Redacted Personal Data,92,Redacted Personal Data,RC301116,,Carer Support,R6280,Direct Payments,
12/04/2021,3747870,Redacted Personal Data,184,Redacted Personal Data,RC300116,,Carer Support,R6280,Direct Payments,
12/04/2021,3747916,Redacted Personal Data,368,Redacted Personal Data,RC300749,,Carer Support,R6280,Direct Payments,
29/04/2021,3748282,Redacted Personal Data,500,Redacted Personal Data,RC301228,,Aiming High,R4400,Professional Fees,
12/04/2021,3747926,Redacted Personal Data,276,Redacted Personal Data,RC301055,,Carer Support,R6280,Direct Payments,
12/04/2021,3747917,Redacted Personal Data,598,Redacted Personal Data,RC301752,,ASC S&R DPs OP,R6280,Direct Payments,
12/04/2021,3747868,Redacted Personal Data,92,Redacted Personal Data,RC301364,,Carer Support,R6280,Direct Payments,
12/04/2021,3747912,Redacted Personal Data,230,Redacted Personal Data,RC300279,,Carer Support,R6280,Direct Payments,
22/04/2021,3748082,Redacted Personal Data,500,Redacted Personal Data,RC301668,,Aiming High,R4400,Professional Fees,
22/04/2021,3748083,Redacted Personal Data,600,Redacted Personal Data,RC301668,,Aiming High,R4400,Professional Fees,
12/04/2021,3747857,Redacted Personal Data,1334,Redacted Personal Data,RC509248,,ASC S&R DPs OP,R6280,Direct Payments,
09/04/2021,3747594,Redacted Personal Data,163,Redacted Personal Data,RC506313,,Placements,R5017,TPP - Other,
09/04/2021,3747595,Redacted Personal Data,163,Redacted Personal Data,RC506313,,Placements,R5017,TPP - Other,
16/04/2021,3747818,Redacted Personal Data,163,Redacted Personal Data,RC506313,,Placements,R5017,TPP - Other,
16/04/2021,3747819,Redacted Personal Data,163,Redacted Personal Data,RC506313,,Placements,R5017,TPP - Other,
22/04/2021,3748060,Redacted Personal Data,163,Redacted Personal Data,RC506313,,Placements,R5017,TPP - Other,
22/04/2021,3748061,Redacted Personal Data,163,Redacted Personal Data,RC506313,,Placements,R5017,TPP - Other,
29/04/2021,3748272,Redacted Personal Data,163,Redacted Personal Data,RC506313,,Placements,R5017,TPP - Other,
29/04/2021,3748273,Redacted Personal Data,163,Redacted Personal Data,RC506313,,Placements,R5017,TPP - Other,
29/04/2021,3748280,Redacted Personal Data,600,Redacted Personal Data,RC301717,,Aiming High,R4400,Professional Fees,
12/04/2021,3747898,Redacted Personal Data,184,Redacted Personal Data,RC300652,,Carer Support,R6280,Direct Payments,
12/04/2021,3747839,Redacted Personal Data,1709.62,Redacted Personal Data,RC301682,,ASC S&R DPs OP,R6280,Direct Payments,
12/04/2021,3747927,Redacted Personal Data,432.2,Redacted Personal Data,RC300950,,ASC S&R DPs OP,R6280,Direct Payments,
12/04/2021,3747896,Redacted Personal Data,1493.44,Redacted Personal Data,RC300953,,ASC S&R DPs OP,R6280,Direct Payments,
12/04/2021,3747908,Redacted Personal Data,391,Redacted Personal Data,RC506717,,ASC S&R DPs PD,R6280,Direct Payments,
12/04/2021,3747895,Redacted Personal Data,0,Redacted Personal Data,RC301585,,ASC S&R DPs OP,R6280,Direct Payments,
12/04/2021,3747850,Redacted Personal Data,484.77,Redacted Personal Data,RC301697,,ASC S&R DPs OP,R6280,Direct Payments,
12/04/2021,3747874,Redacted Personal Data,20675.17,Redacted Personal Data,RC507361,,ASC S&R DPs LD,R6280,Direct Payments,
12/04/2021,3747859,Redacted Personal Data,92,Redacted Personal Data,RC301099,,Carer Support,R6280,Direct Payments,
09/04/2021,3747565,Redacted Personal Data,218.81,Redacted Personal Data,RC502500,,Placements,R5017,TPP - Other,
09/04/2021,3747588,Redacted Personal Data,165,Redacted Personal Data,RC502500,,Placements,R5017,TPP - Other,
09/04/2021,3747589,Redacted Personal Data,249,Redacted Personal Data,RC502500,,Placements,R5017,TPP - Other,
09/04/2021,3747605,Redacted Personal Data,15,Redacted Personal Data,RC502500,,Placements,R6291,Section 23 Payments,
16/04/2021,3747789,Redacted Personal Data,218.81,Redacted Personal Data,RC502500,,Placements,R5017,TPP - Other,
16/04/2021,3747812,Redacted Personal Data,165,Redacted Personal Data,RC502500,,Placements,R5017,TPP - Other,
16/04/2021,3747813,Redacted Personal Data,249,Redacted Personal Data,RC502500,,Placements,R5017,TPP - Other,
12/04/2021,3747852,Redacted Personal Data,4346.62,Redacted Personal Data,RC507744,,ASC S&R DPs LD,R6280,Direct Payments,
12/04/2021,3747863,Redacted Personal Data,92,Redacted Personal Data,RC507744,,Carer Support,R6280,Direct Payments,
22/04/2021,3748031,Redacted Personal Data,218.81,Redacted Personal Data,RC502500,,Placements,R5017,TPP - Other,
22/04/2021,3748054,Redacted Personal Data,165,Redacted Personal Data,RC502500,,Placements,R5017,TPP - Other,
22/04/2021,3748055,Redacted Personal Data,249,Redacted Personal Data,RC502500,,Placements,R5017,TPP - Other,
29/04/2021,3748243,Redacted Personal Data,218.81,Redacted Personal Data,RC502500,,Placements,R5017,TPP - Other,
29/04/2021,3748266,Redacted Personal Data,165,Redacted Personal Data,RC502500,,Placements,R5017,TPP - Other,
29/04/2021,3748267,Redacted Personal Data,249,Redacted Personal Data,RC502500,,Placements,R5017,TPP - Other,
12/04/2021,3747900,Redacted Personal Data,69,Redacted Personal Data,RC300806,,Carer Support,R6280,Direct Payments,
12/04/2021,3747888,36730/55,184,Redacted Personal Data,RC500328,,Carer Support,R6280,Direct Payments,
09/04/2021,3747554,Redacted Personal Data,206,Redacted Personal Data,RC505729,,Placements,R5017,TPP - Other,
09/04/2021,3747555,Redacted Personal Data,206,Redacted Personal Data,RC505729,,Placements,R5017,TPP - Other,
09/04/2021,3747573,Redacted Personal Data,218.81,Redacted Personal Data,RC505729,,Placements,R5017,TPP - Other,
09/04/2021,3747574,Redacted Personal Data,164.11,Redacted Personal Data,RC505729,,Placements,R5017,TPP - Other,
16/04/2021,3747775,Redacted Personal Data,206,Redacted Personal Data,RC505729,,Placements,R5017,TPP - Other,
16/04/2021,3747776,Redacted Personal Data,206,Redacted Personal Data,RC505729,,Placements,R5017,TPP - Other,
16/04/2021,3747777,Redacted Personal Data,206,Redacted Personal Data,RC505729,,Placements,R5017,TPP - Other,
16/04/2021,3747797,Redacted Personal Data,218.81,Redacted Personal Data,RC505729,,Placements,R5017,TPP - Other,
16/04/2021,3747798,Redacted Personal Data,164.11,Redacted Personal Data,RC505729,,Placements,R5017,TPP - Other,
22/04/2021,3748020,Redacted Personal Data,206,Redacted Personal Data,RC505729,,Placements,R5017,TPP - Other,
22/04/2021,3748021,Redacted Personal Data,206,Redacted Personal Data,RC505729,,Placements,R5017,TPP - Other,
22/04/2021,3748039,Redacted Personal Data,218.81,Redacted Personal Data,RC505729,,Placements,R5017,TPP - Other,
22/04/2021,3748040,Redacted Personal Data,164.11,Redacted Personal Data,RC505729,,Placements,R5017,TPP - Other,
29/04/2021,3748232,Redacted Personal Data,206,Redacted Personal Data,RC505729,,Placements,R5017,TPP - Other,
29/04/2021,3748233,Redacted Personal Data,206,Redacted Personal Data,RC505729,,Placements,R5017,TPP - Other,
29/04/2021,3748251,Redacted Personal Data,218.81,Redacted Personal Data,RC505729,,Placements,R5017,TPP - Other,
29/04/2021,3748252,Redacted Personal Data,164.11,Redacted Personal Data,RC505729,,Placements,R5017,TPP - Other,
12/04/2021,3747882,Redacted Personal Data,184,Redacted Personal Data,RC300876,,Carer Support,R6280,Direct Payments,
22/04/2021,3748079,Redacted Personal Data,600,Redacted Personal Data,RC301522,,Aiming High,R4400,Professional Fees,
12/04/2021,3747864,Redacted Personal Data,595.92,Redacted Personal Data,RC300503,,ASC S&R DPs OP,R6280,Direct Payments,
12/04/2021,3747871,Redacted Personal Data,276,Redacted Personal Data,RC300849,,Carer Support,R6280,Direct Payments,
12/04/2021,3747934,Redacted Personal Data,0,Redacted Personal Data,RC301239,,Carer Support,R6280,Direct Payments,
12/04/2021,3747865,Redacted Personal Data,460,Redacted Personal Data,RC300584,,ASC S&R DPs OP,R6280,Direct Payments,
12/04/2021,3747884,Redacted Personal Data,4569.02,Redacted Personal Data,RC507360,,ASC S&R DPs LD,R6280,Direct Payments,
01/04/2021,60052621,Redacted Personal Data,76.92,Redacted Personal Data,RC503927,,Disabled Children,R6280,Direct Payments,
09/04/2021,3747580,Redacted Personal Data,163,Redacted Personal Data,RC508167,,Placements,R5017,TPP - Other,
16/04/2021,3747804,Redacted Personal Data,163,Redacted Personal Data,RC508167,,Placements,R5017,TPP - Other,
22/04/2021,3748046,Redacted Personal Data,163,Redacted Personal Data,RC508167,,Placements,R5017,TPP - Other,
29/04/2021,3748258,Redacted Personal Data,163,Redacted Personal Data,RC508167,,Placements,R5017,TPP - Other,
09/04/2021,3747553,Redacted Personal Data,165,Redacted Personal Data,RC507222,,Placements,R5017,TPP - Other,
09/04/2021,3747572,Redacted Personal Data,218.81,Redacted Personal Data,RC507222,,Placements,R5017,TPP - Other,
16/04/2021,3747774,Redacted Personal Data,165,Redacted Personal Data,RC507222,,Placements,R5017,TPP - Other,
16/04/2021,3747796,Redacted Personal Data,218.81,Redacted Personal Data,RC507222,,Placements,R5017,TPP - Other,
22/04/2021,3748019,Redacted Personal Data,165,Redacted Personal Data,RC507222,,Placements,R5017,TPP - Other,
22/04/2021,3748038,Redacted Personal Data,218.81,Redacted Personal Data,RC507222,,Placements,R5017,TPP - Other,
29/04/2021,3748231,Redacted Personal Data,165,Redacted Personal Data,RC507222,,Placements,R5017,TPP - Other,
29/04/2021,3748250,Redacted Personal Data,218.81,Redacted Personal Data,RC507222,,Placements,R5017,TPP - Other,
12/04/2021,3747837,Redacted Personal Data,812.15,Redacted Personal Data,RC300077,,ASC S&R DPs PD,R6280,Direct Payments,
01/04/2021,60050918,Falcon Compact,999.99,MTF Enterprises Ltd,RC301214,885931375GB,Public Transport,R5017,TPP - Other,
01/04/2021,60051115,OLSINV/07150214,29.85,MWUK Ltd trading as Alexandra,RC500151,927156121,Internal Homecare Staffing,R4201,Uniforms,
08/04/2021,60052669,OLSINV/07266098,31.08,MWUK Ltd trading as Alexandra,RC500151,927156121,Internal Homecare Staffing,R4201,Uniforms,
12/04/2021,60052977,OLSINV/07275953,29.85,MWUK Ltd trading as Alexandra,RC500151,927156121,Internal Homecare Staffing,R4201,Uniforms,
16/04/2021,60053052,OLSINV/07293275,19.9,MWUK Ltd trading as Alexandra,RC500151,927156121,Admin Buildings,R4000,Furniture & Equipment,
26/04/2021,60053266,OLSINV/07317003,19.9,MWUK Ltd trading as Alexandra,RC500151,927156121,Internal Homecare Staffing,R4201,Uniforms,
06/04/2021,3747671,36598/53,4911.28,National Star Foundation,RC509253,,Learning Disability,R5028,TPP - Residental Care,
19/04/2021,3748134,36873/50,4911.28,National Star Foundation,RC509253,,Learning Disability,R5028,TPP - Residental Care,
01/04/2021,60052546,SI00099004,978,NCFE,RC502148,110 7856 30,Rutland Adult Skill Budget Post July 2014,R4401,Fees and Charges,
01/04/2021,60052200,90296317,2077.4,Neopost Finance Limited,RC500388,805 6441 40,Reprographics & Post,R4503,Postage,
01/04/2021,60052201,90296318,3074.51,Neopost Finance Limited,RC500388,805 6441 40,Reprographics & Post,R4503,Postage,
11/04/2021,60052946,2021022050,1155.37,Neopost Finance Limited,RC500388,805 6441 40,Reprographics & Post,R4503,Postage,
01/04/2021,60052590,5478,12144,Nesbit Bros Ltd,RC500392,114 5625 90,Home to School Transport,R3207,Transport Contract,
01/04/2021,60052591,5475,6900,Nesbit Bros Ltd,RC500392,114 5625 90,Home to School Transport,R3207,Transport Contract,
01/04/2021,60052592,5476,6785,Nesbit Bros Ltd,RC500392,114 5625 90,Home to School Transport,R3207,Transport Contract,
06/04/2021,3747672,36608/54,-13239.76,New College Worcester,RC301145,,Physical Disability,R5028,TPP - Residental Care,
01/04/2021,60052774,NCW003317,30056,New College Worcester,RC301145,,SEN (DSG),R5017,TPP - Other,
01/04/2021,60052504,102231,2321.42,New Earth Solutions (West) Limited T/A Mid-UK Recycling Ltd,RC505938,246 2500 29,Waste Management,R5021,TPP - Waste Disposal,
01/04/2021,60052521,102232,8000.99,New Earth Solutions (West) Limited T/A Mid-UK Recycling Ltd,RC505938,246 2500 29,Waste Management,R5003,TPP - Recycling Contract,
08/04/2021,60052787,NH080421,8041,New Hope Specialist Care Ltd,RC300956,,ASC S&R Homecare OP,R5029,TPP - Home Care,
23/04/2021,60053153,1127,1050,New Leaf Triangle CIC,RC300536,,Disabled Children,R4401,Fees and Charges,
06/04/2021,3747673,36585/55,1158,New Wycliffe Home,RC301382,,Older People,R5028,TPP - Residental Care,
19/04/2021,3748135,36868/51,1158,New Wycliffe Home,RC301382,,Older People,R5028,TPP - Residental Care,
16/04/2021,60053116,3628,4690,Newdec Interiors Ltd,RC301503,,Capital Programme People - Adults,C1150,Capital Grant Expenditure,
01/04/2021,60052605,15/03/2021 - Castle Grounds,750,Nic Barker Ltd,RC300026,241 1337 49,Oakham Castle,R2003,R & M - Emergency Works,
01/04/2021,60052606,01/04/2021 - Oakham Castle Cafe works,2850,Nic Barker Ltd,RC300026,241 1337 49,Oakham Castle,R2004,R & M - Programmed,
03/04/2021,60052610,Redacted Personal Data,250,Nic Barker Ltd,RC300026,241 1337 49,Cemeteries,R5017,TPP - Other,
09/04/2021,3747542,Redacted Personal Data,206,Redacted Personal Data,RC508869,,Placements,R5017,TPP - Other,
09/04/2021,3747543,Redacted Personal Data,206,Redacted Personal Data,RC508869,,Placements,R5017,TPP - Other,
09/04/2021,3747562,Redacted Personal Data,218.81,Redacted Personal Data,RC508869,,Placements,R5017,TPP - Other,
09/04/2021,3747601,Redacted Personal Data,15,Redacted Personal Data,RC508869,,Placements,R6291,Section 23 Payments,
16/04/2021,3747764,Redacted Personal Data,206,Redacted Personal Data,RC508869,,Placements,R5017,TPP - Other,
16/04/2021,3747786,Redacted Personal Data,218.81,Redacted Personal Data,RC508869,,Placements,R5017,TPP - Other,
22/04/2021,3748010,Redacted Personal Data,206,Redacted Personal Data,RC508869,,Placements,R5017,TPP - Other,
22/04/2021,3748028,Redacted Personal Data,218.81,Redacted Personal Data,RC508869,,Placements,R5017,TPP - Other,
29/04/2021,3748221,Redacted Personal Data,206,Redacted Personal Data,RC508869,,Placements,R5017,TPP - Other,
29/04/2021,3748240,Redacted Personal Data,218.81,Redacted Personal Data,RC508869,,Placements,R5017,TPP - Other,
07/04/2021,60052660,4694,5820.5,Nimble Media,RC509110,174 5562 88,Tourism,R9308,Fees - Other,
27/04/2021,60053221,Q461831,1529,NLA Media Access Ltd,RC507164,661 8652 15,Communication,R4701,Subscriptions,
14/04/2021,60052990,VISYOGA14,390,Nomad Therapy,RC500418,,Children's Centres - Revenue,R4401,Fees and Charges,
01/04/2021,60052388,12418,156.95,Normanton Screen Print,RC507609,289 1992 93,Street Cleaning,R4000,Furniture & Equipment,
06/04/2021,60052541,12438,144.45,Normanton Screen Print,RC507609,289 1992 93,Covid_19,R4000,Furniture & Equipment,
13/04/2021,3747727,April 2021 dripfeed - Schools Block Allocation,59781.08,North Luffenham C Of E Primary School,RC500422,,DSG,R6300,Schools - Budget Share,
13/04/2021,3747728,April 2021 dripfeed - High Needs Block Allocation,1622.35,North Luffenham C Of E Primary School,RC500422,,SEN (DSG),R6300,Schools - Budget Share,
13/04/2021,3747729,April 2021 dripfeed - Forces Pupil Premium,620,North Luffenham C Of E Primary School,RC500422,,Pupil Premium,R6300,Schools - Budget Share,
13/04/2021,3747730,April 2021 dripfeed - Disadvantaged Pupil Premium,784,North Luffenham C Of E Primary School,RC500422,,Pupil Premium,R6300,Schools - Budget Share,
13/04/2021,3747753,April 2021 dripfeed - Post CLA Pupil Premium,586,North Luffenham C Of E Primary School,RC500422,,Pupil Premium,R6300,Schools - Budget Share,
09/04/2021,60052646,CIL PARISH PAYMENT APRIL 2021,8944.38,North Luffenham Parish Council,RC500424,,S106 Contributions,R5017,TPP - Other,
07/04/2021,60052609,4.21E+11,6470.4,Northamptonshire Children's Trust,RC301692,,Disabled Children,R5028,TPP - Residental Care,
23/04/2021,60053168,5150290,107,Northamptonshire Healthcare NHS Foundation Trust,RC508217,654 4039 40,Sexual Health,R5017,TPP - Other,
01/04/2021,60052846,RUT0321,35,Nowmedical,RC500443,889 4938 29,Homelessness,R5017,TPP - Other,
06/04/2021,3747674,36577/56,3036,Oak House Residential Home Ltd,RC502623,,Older People,R5028,TPP - Residental Care,
06/04/2021,3747675,36577/57,956,Oak House Residential Home Ltd,RC502623,,Older People,R5028,TPP - Residental Care,
06/04/2021,3747676,36577/58,956,Oak House Residential Home Ltd,RC502623,,Older People,R5028,TPP - Residental Care,
06/04/2021,3747677,36577/59,-136.57,Oak House Residential Home Ltd,RC502623,,Older People,R5028,TPP - Residental Care,
06/04/2021,3747678,36577/60,3072.86,Oak House Residential Home Ltd,RC502623,,Older People,R5028,TPP - Residental Care,
06/04/2021,3747679,36577/61,5258,Oak House Residential Home Ltd,RC502623,,Older People,R5025,Short Term Care,
06/04/2021,3747680,36577/62,1022,Oak House Residential Home Ltd,RC502623,,Older People,R5028,TPP - Residental Care,
06/04/2021,3747681,36577/63,956,Oak House Residential Home Ltd,RC502623,,Older People,R5028,TPP - Residental Care,
19/04/2021,3748136,36814/52,956,Oak House Residential Home Ltd,RC502623,,Older People,R5028,TPP - Residental Care,
19/04/2021,3748137,36814/53,956,Oak House Residential Home Ltd,RC502623,,Older People,R5028,TPP - Residental Care,
19/04/2021,3748138,36814/54,-928,Oak House Residential Home Ltd,RC502623,,Older People,R5028,TPP - Residental Care,
19/04/2021,3748139,36817/55,0,Oak House Residential Home Ltd,RC502623,,Older People,R5028,TPP - Residental Care,
19/04/2021,3748140,36814/56,956,Oak House Residential Home Ltd,RC502623,,Older People,R5028,TPP - Residental Care,
19/04/2021,3748141,36814/57,-409.71,Oak House Residential Home Ltd,RC502623,,Older People,R5025,Short Term Care,
19/04/2021,3748142,36814/58,1022,Oak House Residential Home Ltd,RC502623,,Older People,R5028,TPP - Residental Care,
19/04/2021,3748143,36814/59,956,Oak House Residential Home Ltd,RC502623,,Older People,R5028,TPP - Residental Care,
13/04/2021,60052723,WORKFORCE CAPACITY FUNDING APRIL 21,1702.5,Oak House Residential Home Ltd,RC502623,,Covid_19 - Social Care,R5017,TPP - Other,
13/04/2021,3747731,April 2021 dripfeed - Schools Block Allocation,102147.5,Oakham C Of E Primary School,RC500457,,DSG,R6300,Schools - Budget Share,
13/04/2021,3747732,April 2021 dripfeed - High Needs Statemented Pupils,3951.5,Oakham C Of E Primary School,RC500457,,SEN (DSG),R6300,Schools - Budget Share,
13/04/2021,3747733,April 2021 dripfeed - High Needs Placement Funding,11666,Oakham C Of E Primary School,RC500457,,SEN (DSG),R6300,Schools - Budget Share,
13/04/2021,3747734,April 2021 dripfeed - High Needs Additional Support,11835.58,Oakham C Of E Primary School,RC500457,,SEN (DSG),R6300,Schools - Budget Share,
13/04/2021,3747735,April 2021 dripfeed - Forces Pupil Premium,697.5,Oakham C Of E Primary School,RC500457,,Pupil Premium,R6300,Schools - Budget Share,
13/04/2021,3747736,April 2021 dripfeed - Disadvantaged Pupil Premium,5155,Oakham C Of E Primary School,RC500457,,Pupil Premium,R6300,Schools - Budget Share,
13/04/2021,3747737,April 2021 dripfeed - Post LAC Pupil Premium,390,Oakham C Of E Primary School,RC500457,,Pupil Premium,R6300,Schools - Budget Share,
13/04/2021,3747759,April 2021 - Devolved Formula Capital,1745,Oakham C Of E Primary School,RC500457,,Capital Programme People - Adults,C1150,Capital Grant Expenditure,
09/04/2021,60052648,CIL PARISH PAYMENT APRIL 2021,1322.49,Oakham Town Council,RC500468,,S106 Contributions,R5017,TPP - Other,
19/04/2021,60052984,CIL Compensatory Payments,660.2,Oakham Town Council,RC500468,,Planning Policy,R4961,Compensation Payments,
16/04/2021,3747978,Redacted Personal Data,165.08,Redacted Personal Data,RC301224,,2 Year Old Nursery Funding,R5020,TPP - Nursery Provision,
16/04/2021,3748003,Redacted Personal Data,140.25,Redacted Personal Data,RC301224,,3 & 4 Year Old Nursery Funding,R5020,TPP - Nursery Provision,
07/04/2021,3747534,Redacted Personal Data,100,One off Invoice Payments - BACS,RC300802,,Care Leavers,R4901,Commission,
09/04/2021,3747535,Green Waste Refund MAR 2021 - Tibbert,80,One off Invoice Payments - BACS,RC300802,,Green Waste Collections,R9304,Fees - Refuse Collection & Disposal,
09/04/2021,3747536,Green Waste Refund MAR 2021 - Howard,40,One off Invoice Payments - BACS,RC300802,,Green Waste Collections,R9304,Fees - Refuse Collection & Disposal,
09/04/2021,3747537,Green Waste Refund MAR 2021 - Siddall,40,One off Invoice Payments - BACS,RC300802,,Green Waste Collections,R9304,Fees - Refuse Collection & Disposal,
09/04/2021,3747538,Green Waste Refund MAR 2021 - Bird,40,One off Invoice Payments - BACS,RC300802,,Green Waste Collections,R9304,Fees - Refuse Collection & Disposal,
09/04/2021,3747539,Green Waste Refund APR 2021 - Scott,40,One off Invoice Payments - BACS,RC300802,,Green Waste Collections,R9304,Fees - Refuse Collection & Disposal,
09/04/2021,3747540,Green Waste Refund APR 2021 - Kelly,40,One off Invoice Payments - BACS,RC300802,,Green Waste Collections,R9304,Fees - Refuse Collection & Disposal,
16/04/2021,3747833,Green Waste Refund APR 2021 - Leahy,40,One off Invoice Payments - BACS,RC300802,,Green Waste Collections,R9304,Fees - Refuse Collection & Disposal,
22/04/2021,3748184,Redacted Personal Data,700,One off Invoice Payments - BACS,RC300802,,Care Leavers,R4900,Accomodation Costs,
26/04/2021,3748185,EE - deposit April 2021,675,One off Invoice Payments - BACS,RC300802,,Care Leavers,R4900,Accomodation Costs,
26/04/2021,3748186,EE - 6 month rent April 2021,4050,One off Invoice Payments - BACS,RC300802,,Care Leavers,R4900,Accomodation Costs,
29/04/2021,3748187,Green Waste Refund April 2021 - Bryant,40,One off Invoice Payments - BACS,RC300802,,Green Waste Collections,R9304,Fees - Refuse Collection & Disposal,
01/04/2021,60052349,7863,1542,One off Invoice Payments - BACS,RC300802,,Culture Projects,R5001,TPP - Grants,
01/04/2021,60052378,Rutland Youth Council Donation,300.08,One off Invoice Payments - BACS,RC300802,,Rutland Youth Council,R9102,Contributions - Other Organisations,
01/04/2021,60052497,Refund of Building Control Application Fee (minus Plan Charge) - 20/01274/DECFP,446.78,One off Invoice Payments - BACS,RC300802,,Building Control,R9301,Fees - Building Regulations,
01/04/2021,60052564,Mileage Claim - September to December 2020,211.2,One off Invoice Payments - BACS,RC300802,,Rutland Adult Skill Budget Post July 2014,R3301,Transport Allowance (Adult Learners),
06/04/2021,60052576,Redacted Personal Data,17.3,One off Invoice Payments - BACS,RC300802,,Parking,R9313,Fees - Parking,
09/04/2021,60052638,Funding - April 2021,7000,One off Invoice Payments - BACS,RC300802,,Covid Winter Grant Scheme,R5017,TPP - Other,
08/04/2021,60052766,PARKING REFUND - JE,17.3,One off Invoice Payments - BACS,RC300802,,Parking,R9313,Fees - Parking,
08/04/2021,60052767,Parking Refund - LP,12.5,One off Invoice Payments - BACS,RC300802,,Parking,R9313,Fees - Parking,
01/04/2021,60052817,2606,2500,One off Invoice Payments - BACS,RC300802,,IT Operational Support,R4534,Computing - Maintenance Agreements,
14/04/2021,60052961,Redacted Personal Data,14.8,One off Invoice Payments - BACS,RC300802,,Parking,R9313,Fees - Parking,
14/04/2021,60052962,Redacted Personal Data,14.8,One off Invoice Payments - BACS,RC300802,,Parking,R9313,Fees - Parking,
06/04/2021,60052988,420,20,One off Invoice Payments - BACS,RC300802,,Homelessness,R5017,TPP - Other,
19/04/2021,60053072,Redacted Personal Data,14.8,One off Invoice Payments - BACS,RC300802,,Parking,R9313,Fees - Parking,
19/04/2021,60053073,Redacted Personal Data,16.3,One off Invoice Payments - BACS,RC300802,,Parking,R9313,Fees - Parking,
19/04/2021,60053074,Redacted Personal Data,16.3,One off Invoice Payments - BACS,RC300802,,Parking,R9313,Fees - Parking,
21/04/2021,60053106,Parking Refund - MG,16.3,One off Invoice Payments - BACS,RC300802,,Parking,R9313,Fees - Parking,
20/04/2021,60053108,Parking Refund - WB,16.3,One off Invoice Payments - BACS,RC300802,,Parking,R9313,Fees - Parking,
22/04/2021,60053132,Parking Refund - WF,60.6,One off Invoice Payments - BACS,RC300802,,Parking,R9313,Fees - Parking,
01/04/2021,60053136,100321,1385.75,One off Invoice Payments - BACS,RC300802,,Public Rights of Way,R5009,TPP - Highway`s,
27/04/2021,60053234,Redacted Personal Data,12.5,One off Invoice Payments - BACS,RC300802,,Parking,R9313,Fees - Parking,
28/04/2021,60053261,Redacted Personal Data,16.3,One off Invoice Payments - BACS,RC300802,,Parking,R9313,Fees - Parking,
28/04/2021,60053262,Redacted Personal Data,14.8,One off Invoice Payments - BACS,RC300802,,Parking,R9313,Fees - Parking,
06/04/2021,3747682,36584/64,2852,Orchard Court Leicester Ltd,RC300743,,Learning Disability,R5028,TPP - Residental Care,
19/04/2021,3748144,36867/60,2852,Orchard Court Leicester Ltd,RC300743,,Learning Disability,R5028,TPP - Residental Care,
06/04/2021,3747651,36607/33,5762.71,Outcomes First Group,RC501992,,Learning Disability,R5028,TPP - Residental Care,
19/04/2021,3748114,36862/30,6723.16,Outcomes First Group,RC501992,,Learning Disability,R5028,TPP - Residental Care,
01/04/2021,60052362,2026,860,P & J Plumbing and Heating,RC500507,991 9126 83,Ashwell Road Business Units,R2004,R & M - Programmed,
01/04/2021,60052363,2029,155,P & J Plumbing and Heating,RC500507,991 9126 83,Oakham Enterprise Park,R2003,R & M - Emergency Works,
20/04/2021,60053075,2035,120,P & J Plumbing and Heating,RC500507,991 9126 83,Active Rutland Hub,R2003,R & M - Emergency Works,
20/04/2021,60053078,2036,138.08,P & J Plumbing and Heating,RC500507,991 9126 83,Oakham Enterprise Park,R2003,R & M - Emergency Works,
20/04/2021,60053079,2037,50,P & J Plumbing and Heating,RC500507,991 9126 83,Central Maintenance,R2003,R & M - Emergency Works,
20/04/2021,60053080,2041,843,P & J Plumbing and Heating,RC500507,991 9126 83,Central Maintenance,R2003,R & M - Emergency Works,
01/04/2021,60052796,LR75,97.65,Page 45,RC500516,136 4959 82,Libraries,R4503,Postage,
14/04/2021,60052949,1089,72712.56,Park House School,RC508254,,SEN (DSG),R5017,TPP - Other,
01/04/2021,60052809,RCC COMM/06,2916,Partners in Psychology,RC508979,,SEN Operations,R4400,Professional Fees,
01/04/2021,60052810,RCC HNF / EY / 05,3361.5,Partners in Psychology,RC508979,,SEN (DSG),R4400,Professional Fees,
01/04/2021,60052811,RCC EIP / 06,1782,Partners in Psychology,RC508979,,SEN (DSG),R4400,Professional Fees,
16/04/2021,3747829,Redacted Personal Data,29,Redacted Personal Data,RC301756,,Children Looked After,R3300,Public Transport,
01/04/2021,60052395,240622,1500,Permanent Futures Ltd,RC508456,790331045,Business Intelligence,R1100,Agency Staff,
03/04/2021,60052963,240760,937.5,Permanent Futures Ltd,RC508456,790331045,Business Intelligence,R1100,Agency Staff,
10/04/2021,60052964,240880,937.5,Permanent Futures Ltd,RC508456,790331045,Business Intelligence,R1100,Agency Staff,
17/04/2021,60053142,241017,1500,Permanent Futures Ltd,RC508456,790331045,Business Intelligence,R1100,Agency Staff,
24/04/2021,60053237,241155,1500,Permanent Futures Ltd,RC508456,790331045,Business Intelligence,R1100,Agency Staff,
14/04/2021,60053008,INV-60993,227.5,Person Centred Software Ltd,RC301607,162981976,Internal Homecare Staffing,R4535,Computing - Licences,
25/04/2021,60053212,INV-61768,164.17,Person Centred Software Ltd,RC301607,162981976,Internal Homecare Staffing,R4535,Computing - Licences,
06/04/2021,3747683,36606/65,1022,Peterborough Care,RC301594,,Older People,R5028,TPP - Residental Care,
19/04/2021,3748145,36881/61,1022,Peterborough Care,RC301594,,Older People,R5028,TPP - Residental Care,
13/04/2021,60052841,175329,6643.38,Peterborough City Council,RC500551,121 5335 13,Legal Services,R4400,Professional Fees,
06/04/2021,3747691,36605/73,-219,Pine View Care Homes Ltd,RC301552,,Older People,R5028,TPP - Residental Care,
06/04/2021,3747647,36591/29,2064.18,PJ Care Ltd,RC507400,,Memory and Cognitive,R5028,TPP - Residental Care,
06/04/2021,3747648,36591/30,2014.18,PJ Care Ltd,RC507400,,Older People,R5028,TPP - Residental Care,
06/04/2021,3747649,36591/31,4152.3,PJ Care Ltd,RC507400,,Older People,R5034,TPP - Nursing Care,
19/04/2021,3748110,36858/26,2064.18,PJ Care Ltd,RC507400,,Memory and Cognitive,R5028,TPP - Residental Care,
19/04/2021,3748111,36858/27,2014.18,PJ Care Ltd,RC507400,,Older People,R5028,TPP - Residental Care,
19/04/2021,3748112,36858/28,4152.3,PJ Care Ltd,RC507400,,Older People,R5034,TPP - Nursing Care,
12/04/2021,60052708,INV-1825,2565,PNL Tools Ltd T/A Armstrong,RC301543,787409776,IT Operational Support,R4534,Computing - Maintenance Agreements,
01/04/2021,60052436,832221,501.67,Polycopy Limited,RC500592,115 9124 86,Reprographics & Post,R4300,Printing & Photocopying,
14/04/2021,60052960,2021/0357/FUL,206,Portal Plan Quest Ltd,RC300843,207 4030 52,Development Control,R9303,Fees - Planning Application,
21/04/2021,60053105,PP-09681784,462,Portal Plan Quest Ltd,RC300843,207 4030 52,Development Control,R9303,Fees - Planning Application,
16/04/2021,60053010,V2424,123.03,Potclays,RC506265,279 3840 16,Community Learning,R4000,Furniture & Equipment,
06/04/2021,60052568,PST02284RUT,400,Prepared Media LTD (Public Secor Today),RC301275,154 5887 74,Human Resources,R1700,Staff Advertising Costs,
06/04/2021,3747687,36570/69,1022,Prime Life Ltd,RC502626,729 8397 74,Older People,R5025,Short Term Care,
06/04/2021,3747688,36570/70,1638.86,Prime Life Ltd,RC502626,729 8397 74,Older People,R5025,Short Term Care,
19/04/2021,3748149,36816/65,1022,Prime Life Ltd,RC502626,729 8397 74,Older People,R5025,Short Term Care,
01/04/2021,60052382,949555,-876,Prime Life Ltd,RC502626,729 8397 74,Interim Beds (CCG),R5028,TPP - Residental Care,
01/04/2021,60052383,942996,1022,Prime Life Ltd,RC502626,729 8397 74,Interim Beds (CCG),R5028,TPP - Residental Care,
01/04/2021,60052494,942993,1700,Prime Life Ltd,RC502626,729 8397 74,Interim Beds (CCG),R5028,TPP - Residental Care,
01/04/2021,60052495,946524,1700,Prime Life Ltd,RC502626,729 8397 74,Interim Beds (CCG),R5028,TPP - Residental Care,
01/04/2021,60052496,946527,1700,Prime Life Ltd,RC502626,729 8397 74,Interim Beds (CCG),R5028,TPP - Residental Care,
01/04/2021,60052689,949569,67371.85,Prime Life Ltd,RC502626,729 8397 74,Interim Beds (CCG),R5028,TPP - Residental Care,
01/04/2021,60052690,949337,-728.57,Prime Life Ltd,RC502626,729 8397 74,Interim Beds (CCG),R5028,TPP - Residental Care,
01/04/2021,60052691,950110,-607.14,Prime Life Ltd,RC502626,729 8397 74,Interim Beds (CCG),R5028,TPP - Residental Care,
01/04/2021,60052692,946530,1700,Prime Life Ltd,RC502626,729 8397 74,Interim Beds (CCG),R5028,TPP - Residental Care,
01/04/2021,60052693,946533,1700,Prime Life Ltd,RC502626,729 8397 74,Interim Beds (CCG),R5028,TPP - Residental Care,
01/04/2021,60052735,942997,1700,Prime Life Ltd,RC502626,729 8397 74,Interim Beds (CCG),R5028,TPP - Residental Care,
01/04/2021,60052736,943007,1700,Prime Life Ltd,RC502626,729 8397 74,Interim Beds (CCG),R5028,TPP - Residental Care,
06/04/2021,3747685,36569/67,2187.5,Prime Life Ltd (Rutland Care Village),RC502276,,Older People,R5028,TPP - Residental Care,
19/04/2021,3748147,36808/63,2187.5,Prime Life Ltd (Rutland Care Village),RC502276,,Older People,R5028,TPP - Residental Care,
01/04/2021,60052516,1090,2583,Programme Officer Solutions Limited,RC301714,251205743,Local Plan Production,R4400,Professional Fees,
01/04/2021,60052777,70652760,2617.47,Proquest LLC,RC500633,,Libraries,R4701,Subscriptions,
18/04/2021,60053016,3667,127,PTL Ltd,RC508980,180205442,Educational Transport Fleet,R3004,Vehicle Maintenance,
01/04/2021,60051211,479,13900,PWLC Projects,RC301681,236 3057 22,Home to School Transport,R3207,Transport Contract,
01/04/2021,60052769,3846,25100,Quorn Hall School Ltd,RC506659,,SEN (DSG),R5017,TPP - Other,
16/04/2021,3747975,2 Year Funding - April 2021 Claim and March 2021 Adjustment,530.64,Rainbows - Exton,RC506365,,2 Year Old Nursery Funding,R5020,TPP - Nursery Provision,
16/04/2021,3747994,3 and 4 Year Funding - April 2021 Claim and March 2021 Adjustment,3001.36,Rainbows - Exton,RC506365,,3 & 4 Year Old Nursery Funding,R5020,TPP - Nursery Provision,
01/04/2021,60052544,3235,1710,Rays Taxis,RC301709,,Children Looked After Transport,R3200,Hire of Vehicles & Plant,
19/04/2021,60052997,K210404,2807,Recare Ltd,RC301758,,Capital Programme People - Adults,C1150,Capital Grant Expenditure,
01/04/2021,60052955,SIRK19,3117,Red Kite Special Academy,RC301609,,SEN (DSG),R5011,TPP - Local Authorities,
01/04/2021,60052415,RWLRUT06 - MAR 21,184.33,Redwings Lodge (Rutland) Ltd,RC300089,168491177,Homelessness,R4900,Accomodation Costs,
06/04/2021,60052979,RWLRut10,266.67,Redwings Lodge (Rutland) Ltd,RC300089,168491177,Homelessness,R4900,Accomodation Costs,
06/04/2021,60052981,RWLRut9,233.33,Redwings Lodge (Rutland) Ltd,RC300089,168491177,Homelessness,R4900,Accomodation Costs,
01/04/2021,60052726,139907,70.02,Regent Office Care Ltd,RC500611,415 2528 73,The King Centre,R2004,R & M - Programmed,
01/04/2021,60052492,SP2020155,111,Relate,RC301181,,Children's Centres - Revenue,R4401,Fees and Charges,
01/04/2021,60052426,5616,28767.2,Resource Futures Ltd,RC301499,,Waste Management Procurement,R4400,Professional Fees,
01/04/2021,60052601,5627,27237,Resource Futures Ltd,RC301499,,Waste Management Procurement,R4400,Professional Fees,
01/04/2021,60053123,1468,250,Road Safety GB,RC502103,183 1944 93,Transport Strategy,R1700,Staff Advertising Costs,
06/04/2021,3747689,36600/71,843.6,Roman Park Ltd,RC502283,,Learning Disability,R5028,TPP - Residental Care,
19/04/2021,3748150,36875/66,843.6,Roman Park Ltd,RC502283,,Learning Disability,R5028,TPP - Residental Care,
06/04/2021,3747690,36563/72,500,Roman Park Ltd (Day Care),RC300484,,ASC S&R Daycare LD,R5030,TPP - Daycare,
19/04/2021,3748151,36804/67,500,Roman Park Ltd (Day Care),RC300484,,ASC S&R Daycare LD,R5030,TPP - Daycare,
15/04/2021,60053007,INV-1677,150,Root-and-Branch Out CIC,RC300442,,Education Improvement Consultancy,R4401,Fees and Charges,
22/04/2021,60053258,9062819159,5.88,Royal Mail Group Ltd,RC500772,243 1700 02,Elections - Administration,R4503,Postage,
06/04/2021,3747646,36590/28,1062,Royal Masonic Benevolent Institution No 4 A/C,RC508527,,Older People,R5028,TPP - Residental Care,
19/04/2021,3748109,36857/25,1062,Royal Masonic Benevolent Institution No 4 A/C,RC508527,,Older People,R5028,TPP - Residental Care,
21/04/2021,60053085,1921,1516.1,RRC (RRConsultancy) Ltd,RC301378,878258370,Directorate Management Childrens,R4400,Professional Fees,
16/04/2021,60053112,359,1000,Rural Roots Media,RC301603,,Tourism,R9308,Fees - Other,
06/04/2021,3747670,36597/52,2933.36,Rushcliffe Care Group,RC506846,,Physical Disability,R5028,TPP - Residental Care,
19/04/2021,3748133,36872/49,2933.36,Rushcliffe Care Group,RC506846,,Physical Disability,R5028,TPP - Residental Care,
01/04/2021,60052560,100764,60636,Ruskin Mill Trust,RC301424,171903806,Children Looked After,R6292,Section 24 Payments,
14/04/2021,60052928,100830,26300,Ruskin Mill Trust,RC301424,171903806,SEN (DSG),R5017,TPP - Other,
13/04/2021,3747723,April 2021 - College High Needs Statemented Pupils,4061.67,Rutland & District Schools' Federation (catmose),RC502547,,SEN (DSG),R6300,Schools - Budget Share,
13/04/2021,3747724,April 2021 - College High Needs DSP,21495.76,Rutland & District Schools' Federation (catmose),RC502547,,SEN (DSG),R6300,Schools - Budget Share,
13/04/2021,3747725,April 2021 dripfeed - Primary High Needs Block Allocation,767,Rutland & District Schools' Federation (catmose),RC502547,,SEN (DSG),R6300,Schools - Budget Share,
01/04/2021,60052428,S1007,235,Rutland and Stamford Sound CIC,RC301740,,Communication,R4515,Publicity,
01/04/2021,60052288,RCC210212U,1560,Rutland Cabs,RC500790,230 1201 87,SEN Transport,R3200,Hire of Vehicles & Plant,
01/04/2021,60052469,RCC210401U,1508,Rutland Cabs,RC500790,230 1201 87,SEN Transport,R3200,Hire of Vehicles & Plant,
01/04/2021,60052470,RCC210401C,1450,Rutland Cabs,RC500790,230 1201 87,Home to School Transport,R3200,Hire of Vehicles & Plant,
23/04/2021,60053166,RCC210331B,210,Rutland Cabs,RC500790,230 1201 87,SEN Transport,R3200,Hire of Vehicles & Plant,
01/04/2021,60052337,SV021554,66,Rutland Catering & Bar Supplies Ltd,RC500791,313172401,Admin Buildings,R4000,Furniture & Equipment,
06/04/2021,60052620,1-21/22,1250,Rutland Citizens Advice Bureau,RC500792,271224528,Financial Crisis Support,R5017,TPP - Other,
01/04/2021,60052529,0000012392-unit16a,425,Rutland Energy Assessors Limited,RC508275,,Oakham Enterprise Park,R2004,R & M - Programmed,
26/04/2021,60053228,12417,78,Rutland Energy Assessors Limited,RC508275,,Public Conveniences,R4400,Professional Fees,
23/04/2021,60053172,Redacted Personal Data,36,Rutland Genie Tutoring Ltd,RC301501,,SEN (DSG),R4400,Professional Fees,
06/04/2021,3747637,36565/19,2138.64,Rutland House Community Trust (Care),RC502287,,ASC S&R Homecare LD,R5029,TPP - Home Care,
06/04/2021,3747638,36565/20,1218,Rutland House Community Trust (Care),RC502287,,ASC S&R Homecare LD,R5029,TPP - Home Care,
06/04/2021,3747639,36565/21,754,Rutland House Community Trust (Care),RC502287,,ASC S&R Homecare PD,R5029,TPP - Home Care,
06/04/2021,3747714,36566/96,2395,Rutland House Community Trust (Care),RC502287,,ASC S&R Homecare LD,R5029,TPP - Home Care,
06/04/2021,3747715,36566/97,552,Rutland House Community Trust (Care),RC502287,,ASC S&R Homecare LD,R5029,TPP - Home Care,
06/04/2021,3747717,36573/99,956,Rutland House Community Trust (Care),RC502287,,Learning Disability,R5028,TPP - Residental Care,
06/04/2021,3747718,36573/100,2042.64,Rutland House Community Trust (Care),RC502287,,Learning Disability,R5028,TPP - Residental Care,
06/04/2021,3747719,36573/101,2321.6,Rutland House Community Trust (Care),RC502287,,Learning Disability,R5028,TPP - Residental Care,
06/04/2021,3747720,36573/102,1146.84,Rutland House Community Trust (Care),RC502287,,Learning Disability,R5028,TPP - Residental Care,
06/04/2021,3747721,36564/103,696,Rutland House Community Trust (Care),RC502287,,ASC S&R Homecare LD,R5029,TPP - Home Care,
19/04/2021,3748100,36883/16,2138.64,Rutland House Community Trust (Care),RC502287,,ASC S&R Homecare LD,R5029,TPP - Home Care,
19/04/2021,3748101,36883/17,1218,Rutland House Community Trust (Care),RC502287,,ASC S&R Homecare LD,R5029,TPP - Home Care,
19/04/2021,3748102,36883/18,754,Rutland House Community Trust (Care),RC502287,,ASC S&R Homecare PD,R5029,TPP - Home Care,
19/04/2021,3748175,36884/91,2395,Rutland House Community Trust (Care),RC502287,,ASC S&R Homecare LD,R5029,TPP - Home Care,
19/04/2021,3748176,36884/92,552,Rutland House Community Trust (Care),RC502287,,ASC S&R Homecare LD,R5029,TPP - Home Care,
19/04/2021,3748178,36811/94,956,Rutland House Community Trust (Care),RC502287,,Learning Disability,R5028,TPP - Residental Care,
19/04/2021,3748179,36811/95,2042.64,Rutland House Community Trust (Care),RC502287,,Learning Disability,R5028,TPP - Residental Care,
19/04/2021,3748180,36811/96,2321.6,Rutland House Community Trust (Care),RC502287,,Learning Disability,R5028,TPP - Residental Care,
19/04/2021,3748181,36811/97,1146.84,Rutland House Community Trust (Care),RC502287,,Learning Disability,R5028,TPP - Residental Care,
19/04/2021,3748182,36882/98,696,Rutland House Community Trust (Care),RC502287,,ASC S&R Homecare LD,R5029,TPP - Home Care,
07/04/2021,60052687,Renewal of membership subscription to Rutland Local History and Record Society,16,Rutland Local History & Record Soc.,RC500801,,Museums Service,R4701,Subscriptions,
07/04/2021,60052688,Renewal of Membership for RC Museum,16,Rutland Local History & Record Soc.,RC500801,,Libraries,R4701,Subscriptions,
07/04/2021,60052556,Carers passport administration,500,Rutland Parent Carer Voice,RC301747,,Aiming High,R4300,Printing & Photocopying,
01/04/2021,60052732,3,790,Rutland Rides Ltd,RC301612,,SEN Transport,R3200,Hire of Vehicles & Plant,
01/04/2021,60052733,4,316,Rutland Rides Ltd,RC301612,,SEN Transport,R3200,Hire of Vehicles & Plant,
16/04/2021,60053026,5,395,Rutland Rides Ltd,RC301612,,SEN Transport,R3200,Hire of Vehicles & Plant,
23/04/2021,60053193,6,790,Rutland Rides Ltd,RC301612,,SEN Transport,R3200,Hire of Vehicles & Plant,
16/04/2021,3747995,3 and 4 Year Funding - April 2021 Claim and March 2021 Adjustment,4347.75,Ryhall Childcare Centre,RC500824,,3 & 4 Year Old Nursery Funding,R5020,TPP - Nursery Provision,
19/04/2021,60052987,CIL Compensatory Payment,174.7,Ryhall Parish Council,RC500827,,Planning Policy,R4961,Compensation Payments,
01/04/2021,60051519,S4F-1644,6216.5,S4 Facilities Management Limited,RC508550,205 863 902,Ashwell Road Business Units,R2700,Contract Cleaning,
01/04/2021,60052346,S4F-1611,7358.1,S4 Facilities Management Limited,RC508550,205 863 902,Oakham Bus Station,R2700,Contract Cleaning,
01/04/2021,60052607,S4F-1651,609.5,S4 Facilities Management Limited,RC508550,205 863 902,Covid-19 Testing Centre,R2004,R & M - Programmed,
01/04/2021,60052608,S4F-1652,6938.2,S4 Facilities Management Limited,RC508550,205 863 902,Ashwell Road Business Units,R2700,Contract Cleaning,
16/04/2021,3748002,Redacted Personal Data,238.43,Redacted Personal Data,RC508091,,3 & 4 Year Old Nursery Funding,R5020,TPP - Nursery Provision,
09/04/2021,3747616,Redacted Personal Data,64,Redacted Personal Data,RC508568,,Care Leavers,R6292,Section 24 Payments,
16/04/2021,3747827,Redacted Personal Data,64,Redacted Personal Data,RC508568,,Care Leavers,R6292,Section 24 Payments,
22/04/2021,3748073,Redacted Personal Data,64,Redacted Personal Data,RC508568,,Care Leavers,R6292,Section 24 Payments,
29/04/2021,3748206,Redacted Personal Data,64,Redacted Personal Data,RC508568,,Care Leavers,R6292,Section 24 Payments,
09/04/2021,3747561,Redacted Personal Data,145,Redacted Personal Data,RC301689,,Placements,R5017,TPP - Other,
16/04/2021,3747785,Redacted Personal Data,145,Redacted Personal Data,RC301689,,Placements,R5017,TPP - Other,
22/04/2021,3748027,Redacted Personal Data,145,Redacted Personal Data,RC301689,,Placements,R5017,TPP - Other,
29/04/2021,3748239,Redacted Personal Data,145,Redacted Personal Data,RC301689,,Placements,R5017,TPP - Other,
16/04/2021,3747974,2 Year Funding - April 2021 Claim and March 2021 Adjustment,176.88,Sarah Moore T/A Little Legs Nursery,RC300792,,2 Year Old Nursery Funding,R5020,TPP - Nursery Provision,
16/04/2021,3747992,3 and 4 Year Funding - April 2021 Claim and March 2021 Adjustment,10320.53,Sarah Moore T/A Little Legs Nursery,RC300792,,3 & 4 Year Old Nursery Funding,R5020,TPP - Nursery Provision,
16/04/2021,3747976,2 Year Funding - April 2021 Claim and March 2021 Adjustment,1733.41,Scallywags Day Nursery,RC500853,,2 Year Old Nursery Funding,R5020,TPP - Nursery Provision,
16/04/2021,3747996,3 and 4 Year Funding - April 2021 Claim and March 2021 Adjustment,13188.18,Scallywags Day Nursery,RC500853,,3 & 4 Year Old Nursery Funding,R5020,TPP - Nursery Provision,
01/04/2021,60052784,INV-7346,5000,SDSA Ltd,RC500865,110 2306 90,Directorate Management Childrens,R4875,Contribution to provision,
12/04/2021,60053115,S-SIN1216767,87.41,Securitas Security Services (UK) Ltd,RC300778,GB 603 1758 64,Libraries,R2004,R & M - Programmed,
01/04/2021,60052338,INV350293,1393.28,Sellick Partnership Ltd,RC300496,864 2880 95,Governance,R1100,Agency Staff,
01/04/2021,60052339,INV350417,1042.97,Sellick Partnership Ltd,RC300496,864 2880 95,Legal Services,R4400,Professional Fees,
01/04/2021,60052365,INV350546,992,Sellick Partnership Ltd,RC300496,864 2880 95,Legal Services,R1100,Agency Staff,
06/04/2021,60052547,INV351855,558,Sellick Partnership Ltd,RC300496,864 2880 95,Legal Services,R1100,Agency Staff,
01/04/2021,60052562,INV351154,1042.97,Sellick Partnership Ltd,RC300496,864 2880 95,Legal Services,R1100,Agency Staff,
06/04/2021,60052570,INV351315,1085.95,Sellick Partnership Ltd,RC300496,864 2880 95,Governance,R1100,Agency Staff,
06/04/2021,60052571,INV351873,750,Sellick Partnership Ltd,RC300496,864 2880 95,Legal Services,R1100,Agency Staff,
07/04/2021,60052684,INV351881,145,Sellick Partnership Ltd,RC300496,864 2880 95,Legal Services,R4400,Professional Fees,
07/04/2021,60052685,INV351882,130.5,Sellick Partnership Ltd,RC300496,864 2880 95,Legal Services,R4400,Professional Fees,
12/04/2021,60052734,INV352239,1151.27,Sellick Partnership Ltd,RC300496,864 2880 95,Governance,R1100,Agency Staff,
13/04/2021,60052847,INV352427,449.5,Sellick Partnership Ltd,RC300496,864 2880 95,Legal Services,R4400,Professional Fees,
19/04/2021,60053058,INV353162,1265.58,Sellick Partnership Ltd,RC300496,864 2880 95,Governance,R1100,Agency Staff,
19/04/2021,60053059,INV353188,75,Sellick Partnership Ltd,RC300496,864 2880 95,Legal Services,R4400,Professional Fees,
27/04/2021,60053230,INV354282,1399.15,Sellick Partnership Ltd,RC300496,864 2880 95,Governance,R1100,Agency Staff,
01/04/2021,60052721,2429,275,Serendipity Psychology Services Limited,RC301753,,Family Support Services,R4400,Professional Fees,
09/04/2021,3747550,Redacted Personal Data,249,Redacted Personal Data,RC301349,,Placements,R5017,TPP - Other,
09/04/2021,3747570,Redacted Personal Data,172.8,Redacted Personal Data,RC301349,,Placements,R5017,TPP - Other,
16/04/2021,3747760,Redacted Personal Data,21.6,Redacted Personal Data,RC301349,,Children Looked After,R3300,Public Transport,
16/04/2021,3747761,Redacted Personal Data,21.6,Redacted Personal Data,RC301349,,Children Looked After,R3300,Public Transport,
16/04/2021,3747762,Redacted Personal Data,21.6,Redacted Personal Data,RC301349,,Children Looked After,R3300,Public Transport,
16/04/2021,3747763,Redacted Personal Data,21.6,Redacted Personal Data,RC301349,,Children Looked After,R3300,Public Transport,
16/04/2021,3747772,Redacted Personal Data,249,Redacted Personal Data,RC301349,,Placements,R5017,TPP - Other,
16/04/2021,3747794,Redacted Personal Data,172.8,Redacted Personal Data,RC301349,,Placements,R5017,TPP - Other,
22/04/2021,3748017,Redacted Personal Data,249,Redacted Personal Data,RC301349,,Placements,R5017,TPP - Other,
22/04/2021,3748036,Redacted Personal Data,172.8,Redacted Personal Data,RC301349,,Placements,R5017,TPP - Other,
29/04/2021,3748188,Redacted Personal Data,21.6,Redacted Personal Data,RC301349,,Children Looked After,R3300,Public Transport,
29/04/2021,3748189,Redacted Personal Data,21.6,Redacted Personal Data,RC301349,,Children Looked After,R3300,Public Transport,
29/04/2021,3748190,Redacted Personal Data,21.6,Redacted Personal Data,RC301349,,Children Looked After,R3300,Public Transport,
29/04/2021,3748191,Redacted Personal Data,21.6,Redacted Personal Data,RC301349,,Children Looked After,R3300,Public Transport,
29/04/2021,3748228,Redacted Personal Data,249,Redacted Personal Data,RC301349,,Placements,R5017,TPP - Other,
29/04/2021,3748248,Redacted Personal Data,172.8,Redacted Personal Data,RC301349,,Placements,R5017,TPP - Other,
01/04/2021,60052234,INV-02212,93,Signs and Graphx,RC300668,873239895,Covid-19 Vaccination Hub,R2004,R & M - Programmed,
01/04/2021,60052235,INV-02214,187.2,Signs and Graphx,RC300668,873239895,Covid-19 Testing Centre,R2004,R & M - Programmed,
01/04/2021,60052290,INV-02215,135,Signs and Graphx,RC300668,873239895,Culture Projects,R4000,Furniture & Equipment,
09/04/2021,3747547,Redacted Personal Data,289,Redacted Personal Data,RC300929,,Placements,R5017,TPP - Other,
09/04/2021,3747567,Redacted Personal Data,218.81,Redacted Personal Data,RC300929,,Placements,R5017,TPP - Other,
16/04/2021,3747768,Redacted Personal Data,249,Redacted Personal Data,RC300929,,Placements,R5017,TPP - Other,
16/04/2021,3747769,Redacted Personal Data,249,Redacted Personal Data,RC300929,,Placements,R5017,TPP - Other,
16/04/2021,3747791,Redacted Personal Data,218.81,Redacted Personal Data,RC300929,,Placements,R5017,TPP - Other,
22/04/2021,3748014,Redacted Personal Data,249,Redacted Personal Data,RC300929,,Placements,R5017,TPP - Other,
22/04/2021,3748033,Redacted Personal Data,218.81,Redacted Personal Data,RC300929,,Placements,R5017,TPP - Other,
29/04/2021,3748225,Redacted Personal Data,249,Redacted Personal Data,RC300929,,Placements,R5017,TPP - Other,
29/04/2021,3748245,Redacted Personal Data,218.81,Redacted Personal Data,RC300929,,Placements,R5017,TPP - Other,
01/04/2021,60052633,20210414146,250,Smart Employee Eyecare,RC509000,178238183,Human Resources,R1401,Professional Fees,
01/04/2021,60052490,RCC00011,45.77,Snowdrop Home Care Rutland Ltd,RC301472,,ASC S&R Homecare OP,R4401,Fees and Charges,
27/04/2021,60053253,RCC00012,6153.3,Snowdrop Home Care Rutland Ltd,RC301472,,ASC S&R Homecare OP,R5029,TPP - Home Care,
22/04/2021,3748074,Redacted Personal Data,25,Redacted Personal Data,RC301475,,Care Leavers,R6292,Section 24 Payments,
13/04/2021,60052980,17992,69,Sonic Security,RC500924,284 6278 23,Central Maintenance,R2003,R & M - Emergency Works,
27/04/2021,60053236,16/21,5095,SP Marks (Services) Ltd,RC508766,694 9617 70,Capital Programme People - Adults,C1150,Capital Grant Expenditure,
06/04/2021,3747650,36592/32,1494.4,St Bernard's Hallaton Manor Ltd,RC502292,,Older People,R5034,TPP - Nursing Care,
19/04/2021,3748113,36859/29,1494.4,St Bernard's Hallaton Manor Ltd,RC502292,,Older People,R5034,TPP - Nursing Care,
13/04/2021,3747744,April 2021 dripfeed - High Needs Block Allocation,1605.72,St Therese of Lisieux T/A English Martyrs Catholic Voluntary Academy,RC507715,,SEN (DSG),R6300,Schools - Budget Share,
01/04/2021,60052482,5723,2709.93,StaffAid Limited,RC300674,246 0481 17,Management of Community Support Services,R1100,Agency Staff,
01/04/2021,60052483,5725,1108.43,StaffAid Limited,RC300674,246 0481 17,Management of Community Support Services,R1100,Agency Staff,
01/04/2021,60052512,5726,394.8,StaffAid Limited,RC300674,246 0481 17,Day Opportunities Services,R1100,Agency Staff,
07/04/2021,60052704,5744,2857.08,StaffAid Limited,RC300674,246 0481 17,Management of Community Support Services,R1100,Agency Staff,
07/04/2021,60052705,5747,871.63,StaffAid Limited,RC300674,246 0481 17,Management of Community Support Services,R1100,Agency Staff,
07/04/2021,60052706,5748,574.5,StaffAid Limited,RC300674,246 0481 17,Day Opportunities Services,R1100,Agency Staff,
14/04/2021,60053003,5765,3154.76,StaffAid Limited,RC300674,246 0481 17,Management of Community Support Services,R1100,Agency Staff,
14/04/2021,60053004,5768,1127.15,StaffAid Limited,RC300674,246 0481 17,Management of Community Support Services,R1100,Agency Staff,
14/04/2021,60053005,5776,197.4,StaffAid Limited,RC300674,246 0481 17,Day Opportunities Services,R1100,Agency Staff,
21/04/2021,60053148,5784,2910.9,StaffAid Limited,RC300674,246 0481 17,Management of Community Support Services,R1100,Agency Staff,
21/04/2021,60053149,5788,698.9,StaffAid Limited,RC300674,246 0481 17,Management of Community Support Services,R1100,Agency Staff,
21/04/2021,60053150,5789,493.5,StaffAid Limited,RC300674,246 0481 17,Day Opportunities Services,R1100,Agency Staff,
01/04/2021,60052477,441065,7863,Stanford Marsh,RC500960,765 3253 22,IT Operational Support,R4534,Computing - Maintenance Agreements,
12/04/2021,60052716,949744,2.45,Stanford Marsh,RC500960,765 3253 22,Building & Development Control Support,R4300,Printing & Photocopying,
15/04/2021,60053049,1085298246,156.93,Stannah Lift Services Limited,RC300848,236 7783 28,Capital Programme People - Adults,C1150,Capital Grant Expenditure,
22/04/2021,60053165,1085300643,2141,Stannah Lift Services Limited,RC300848,236 7783 28,Capital Programme People - Adults,C1150,Capital Grant Expenditure,
22/04/2021,60053214,1085300642,4844,Stannah Lift Services Limited,RC300848,236 7783 28,Capital Programme People - Adults,C1150,Capital Grant Expenditure,
01/04/2021,60053076,1871,156.75,Stanwick Village Hall Trust,RC301581,,Children Looked After,R2201,Room Hire,
30/04/2021,60053245,1878,148.5,Stanwick Village Hall Trust,RC301581,,Children Looked After,R2201,Room Hire,
01/04/2021,60052670,2197,1952.7,Starline Taxis Stamford Ltd T/A Starline Taxis,RC500962,341 0687 19,SEN Transport,R3200,Hire of Vehicles & Plant,
01/04/2021,60052671,2196,1449,Starline Taxis Stamford Ltd T/A Starline Taxis,RC500962,341 0687 19,SEN Transport,R3200,Hire of Vehicles & Plant,
01/04/2021,60052672,2195,3335,Starline Taxis Stamford Ltd T/A Starline Taxis,RC500962,341 0687 19,Home to School Transport,R3200,Hire of Vehicles & Plant,
01/04/2021,60052488,Redacted Personal Data,88,Redacted Personal Data,RC509033,,Special Needs Teaching (DSG),R5017,TPP - Other,
01/04/2021,60052489,Redacted Personal Data,361.2,Redacted Personal Data,RC509033,,Special Needs Teaching (DSG),R5017,TPP - Other,
01/04/2021,60052493,Redacted Personal Data,849.5,Redacted Personal Data,RC509033,,Special Needs Teaching (DSG),R5017,TPP - Other,
16/04/2021,3747977,2 Year Funding - April 2021 Claim and March 2021 Adjustment,353.76,Stepping Stones Pre-School (Upp),RC500975,,2 Year Old Nursery Funding,R5020,TPP - Nursery Provision,
16/04/2021,3747997,3 and 4 Year Funding - April 2021 Claim and March 2021 Adjustment,4093.6,Stepping Stones Pre-School (Upp),RC500975,,3 & 4 Year Old Nursery Funding,R5020,TPP - Nursery Provision,
01/04/2021,60052551,4238,364.8,Stratus Hosting Ltd,RC300374,169 2428 84,The King Centre,R4701,Subscriptions,
01/04/2021,60052667,195,630,Super Scientists,RC301671,,Education Otherwise,R4400,Professional Fees,
14/04/2021,60053019,222,300,Super Scientists,RC301671,,Education Otherwise,R4400,Professional Fees,
12/04/2021,3747851,Redacted Personal Data,368,Redacted Personal Data,RC508194,,Carer Support,R6280,Direct Payments,
01/04/2021,60052341,AH48/2020/21,2165.4,T R Morris T/A Roger's Taxi,RC502667,,SEN Transport,R3200,Hire of Vehicles & Plant,
01/04/2021,60052561,SIN108424,3782,Tact (The Adolescent & Childrens Trust),RC301702,,Placements,R5017,TPP - Other,
06/04/2021,3747693,36609/75,1022,Tallington Care Home,RC507295,,Older People,R5028,TPP - Residental Care,
06/04/2021,3747694,36609/76,956,Tallington Care Home,RC507295,,Older People,R5028,TPP - Residental Care,
06/04/2021,3747695,36609/77,1104,Tallington Care Home,RC507295,,Older People,R5028,TPP - Residental Care,
06/04/2021,3747696,36609/78,1146,Tallington Care Home,RC507295,,Older People,R5028,TPP - Residental Care,
06/04/2021,3747697,36609/79,1146,Tallington Care Home,RC507295,,ASC P&S Respite OP,R5018,Respite,
19/04/2021,3748153,36876/69,1022,Tallington Care Home,RC507295,,Older People,R5028,TPP - Residental Care,
19/04/2021,3748154,36876/70,956,Tallington Care Home,RC507295,,Older People,R5028,TPP - Residental Care,
19/04/2021,3748155,36876/71,1104,Tallington Care Home,RC507295,,Older People,R5028,TPP - Residental Care,
19/04/2021,3748156,36876/72,1146,Tallington Care Home,RC507295,,Older People,R5028,TPP - Residental Care,
19/04/2021,3748157,36876/73,1146,Tallington Care Home,RC507295,,ASC P&S Respite OP,R5018,Respite,
01/04/2021,60052088,J078 / 120135 / 15,3439.11,Tarmac Trading Ltd,RC507911,143 7761 02,Capital Programme Places - Highways,C1015,Engineering Works,
01/04/2021,60052712,J078 / 120129 / 164,14528.7,Tarmac Trading Ltd,RC507911,143 7761 02,Waste Management,R5031,TPP - CA Site Management,
01/04/2021,60052845,J078 / 120129 / 160,24754.12,Tarmac Trading Ltd,RC507911,143 7761 02,Safety,R5009,TPP - Highway`s,
01/04/2021,60052965,J078 / 120129 / 161,27007.75,Tarmac Trading Ltd,RC507911,143 7761 02,Drainage and Jetting,R5009,TPP - Highway`s,
01/04/2021,60052966,J078 / 120129 / 163,6425.37,Tarmac Trading Ltd,RC507911,143 7761 02,Capital Programme Places - Highways,C1050,Capital Training,
01/04/2021,60052967,J078 / 120129 / 165,14250.17,Tarmac Trading Ltd,RC507911,143 7761 02,Street Lighting,R5016,TPP - Private Contractors,
01/04/2021,60052968,J078 / 120129 / 166,4469.62,Tarmac Trading Ltd,RC507911,143 7761 02,Minor Repairs,R5009,TPP - Highway`s,
01/04/2021,60052970,J078 / 120130 / 15,2906.24,Tarmac Trading Ltd,RC507911,143 7761 02,Winter Maintenance,R5009,TPP - Highway`s,
01/04/2021,60052971,J078 / 120132 / 29,63291.51,Tarmac Trading Ltd,RC507911,143 7761 02,Capital Programme Places - Highways,C1015,Engineering Works,
01/04/2021,60052973,J078 / 120133 / 23,457.5,Tarmac Trading Ltd,RC507911,143 7761 02,Capital Programme Places - Highways,C1015,Engineering Works,
01/04/2021,60052974,J078 / 120133 / 24,38070.1,Tarmac Trading Ltd,RC507911,143 7761 02,Capital Programme Places - Highways,C1015,Engineering Works,
01/04/2021,60052975,J078 / 120134 / 14,11357.88,Tarmac Trading Ltd,RC507911,143 7761 02,Capital Programme Places - Highways,C1015,Engineering Works,
01/04/2021,60053129,J078 / 120129 / 167,125.67,Tarmac Trading Ltd,RC507911,143 7761 02,Highways Third Party Claims,R5009,TPP - Highway`s,
01/04/2021,60053130,J078 / 120129 / 168,77.15,Tarmac Trading Ltd,RC507911,143 7761 02,Highways Third Party Claims,R5009,TPP - Highway`s,
01/04/2021,60053131,J078 / 120129 / 169,105.81,Tarmac Trading Ltd,RC507911,143 7761 02,Highways Third Party Claims,R5009,TPP - Highway`s,
01/04/2021,60053222,68775717,1600,Thameside Metropolitan Borough Council,RC301684,149 1935 44,Waste Management,R4701,Subscriptions,
06/04/2021,3747698,36582/80,1600,The Amwell Care Home,RC300501,,Older People,R5028,TPP - Residental Care,
06/04/2021,3747699,36582/81,1276,The Amwell Care Home,RC300501,,Older People,R5028,TPP - Residental Care,
19/04/2021,3748158,36865/74,1600,The Amwell Care Home,RC300501,,Older People,R5028,TPP - Residental Care,
19/04/2021,3748159,36865/75,1276,The Amwell Care Home,RC300501,,Older People,R5028,TPP - Residental Care,
06/04/2021,60053045,1043,3150,The Ark Association,RC501042,,Early Years Inclusion 3-5yrs (DSG),R5020,TPP - Nursery Provision,
16/04/2021,3747969,2 Year Funding - April 2021 Claim and March 2021 Adjustment,318.38,The Ark Association (1),RC501043,,2 Year Old Nursery Funding,R5020,TPP - Nursery Provision,
16/04/2021,3747980,3 and 4 Year Funding - April 2021 Claim and March 2021 Adjustment,5869,The Ark Association (1),RC501043,,3 & 4 Year Old Nursery Funding,R5020,TPP - Nursery Provision,
16/04/2021,3747970,2 Year Funding - April 2021 Claim and March 2021 Adjustment,483.47,The Ark Association (Early Yrs) 2,RC501044,,2 Year Old Nursery Funding,R5020,TPP - Nursery Provision,
16/04/2021,3747981,3 and 4 Year Funding - April 2021 Claim and March 2021 Adjustment,7653.36,The Ark Association (Early Yrs) 2,RC501044,,3 & 4 Year Old Nursery Funding,R5020,TPP - Nursery Provision,
12/04/2021,60053157,2021/045,150,The Association of Commons Registration Authorities Ltd,RC501068,,Land Charges,R4702,Subscriptions - Employee,
01/04/2021,60052473,2970,3439.5,The Baca Charity,RC507453,,UASC 16-17,R4900,Accomodation Costs,
01/04/2021,60052474,2971,3464.5,The Baca Charity,RC507453,,UASC 16-17,R4900,Accomodation Costs,
01/04/2021,60052519,2969,3439.5,The Baca Charity,RC507453,,UASC 16-17,R4900,Accomodation Costs,
01/04/2021,60052520,2973,15,The Baca Charity,RC507453,,UASC 16-17,R4900,Accomodation Costs,
01/04/2021,60052524,2972,178.76,The Baca Charity,RC507453,,UASC 16-17,R4900,Accomodation Costs,
01/04/2021,60052545,624,14250,The Caldecott Foundation,RC509064,,Placements,R5017,TPP - Other,
04/04/2021,60052865,03635-03644,3698.1,The Caring Company Rutland,RC508741,,ASC S&R Homecare OP,R5029,TPP - Home Care,
11/04/2021,60052866,03646-03655,3845.1,The Caring Company Rutland,RC508741,,ASC S&R Homecare OP,R5029,TPP - Home Care,
01/04/2021,60053099,03670-03680,3409.9,The Caring Company Rutland,RC508741,,ASC S&R Homecare OP,R5029,TPP - Home Care,
21/04/2021,60053175,CQC FEES 15,503.47,The Caring Company Rutland,RC508741,,ASC S&R Homecare OP,R4401,Fees and Charges,
25/04/2021,60053199,03681-03690,2786.4,The Caring Company Rutland,RC508741,,ASC S&R Homecare OP,R5029,TPP - Home Care,
06/04/2021,3747640,36589/22,1106,The Cedars,RC509335,,Older People,R5034,TPP - Nursing Care,
19/04/2021,3748160,36869/76,1227.43,The Cedars,RC509335,,Older People,R5034,TPP - Nursing Care,
06/04/2021,60052602,741172,172.25,The Envelope Works Ltd,RC500051,877989032,Stationery,R4308,Stationery,
13/04/2021,60052924,741351,139.2,The Envelope Works Ltd,RC500051,877989032,Stationery,R4308,Stationery,
23/04/2021,60053180,741575,100.47,The Envelope Works Ltd,RC500051,877989032,Stationery,R4308,Stationery,
01/04/2021,60053117,INV-0310,2900,The Frontline Organisation,RC300383,233 7528 07,"Training, Confs & Seminars",R4405,Training Charges,
06/04/2021,3747700,36602/82,8424,The Hollies,RC502822,,Learning Disability,R5028,TPP - Residental Care,
19/04/2021,3748161,36878/77,8424,The Hollies,RC502822,,Learning Disability,R5028,TPP - Residental Care,
30/04/2021,60053125,53974,259.62,The Hunny Pot Day Nursery,RC301510,,Children Looked After,R5020,TPP - Nursery Provision,
06/04/2021,3747701,36603/83,1326,The Linkage Community Trust,RC502300,,Learning Disability,R5028,TPP - Residental Care,
19/04/2021,3748162,36879/78,1326,The Linkage Community Trust,RC502300,,Learning Disability,R5028,TPP - Residental Care,
06/04/2021,3747702,36571/84,2218.76,The Lodge Trust,RC501110,,Learning Disability,R5028,TPP - Residental Care,
06/04/2021,3747703,36571/85,2571.62,The Lodge Trust,RC501110,,Learning Disability,R5028,TPP - Residental Care,
19/04/2021,3748163,36809/79,2218.76,The Lodge Trust,RC501110,,Learning Disability,R5028,TPP - Residental Care,
19/04/2021,3748164,36809/80,2571.62,The Lodge Trust,RC501110,,Learning Disability,R5028,TPP - Residental Care,
19/04/2021,60053024,2622,2962.18,The Melton Learning Hub,RC507309,,SEN Transport,R3200,Hire of Vehicles & Plant,
13/04/2021,3747739,April 2021 dripfeed - Placement Funding,6250,The Parks Nursery School,RC501123,,SEN (DSG),R6300,Schools - Budget Share,
13/04/2021,3747740,April 2021 dripfeed - High Needs Additional Support,6180.94,The Parks Nursery School,RC501123,,SEN (DSG),R6300,Schools - Budget Share,
13/04/2021,3747755,April 2021 dripfeed - Forces Pupil Premium,77.5,The Parks Nursery School,RC501123,,Pupil Premium,R6300,Schools - Budget Share,
13/04/2021,3747758,April 2021 - Devolved Formula Capital,1067,The Parks Nursery School,RC501123,,Capital Programme People - Adults,C1150,Capital Grant Expenditure,
01/04/2021,60052950,INV-0975,27326,The Place,RC301153,,SEN (DSG),R5017,TPP - Other,
13/04/2021,3747726,Upp Primary April 2021 - High Needs Block Allocation,2321.21,The Rutland Learning Trust,RC300895,,SEN (DSG),R6300,Schools - Budget Share,
13/04/2021,3747742,Gt Cast April 2021 dripfeed - High Needs Block Allocation,767,The Rutland Learning Trust,RC300895,,SEN (DSG),R6300,Schools - Budget Share,
13/04/2021,3747746,Whiss April 2021 - High Needs Block Allocation,1768.95,The Rutland Learning Trust,RC300895,,SEN (DSG),R6300,Schools - Budget Share,
13/04/2021,3747747,Cottesmore April 2021 dripfeed - High Needs Block Allocation,2226.2,The Rutland Learning Trust,RC300895,,SEN (DSG),R6300,Schools - Budget Share,
13/04/2021,3747750,Langham April 2021 - High Needs Block Allocation,851.61,The Rutland Learning Trust,RC300895,,SEN (DSG),R6300,Schools - Budget Share,
13/04/2021,3747751,St Nicholas April 2021 - High Needs Block Allocation,1975.75,The Rutland Learning Trust,RC300895,,SEN (DSG),R6300,Schools - Budget Share,
13/04/2021,3747756,Ketton April 2021 - High Needs Block allocation,1032.05,The Rutland Learning Trust,RC300895,,SEN (DSG),R6300,Schools - Budget Share,
13/04/2021,3747757,Exton April 2021 - High Needs Block Allocation,648.55,The Rutland Learning Trust,RC300895,,SEN (DSG),R6300,Schools - Budget Share,
16/04/2021,60053093,42863,1557.21,The Whipper-In Hotel,RC501163,927349098,Homelessness,R4900,Accomodation Costs,
16/04/2021,60053094,42865,1309.52,The Whipper-In Hotel,RC501163,927349098,Homelessness,R4900,Accomodation Costs,
16/04/2021,60053095,42864,1309.52,The Whipper-In Hotel,RC501163,927349098,Homelessness,R4900,Accomodation Costs,
08/04/2021,60053096,42827,671.42,The Whipper-In Hotel,RC501163,927349098,Homelessness,R4900,Accomodation Costs,
09/04/2021,3747586,Redacted Personal Data,120,Redacted Personal Data,RC507391,,Placements,R5017,TPP - Other,
16/04/2021,3747810,Redacted Personal Data,120,Redacted Personal Data,RC507391,,Placements,R5017,TPP - Other,
22/04/2021,3748052,Redacted Personal Data,120,Redacted Personal Data,RC507391,,Placements,R5017,TPP - Other,
29/04/2021,3748264,Redacted Personal Data,120,Redacted Personal Data,RC507391,,Placements,R5017,TPP - Other,
09/04/2021,60053089,148414,4820,Theraposture Limited,RC301687,713005980,Capital Programme People - Adults,C1150,Capital Grant Expenditure,
15/04/2021,60053018,16575,105,Think Digital Print Ltd,RC501172,828 5411 22,Aiming High,R4300,Printing & Photocopying,
29/04/2021,3748216,Redacted Personal Data,475,Redacted Personal Data,RC301601,,Unaccompanied Asylum Seekers - Over 18,R4900,Accomodation Costs,
01/04/2021,60052719,844153429,288,Thomson Reuters Professional,RC506803,900548743,Elections - Administration,R4701,Subscriptions,
09/04/2021,60052649,CIL PARISH PAYMENT APRIL 2021,2548.13,Tinwell Parish Meeting,RC505673,,S106 Contributions,R5017,TPP - Other,
06/04/2021,3747708,36578/90,1112,Tixover House Care Home,RC502297,,Physical Disability,R5034,TPP - Nursing Care,
06/04/2021,3747709,36578/91,1022,Tixover House Care Home,RC502297,,Older People,R5028,TPP - Residental Care,
06/04/2021,3747710,36578/92,1022,Tixover House Care Home,RC502297,,Older People,R5028,TPP - Residental Care,
06/04/2021,3747711,36578/93,1022,Tixover House Care Home,RC502297,,Older People,R5028,TPP - Residental Care,
19/04/2021,3748169,36812/85,1112,Tixover House Care Home,RC502297,,Physical Disability,R5034,TPP - Nursing Care,
19/04/2021,3748170,36812/86,1022,Tixover House Care Home,RC502297,,Older People,R5028,TPP - Residental Care,
19/04/2021,3748171,36812/87,1022,Tixover House Care Home,RC502297,,Older People,R5028,TPP - Residental Care,
19/04/2021,3748172,36812/88,1022,Tixover House Care Home,RC502297,,Older People,R5028,TPP - Residental Care,
01/04/2021,60052412,CW001RCC,4171.42,TLC Youth Care Ltd,RC301746,,Placements,R5017,TPP - Other,
06/04/2021,3747712,36567/94,571.04,TML Care Solutions Ltd,RC300982,,ASC S&R Homecare MH,R5029,TPP - Home Care,
19/04/2021,3748173,36885/89,571.02,TML Care Solutions Ltd,RC300982,,ASC S&R Homecare MH,R5029,TPP - Home Care,
01/04/2021,60052385,March/April 2021 - Extra Sessions,47.5,Toddle Talk With Sarah,RC300426,,Children's Centres - Revenue,R4401,Fees and Charges,
29/04/2021,3748207,Redacted Personal Data,50,Redacted Personal Data,RC508609,,Care Leavers,R6292,Section 24 Payments,
29/04/2021,3748208,Redacted Personal Data,25,Redacted Personal Data,RC508609,,Care Leavers,R6292,Section 24 Payments,
13/04/2021,60052931,RUT/1116,720,Top Class Tutors,RC501191,910 1781 56,Education Otherwise,R4400,Professional Fees,
13/04/2021,60052932,RUT/1117,400,Top Class Tutors,RC501191,910 1781 56,Education Otherwise,R4400,Professional Fees,
13/04/2021,60052933,RUT/1118,160,Top Class Tutors,RC501191,910 1781 56,Education Otherwise,R4400,Professional Fees,
13/04/2021,60052934,RUT/1119,480,Top Class Tutors,RC501191,910 1781 56,Education Otherwise,R4400,Professional Fees,
13/04/2021,60052935,RUT/1120,520,Top Class Tutors,RC501191,910 1781 56,Education Otherwise,R4400,Professional Fees,
13/04/2021,60052936,RUT/1121,1720,Top Class Tutors,RC501191,910 1781 56,Education Otherwise,R4400,Professional Fees,
13/04/2021,60052937,RUT/1122,1240,Top Class Tutors,RC501191,910 1781 56,Education Otherwise,R4400,Professional Fees,
13/04/2021,60052938,RUT/1123,880,Top Class Tutors,RC501191,910 1781 56,Education Otherwise,R4400,Professional Fees,
13/04/2021,60052939,RUT/1124,720,Top Class Tutors,RC501191,910 1781 56,Education Otherwise,R4400,Professional Fees,
13/04/2021,60052940,RUT/1125,600,Top Class Tutors,RC501191,910 1781 56,Education Otherwise,R4400,Professional Fees,
13/04/2021,60052941,RUT/1127,400,Top Class Tutors,RC501191,910 1781 56,Education Otherwise,R4400,Professional Fees,
13/04/2021,60052942,RUT/1128,300,Top Class Tutors,RC501191,910 1781 56,Education Otherwise,R4400,Professional Fees,
13/04/2021,60053025,RUT/1126,1080,Top Class Tutors,RC501191,910 1781 56,Education Otherwise,R4400,Professional Fees,
01/04/2021,60052658,16830,4742,Topps Express Limited,RC501196,996 3909 51,Home to School Transport,R3200,Hire of Vehicles & Plant,
01/04/2021,60052812,26479,9823.15,Total Community Care Ltd,RC502302,,ASC S&R Homecare PD,R5029,TPP - Home Care,
01/04/2021,60052813,26493,10700.67,Total Community Care Ltd,RC502302,,ASC S&R Homecare PD,R5029,TPP - Home Care,
11/04/2021,60052741,3004597948 - 234975053/21,792.4,TotalEnergies,RC507575,689638949,Ashwell Road Business Units,R2100,Electricity,
11/04/2021,60052742,3004597959 - 234975064/21,312.76,TotalEnergies,RC507575,689638949,Admin Buildings,R2100,Electricity,
11/04/2021,60052743,3004597960 - 234975075/21,99.83,TotalEnergies,RC507575,689638949,Oakham Bus Station,R2100,Electricity,
11/04/2021,60052744,3004597970 - 234975086/21,143.44,TotalEnergies,RC507575,689638949,Early Intervention Youth Services,R2100,Electricity,
11/04/2021,60052745,3004600049 - 234975097/21,418.13,TotalEnergies,RC507575,689638949,Museums Service,R2100,Electricity,
11/04/2021,60052746,3004600050 - 234975108/21,45.72,TotalEnergies,RC507575,689638949,Libraries,R2100,Electricity,
11/04/2021,60052747,3004600060 - 234975119/21,48.08,TotalEnergies,RC507575,689638949,Museums Service,R2100,Electricity,
12/04/2021,60052748,3004600071 - 235187848/21,125.22,TotalEnergies,RC507575,689638949,Museums Service,R2100,Electricity,
11/04/2021,60052749,3004600082 - 234975120/21,366.94,TotalEnergies,RC507575,689638949,Libraries,R2100,Electricity,
11/04/2021,60052750,3004600093 - 234975130/21,244.26,TotalEnergies,RC507575,689638949,Admin Buildings,R2100,Electricity,
11/04/2021,60052751,3004600104 - 234975141/21,183.96,TotalEnergies,RC507575,689638949,Cemeteries,R2100,Electricity,
11/04/2021,60052752,3004600115 - 234975152/21,95.99,TotalEnergies,RC507575,689638949,Oakham Castle,R2100,Electricity,
11/04/2021,60052753,3004600126 - 234975163/21,435.27,TotalEnergies,RC507575,689638949,Libraries,R2100,Electricity,
11/04/2021,60052754,3004600148 - 234975174/21,87.12,TotalEnergies,RC507575,689638949,Public Conveniences,R2100,Electricity,
11/04/2021,60052755,3004665994 - 234975185/21,2986.07,TotalEnergies,RC507575,689638949,Admin Buildings,R2100,Electricity,
11/04/2021,60052756,3005097238 - 234975196/21,515.02,TotalEnergies,RC507575,689638949,Libraries,R2100,Electricity,
11/04/2021,60052757,3005142481 - 234975207/21,1516.57,TotalEnergies,RC507575,689638949,The King Centre,R2100,Electricity,
01/04/2021,60052634,2200273,161.7,Trainline,RC300991,791726106,Children Looked After,R3300,Public Transport,
01/04/2021,60052538,TCP/8168,1125,Transition Care Peterborough Ltd,RC301506,162029630,Placements,R4900,Accomodation Costs,
01/04/2021,60052539,TCP/8179,1500,Transition Care Peterborough Ltd,RC301506,162029630,Placements,R4900,Accomodation Costs,
01/04/2021,60052553,TCP/8169,33.38,Transition Care Peterborough Ltd,RC301506,162029630,Placements,R6292,Section 24 Payments,
01/04/2021,60052554,TCP/8180,44.51,Transition Care Peterborough Ltd,RC301506,162029630,Placements,R6292,Section 24 Payments,
05/04/2021,60052709,TCP/8188,2625,Transition Care Peterborough Ltd,RC301506,162029630,Placements,R4900,Accomodation Costs,
05/04/2021,60052731,TCP/8189,77.9,Transition Care Peterborough Ltd,RC301506,162029630,Placements,R6292,Section 24 Payments,
12/04/2021,60053050,TCP/8197,2625,Transition Care Peterborough Ltd,RC301506,162029630,Placements,R4900,Accomodation Costs,
12/04/2021,60053054,TCP/8198,77.9,Transition Care Peterborough Ltd,RC301506,162029630,Placements,R6292,Section 24 Payments,
19/04/2021,60053183,TCP/8207,2625,Transition Care Peterborough Ltd,RC301506,162029630,Placements,R4900,Accomodation Costs,
19/04/2021,60053190,TCP/8208,77.9,Transition Care Peterborough Ltd,RC301506,162029630,Placements,R6292,Section 24 Payments,
01/04/2021,60052659,INV-3788,150.27,TransportConnect Ltd,RC300161,246278388,Concessionary Travel,R6270,Concessionary fares,
15/04/2021,60053006,93341,1597,Tranter Fire & Security Systems Ltd,RC501207,566 1983 05,Central Maintenance,R2003,R & M - Emergency Works,
02/04/2021,60052639,1302,40,Travail Education,RC301380,112 8866 10,Education Otherwise,R4400,Professional Fees,
02/04/2021,60052640,1303,260,Travail Education,RC301380,112 8866 10,Education Otherwise,R4400,Professional Fees,
02/04/2021,60052645,1304,160,Travail Education,RC301380,112 8866 10,Education Otherwise,R4400,Professional Fees,
02/04/2021,60052647,1305,40,Travail Education,RC301380,112 8866 10,Education Otherwise,R4400,Professional Fees,
01/04/2021,60052799,1275,200,Travail Education,RC301380,112 8866 10,Education Otherwise,R4400,Professional Fees,
01/04/2021,60052800,1276,80,Travail Education,RC301380,112 8866 10,Education Otherwise,R4400,Professional Fees,
01/04/2021,60052801,1277,80,Travail Education,RC301380,112 8866 10,SEN (DSG),R4400,Professional Fees,
01/04/2021,60052802,1278,80,Travail Education,RC301380,112 8866 10,Education Otherwise,R4400,Professional Fees,
01/04/2021,60052803,1279,160,Travail Education,RC301380,112 8866 10,Education Otherwise,R4400,Professional Fees,
01/04/2021,60052804,1280,40,Travail Education,RC301380,112 8866 10,Education Otherwise,R4400,Professional Fees,
01/04/2021,60052805,1281,260,Travail Education,RC301380,112 8866 10,Education Otherwise,R4400,Professional Fees,
01/04/2021,60052806,1282,80,Travail Education,RC301380,112 8866 10,Education Otherwise,R4400,Professional Fees,
01/04/2021,60052807,1283,120,Travail Education,RC301380,112 8866 10,Education Otherwise,R4400,Professional Fees,
01/04/2021,60052808,1284,120,Travail Education,RC301380,112 8866 10,Education Otherwise,R4400,Professional Fees,
06/04/2021,60052514,1158,264,Trees Home Help,RC300822,,ASC S&R Homecare OP,R5029,TPP - Home Care,
28/04/2021,60053197,1163,423.2,Trees Home Help,RC300822,,ASC S&R Homecare OP,R5029,TPP - Home Care,
29/04/2021,3748194,Redacted Personal Data,422,Truelove Property Lettings Ltd,RC301520,,Care Leavers,R4900,Accomodation Costs,
18/04/2021,60053015,INV-1072,330,Truetech Integrated Ltd,RC300629,211796217,Capital Programme Places - Property,R2004,R & M - Programmed,
01/04/2021,60052632,1508,178.08,Twofold Ltd,RC300573,GB 757 2771 00,Elections - Administration,R4000,Furniture & Equipment,
01/04/2021,60052181,THL20150194,500,Tym Huckin Ltd,RC301727,GB 226418809,Street Lighting,R4400,Professional Fees,
13/04/2021,3747752,April 2021 - High Needs Block allocation,7792.67,Uppingham Community College,RC501260,111 5329 57,SEN (DSG),R6300,Schools - Budget Share,
09/04/2021,60052650,CIL PARISH PAYMENT APRIL 2021,40654.46,Uppingham Town Council,RC501265,,S106 Contributions,R5017,TPP - Other,
01/04/2021,60052503,P105427,28.55,URM (UK) Ltd T/A Berryman,RC500097,758 5353 94,Waste Management,R5023,TPP - Glass Recycling,
01/04/2021,60052502,UKSI12629,84.1,Valtech Limited,RC300951,628 6560 16,Blue Badge Scheme,R4401,Fees and Charges,
06/04/2021,60052581,A22811,722.4,Velvet Glove Care,RC506799,,ASC S&R Homecare OP,R5029,TPP - Home Care,
13/04/2021,60052864,A22862,722.4,Velvet Glove Care,RC506799,,ASC S&R Homecare OP,R5029,TPP - Home Care,
20/04/2021,60053028,A22917,722.4,Velvet Glove Care,RC506799,,ASC S&R Homecare OP,R5029,TPP - Home Care,
27/04/2021,60053200,A22971,722.4,Velvet Glove Care,RC506799,,ASC S&R Homecare OP,R5029,TPP - Home Care,
27/04/2021,60053219,RCC00012,6153.3,Velvet Glove Care,RC506799,,ASC S&R Homecare OP,R5029,TPP - Home Care,
01/04/2021,60052718,8361147799,307.25,Veolia Environmental Services (UK) Plc,RC301229,530 008893,The King Centre,R5002,TPP - Waste Collection,
01/04/2021,60052478,00000086539AA,10154.37,Viridor Waste Management Ltd,RC500473,736 6365 11,Waste Management,R5021,TPP - Waste Disposal,
01/04/2021,60052548,00003460024AB,126.31,Viridor Waste Management Ltd,RC500473,736 6365 11,Ashwell Road Business Units,R5002,TPP - Waste Collection,
01/04/2021,60052577,UK10/042021/6384,5448.05,Vodafone Limited (Corporate),RC501297,569 9532 77,Mobile Phones,R4507,Mobile Telephones,
02/04/2021,60052618,13507,1600,Voluntary Action Rutland,RC502550,,Community Vehicle,R5001,TPP - Grants,
01/04/2021,60052814,13535,1780,Voluntary Action Rutland,RC502550,,Concessionary Travel,R6270,Concessionary fares,
06/04/2021,3747713,36601/95,4066.36,Voyage Care Ltd,RC502282,787 4551 80,Learning Disability,R5028,TPP - Residental Care,
19/04/2021,3748174,36877/90,4066.36,Voyage Care Ltd,RC502282,787 4551 80,Learning Disability,R5028,TPP - Residental Care,
01/04/2021,60052653,307388,14.35,W F Howes Ltd,RC506029,729 3836 02,Libraries,R4309,Books,
21/04/2021,60053086,20210421,90,Waltersphoto,RC301521,,Civic Expenses,R4603,Public/Civic Functions,
19/04/2021,60053118,OUT-1463,80,Waste & Resource Management Limited,RC509357,178468749,Waste Management,R5002,TPP - Waste Collection,
03/04/2021,60052578,0235009364 - INV04752883,1810.04,Water Plus,RC500879,486 9855 65,Oakham Enterprise Park,R2401,Water Services,
03/04/2021,60052680,0831022432 - INV04750751,57.94,Water Plus,RC500879,486 9855 65,Early Intervention Youth Services,R2401,Water Services,
03/04/2021,60052681,0831022463 - INV04751093,70.47,Water Plus,RC500879,486 9855 65,Oakham Castle,R2401,Water Services,
01/04/2021,60052695,0831022428 - INV04736359,123.38,Water Plus,RC500879,486 9855 65,Libraries,R2401,Water Services,
25/04/2021,60053257,7000877422 - INV04828478,32.74,Water Plus,RC500879,486 9855 65,Admin Buildings,R2401,Water Services,
10/04/2021,60052727,6174067,54.5,Waterlogic GB Limited,RC300217,828 382 407,Admin Buildings,R4000,Furniture & Equipment,
01/04/2021,60052255,2021/425,1435.5,Watson Batty Architects Ltd,RC301642,607282448,Catmose Leisure Contract Procurement,R4400,Professional Fees,
01/04/2021,60052522,2005271,1823,Weightmans LLP,RC502198,974 8257 69,Legal Services,R4400,Professional Fees,
01/04/2021,60052540,2005470,112,Weightmans LLP,RC502198,974 8257 69,Legal Services,R1401,Professional Fees,
01/04/2021,60052567,2005479,1265,Weightmans LLP,RC502198,974 8257 69,Legal Services,R4400,Professional Fees,
01/04/2021,60052569,2005681,448,Weightmans LLP,RC502198,974 8257 69,Legal Services,R4400,Professional Fees,
01/04/2021,60052604,2005742,3887,Weightmans LLP,RC502198,974 8257 69,Legal Services,R1401,Professional Fees,
01/04/2021,60052619,2005694,840,Weightmans LLP,RC502198,974 8257 69,Legal Services,R4400,Professional Fees,
09/04/2021,3747596,Redacted Personal Data,289.74,Redacted Personal Data,RC301477,,Placements,R5017,TPP - Other,
16/04/2021,3747820,Redacted Personal Data,289.74,Redacted Personal Data,RC301477,,Placements,R5017,TPP - Other,
22/04/2021,3748062,Redacted Personal Data,289.74,Redacted Personal Data,RC301477,,Placements,R5017,TPP - Other,
29/04/2021,3748274,Redacted Personal Data,289.74,Redacted Personal Data,RC301477,,Placements,R5017,TPP - Other,
01/04/2021,60052951,W3049,579.15,Westcotes House Ltd,RC505233,987 7451 53,Homelessness,R4900,Accomodation Costs,
01/04/2021,60052952,W3053,1801.8,Westcotes House Ltd,RC505233,987 7451 53,Homelessness,R4900,Accomodation Costs,
01/04/2021,60053020,W3059,643.5,Westcotes House Ltd,RC505233,987 7451 53,Homelessness,R4900,Accomodation Costs,
06/04/2021,60052542,Subsidy Invoice March 2021,33.5,Whissendine Good Neighbour Scheme,RC508799,,Concessionary Travel,R6270,Concessionary fares,
09/04/2021,60052651,CIL PARISH PAYMENT APRIL 2021,984.3,Whissendine Parish Council,RC502215,,S106 Contributions,R5017,TPP - Other,
19/04/2021,60052985,CIL Compensatory Payment,7133.35,Whissendine Parish Council,RC502215,,Planning Policy,R4961,Compensation Payments,
16/04/2021,3747999,3 and 4 Year Funding - April 2021 Claim and March 2021 Adjustment,2943.55,Whissendine Pre-School,RC502217,,3 & 4 Year Old Nursery Funding,R5020,TPP - Nursery Provision,
06/04/2021,3747716,36604/98,1148,Whitefriars,RC502306,,Older People,R5028,TPP - Residental Care,
19/04/2021,3748177,36880/93,1148,Whitefriars,RC502306,,Older People,R5028,TPP - Residental Care,
01/04/2021,60052918,1764,23333.33,Wilds Lodge School,RC502223,,SEN (DSG),R5017,TPP - Other,
01/04/2021,60052919,1765,17500,Wilds Lodge School,RC502223,,SEN (DSG),R5017,TPP - Other,
01/04/2021,60052920,1766,17500,Wilds Lodge School,RC502223,,SEN (DSG),R5017,TPP - Other,
01/04/2021,60052921,1767,18333.33,Wilds Lodge School,RC502223,,SEN (DSG),R5017,TPP - Other,
01/04/2021,60052922,1768,18333.33,Wilds Lodge School,RC502223,,SEN (DSG),R5017,TPP - Other,
01/04/2021,60052923,1769,23333.33,Wilds Lodge School,RC502223,,SEN (DSG),R5017,TPP - Other,
21/04/2021,60053127,2386738,442,Wilkin Chapman LLP,RC508417,127 9424 35,Revenues,R4400,Professional Fees,
09/04/2021,3747617,Redacted Personal Data,33.9,Redacted Personal Data,RC300790,,Care Leavers,R6292,Section 24 Payments,
16/04/2021,3747828,Redacted Personal Data,33.9,Redacted Personal Data,RC300790,,Care Leavers,R6292,Section 24 Payments,
22/04/2021,3748075,Redacted Personal Data,33.9,Redacted Personal Data,RC300790,,Care Leavers,R6292,Section 24 Payments,
22/04/2021,3748076,Redacted Personal Data,347.09,Redacted Personal Data,RC300790,,Care Leavers,R6292,Section 24 Payments,
29/04/2021,3748209,Redacted Personal Data,33.9,Redacted Personal Data,RC300790,,Care Leavers,R6292,Section 24 Payments,
29/04/2021,3748210,Redacted Personal Data,37.5,Redacted Personal Data,RC300790,,Care Leavers,R6292,Section 24 Payments,
29/04/2021,3748211,Redacted Personal Data,25,Redacted Personal Data,RC300790,,Care Leavers,R6292,Section 24 Payments,
29/04/2021,3748212,Redacted Personal Data,20,Redacted Personal Data,RC508805,,Care Leavers,R6292,Section 24 Payments,
29/04/2021,3748213,Redacted Personal Data,25,Redacted Personal Data,RC508805,,Care Leavers,R6292,Section 24 Payments,
29/04/2021,3748214,Redacted Personal Data,1349.2,Redacted Personal Data,RC508805,,Care Leavers,R6292,Section 24 Payments,
01/04/2021,60052472,1097,317.25,Wish Care Limited,RC301323,330 4404 50,Disabled Children,R5015,TPP - Other Establishments,
06/04/2021,3747722,36572/104,1022,Wisteria House,RC502309,,Older People,R5028,TPP - Residental Care,
19/04/2021,3748183,36810/99,1022,Wisteria House,RC502309,,Older People,R5028,TPP - Residental Care,
13/04/2021,60052722,WORKFORCE CAPACITY FUNDING APRIL 21,1157.7,Wisteria House,RC502309,,Covid_19 - Social Care,R5017,TPP - Other,
13/04/2021,60052927,15683,180,Word Language Services Limited,RC300901,243 5458 05,Children Looked After,R4400,Professional Fees,
26/04/2021,60053215,15709,48,Word Language Services Limited,RC300901,243 5458 05,UASC 16-17,R4400,Professional Fees,
26/04/2021,60053216,15710,268.3,Word Language Services Limited,RC300901,243 5458 05,UASC 16-17,R4400,Professional Fees,
26/04/2021,60053265,15711,503.4,Word Language Services Limited,RC300901,243 5458 05,UASC 16-17,R4400,Professional Fees,
01/04/2021,60052283,29682,199.3,Wybone Ltd,RC502244,182 0886 50,Street Cleaning,R4000,Furniture & Equipment,
16/04/2021,3748001,Redacted Personal Data,280.5,Redacted Personal Data,RC301464,,3 & 4 Year Old Nursery Funding,R5020,TPP - Nursery Provision,
01/04/2021,60053011,200162865,75,Zoolab,RC300807,150 4867 12,Children's Centres - Revenue,R4401,Fees and Charges,
01/04/2021,60052491,407000053,10000,Zurich Municipal,RC502261,107 8316 77,Corporate Insurance,R4400,Professional Fees,
06/04/2021,60053046,I4780,49.95,Zurich Municipal,RC502261,107 8316 77,Corporate Insurance,R4962,Insurance Claim Expenditure,
12/04/2021,3747854,36730/21,0,,RC111111,,ASC S&R DPs OP,R6280,Direct Payments,
19/04/2021,5347444,,4.5,Lloyds,,,Corporate Financial Expenses,R4403,Bank Charges,
01/04/2021,5347445,,42000,Salix,,,Capital Programme Places - Highways,C1010,Capital Fees & Charges,
16/04/2021,5347445,,50,HM Court,,,Revenues,R4400,Professional Fees,
20/04/2021,5347445,,6,Land Registry,,,Planning Policy,R4401,Fees and Charges,
20/04/2021,5347445,,24,Land Registry,,,Property Services,R4401,Fees and Charges,
20/04/2021,5347445,,6,Land Registry,,,Revenues,R4401,Fees and Charges,
13/04/2021,5347445,,6,Land Registry,,,Highways Management,R4401,Fees and Charges,
13/04/2021,5347445,,3,Land Registry,,,Revenues,R4401,Fees and Charges,
13/04/2021,5347445,,3,Land Registry,,,Development Control,R4401,Fees and Charges,
27/04/2021,5347445,,42,Land Registry,,,Highways Management,R4401,Fees and Charges,
27/04/2021,5347445,,6,Land Registry,,,Public Rights of Way,R4401,Fees and Charges,
27/04/2021,5347445,,3,Land Registry,,,Legal Services,R4401,Fees and Charges,
27/04/2021,5347445,,3,Land Registry,,,Development Control,R4401,Fees and Charges,
14/04/2021,5347445,,33.69,Allpay,,,AllPay,R4401,Fees and Charges,
14/04/2021,5347445,,12.26,Allpay,,,Corporate Financial Expenses,R4401,Fees and Charges,
14/04/2021,5347445,,237.81,Allpay,,,AllPay,R4401,Fees and Charges,
14/04/2021,5347445,,441.9,Allpay,,,Corporate Financial Expenses,R4401,Fees and Charges,
19/04/2021,5347445,,411.69,Lloyds,,,Corporate Financial Expenses,R4403,Bank Charges,
19/04/2021,5347445,,179.77,AIB,,,Parking,R4403,Bank Charges,
15/04/2021,5347445,,124.06,Lloyds,,,Corporate Financial Expenses,R4403,Bank Charges,
15/04/2021,5347445,,47.92,Lloyds,,,Corporate Financial Expenses,R4403,Bank Charges,
20/04/2021,5347445,,24,Lloyds,,,Corporate Financial Expenses,R4403,Bank Charges,
30/04/2021,5347445,,2938.2,GoCardless,,,Green Waste Collections,R4403,Bank Charges,
01/04/2021,5347445,,9.93,Lloyds,,,Corporate Financial Expenses,R4403,Bank Charges,
28/04/2021,5347445,,-139.27,Lloyds,,,Corporate Financial Expenses,R9308,Fees - Other,
19/04/2021,5347446,,2.1,Lloyds,,,Corporate Financial Expenses,R4403,Bank Charges,
30/04/2021,5347482,,1519.54,Gov Pay,,,Corporate Financial Expenses,R4403,Bank Charges,
30/04/2021,5347483,,2467.68,Braintree,,,Corporate Financial Expenses,R4403,Bank Charges,
07/05/2021,3748285,Redacted Personal Data,317.7,Redacted Personal Data,RC502648,,Placements,R5017,TPP - Other,
07/05/2021,3748286,Redacted Personal Data,130,Redacted Personal Data,RC502648,,Placements,R5017,TPP - Other,
07/05/2021,3748287,Redacted Personal Data,21.6,Redacted Personal Data,RC301349,,Children Looked After,R3300,Public Transport,
07/05/2021,3748288,Redacted Personal Data,21.6,Redacted Personal Data,RC301349,,Children Looked After,R3300,Public Transport,
07/05/2021,3748289,Redacted Personal Data,21.6,Redacted Personal Data,RC301349,,Children Looked After,R3300,Public Transport,
07/05/2021,3748290,Redacted Personal Data,445,Leicester Lettings Ltd,RC506055,108245630,Care Leavers,R4900,Accomodation Costs,
07/05/2021,3748291,Redacted Personal Data,106.85,Redacted Personal Data,RC502418,,Care Leavers,R4900,Accomodation Costs,
07/05/2021,3748292,Redacted Personal Data,396,Redacted Personal Data,RC502418,,Care Leavers,R4900,Accomodation Costs,
07/05/2021,3748293,Redacted Personal Data,100,Redacted Personal Data,RC301144,,Care Leavers,R4900,Accomodation Costs,
07/05/2021,3748294,Redacted Personal Data,103.65,Redacted Personal Data,RC301144,,Care Leavers,R4900,Accomodation Costs,
07/05/2021,3748295,Redacted Personal Data,850,Dexters London Ltd,RC300942,,Care Leavers,R4900,Accomodation Costs,
07/05/2021,3748296,Redacted Personal Data,40,Redacted Personal Data,RC301278,,Care Leavers,R6292,Section 24 Payments,
07/05/2021,3748297,Redacted Personal Data,77.9,Redacted Personal Data,RC301278,,Care Leavers,R6292,Section 24 Payments,
07/05/2021,3748298,Redacted Personal Data,14.5,Redacted Personal Data,RC301583,,Care Leavers,R6292,Section 24 Payments,
07/05/2021,3748299,Redacted Personal Data,77.9,Redacted Personal Data,RC301583,,Care Leavers,R6292,Section 24 Payments,
07/05/2021,3748300,Redacted Personal Data,77.9,Redacted Personal Data,RC301590,,Care Leavers,R6292,Section 24 Payments,
07/05/2021,3748301,Redacted Personal Data,77.9,Redacted Personal Data,RC300764,,Care Leavers,R6292,Section 24 Payments,
07/05/2021,3748302,Redacted Personal Data,77.9,Redacted Personal Data,RC301765,,Care Leavers,R6292,Section 24 Payments,
07/05/2021,3748303,Redacted Personal Data,64,Redacted Personal Data,RC508568,,Care Leavers,R6292,Section 24 Payments,
07/05/2021,3748304,Redacted Personal Data,33.9,Redacted Personal Data,RC300790,,Care Leavers,R6292,Section 24 Payments,
07/05/2021,3748305,Redacted Personal Data,11.99,Redacted Personal Data,RC300975,,Unaccompanied Asylum Seekers - Over 18,R6292,Section 24 Payments,
07/05/2021,3748306,Redacted Personal Data,15,Redacted Personal Data,RC508869,,Placements,R6291,Section 23 Payments,
07/05/2021,3748307,Redacted Personal Data,15,Redacted Personal Data,RC502648,,Placements,R6291,Section 23 Payments,
07/05/2021,3748308,Redacted Personal Data,15,Redacted Personal Data,RC500229,,Placements,R6291,Section 23 Payments,
07/05/2021,3748309,Redacted Personal Data,15,Redacted Personal Data,RC506075,,Placements,R6291,Section 23 Payments,
07/05/2021,3748310,Redacted Personal Data,15,Redacted Personal Data,RC502500,,Placements,R6291,Section 23 Payments,
07/05/2021,3748311,Redacted Personal Data,15,Redacted Personal Data,RC506286,,Placements,R6291,Section 23 Payments,
07/05/2021,3748312,Redacted Personal Data,206,Redacted Personal Data,RC508869,,Placements,R5017,TPP - Other,
07/05/2021,3748313,Redacted Personal Data,249,Redacted Personal Data,RC500229,,Placements,R5017,TPP - Other,
07/05/2021,3748314,Redacted Personal Data,165,Redacted Personal Data,RC506075,,Placements,R5017,TPP - Other,
07/05/2021,3748315,Redacted Personal Data,206,Redacted Personal Data,RC506286,,Placements,R5017,TPP - Other,
07/05/2021,3748316,Redacted Personal Data,249,Redacted Personal Data,RC300929,,Placements,R5017,TPP - Other,
07/05/2021,3748317,Redacted Personal Data,165,Redacted Personal Data,RC300814,,Placements,R5017,TPP - Other,
07/05/2021,3748318,Redacted Personal Data,145,Redacted Personal Data,RC502648,,Placements,R5017,TPP - Other,
07/05/2021,3748319,Redacted Personal Data,249,Redacted Personal Data,RC301349,,Placements,R5017,TPP - Other,
07/05/2021,3748320,Redacted Personal Data,533.57,Redacted Personal Data,RC301349,,Placements,R5017,TPP - Other,
07/05/2021,3748321,Redacted Personal Data,249,Redacted Personal Data,RC507010,,Placements,R5017,TPP - Other,
07/05/2021,3748322,Redacted Personal Data,165,Redacted Personal Data,RC507222,,Placements,R5017,TPP - Other,
07/05/2021,3748323,Redacted Personal Data,206,Redacted Personal Data,RC505729,,Placements,R5017,TPP - Other,
07/05/2021,3748324,Redacted Personal Data,206,Redacted Personal Data,RC505729,,Placements,R5017,TPP - Other,
07/05/2021,3748325,Redacted Personal Data,165,Redacted Personal Data,RC301040,,Placements,R5017,TPP - Other,
07/05/2021,3748326,Redacted Personal Data,165,Redacted Personal Data,RC301040,,Placements,R5017,TPP - Other,
07/05/2021,3748327,Redacted Personal Data,145,Redacted Personal Data,RC301485,,Placements,R5017,TPP - Other,
07/05/2021,3748328,Redacted Personal Data,206,Redacted Personal Data,RC301541,,Placements,R5017,TPP - Other,
07/05/2021,3748329,Redacted Personal Data,145,Redacted Personal Data,RC301689,,Placements,R5017,TPP - Other,
07/05/2021,3748330,Redacted Personal Data,329.03,Redacted Personal Data,RC301658,,Placements,R5017,TPP - Other,
07/05/2021,3748331,Redacted Personal Data,218.81,Redacted Personal Data,RC508869,,Placements,R5017,TPP - Other,
07/05/2021,3748332,Redacted Personal Data,218.81,Redacted Personal Data,RC500229,,Placements,R5017,TPP - Other,
07/05/2021,3748333,Redacted Personal Data,218.81,Redacted Personal Data,RC506075,,Placements,R5017,TPP - Other,
07/05/2021,3748334,Redacted Personal Data,218.81,Redacted Personal Data,RC502500,,Placements,R5017,TPP - Other,
07/05/2021,3748335,Redacted Personal Data,218.81,Redacted Personal Data,RC506286,,Placements,R5017,TPP - Other,
07/05/2021,3748336,Redacted Personal Data,218.81,Redacted Personal Data,RC300929,,Placements,R5017,TPP - Other,
07/05/2021,3748337,Redacted Personal Data,218.81,Redacted Personal Data,RC300814,,Placements,R5017,TPP - Other,
07/05/2021,3748338,Redacted Personal Data,218.81,Redacted Personal Data,RC502648,,Placements,R5017,TPP - Other,
07/05/2021,3748339,Redacted Personal Data,172.8,Redacted Personal Data,RC301349,,Placements,R5017,TPP - Other,
07/05/2021,3748340,Redacted Personal Data,277.72,Redacted Personal Data,RC301349,,Placements,R5017,TPP - Other,
07/05/2021,3748341,Redacted Personal Data,218.81,Redacted Personal Data,RC507010,,Placements,R5017,TPP - Other,
07/05/2021,3748342,Redacted Personal Data,218.81,Redacted Personal Data,RC507222,,Placements,R5017,TPP - Other,
07/05/2021,3748343,Redacted Personal Data,218.81,Redacted Personal Data,RC505729,,Placements,R5017,TPP - Other,
07/05/2021,3748344,Redacted Personal Data,164.11,Redacted Personal Data,RC505729,,Placements,R5017,TPP - Other,
07/05/2021,3748345,Redacted Personal Data,124.74,Redacted Personal Data,RC301040,,Placements,R5017,TPP - Other,
07/05/2021,3748346,Redacted Personal Data,93.56,Redacted Personal Data,RC301040,,Placements,R5017,TPP - Other,
07/05/2021,3748347,Redacted Personal Data,172.8,Redacted Personal Data,RC507547,,Placements,R5017,TPP - Other,
07/05/2021,3748348,Redacted Personal Data,124.74,Redacted Personal Data,RC301541,,Placements,R5017,TPP - Other,
07/05/2021,3748349,Redacted Personal Data,163,Redacted Personal Data,RC508167,,Placements,R5017,TPP - Other,
07/05/2021,3748350,Redacted Personal Data,167.4,Redacted Personal Data,RC507009,,Placements,R5017,TPP - Other,
07/05/2021,3748351,Redacted Personal Data,168.13,Redacted Personal Data,RC507009,,Placements,R5017,TPP - Other,
07/05/2021,3748352,Redacted Personal Data,222.96,Redacted Personal Data,RC507547,,Placements,R5017,TPP - Other,
07/05/2021,3748353,Redacted Personal Data,139.85,Redacted Personal Data,RC503878,,Placements,R5017,TPP - Other,
07/05/2021,3748354,Redacted Personal Data,404.59,Redacted Personal Data,RC508604,,Placements,R5017,TPP - Other,
07/05/2021,3748355,Redacted Personal Data,120,Redacted Personal Data,RC507391,,Placements,R5017,TPP - Other,
07/05/2021,3748356,Redacted Personal Data,124,Redacted Personal Data,RC300006,,Placements,R5017,TPP - Other,
07/05/2021,3748357,Redacted Personal Data,165,Redacted Personal Data,RC502500,,Placements,R5017,TPP - Other,
07/05/2021,3748358,Redacted Personal Data,249,Redacted Personal Data,RC502500,,Placements,R5017,TPP - Other,
07/05/2021,3748359,Redacted Personal Data,206,Redacted Personal Data,RC502377,,Placements,R5017,TPP - Other,
07/05/2021,3748360,Redacted Personal Data,130.77,Redacted Personal Data,RC507903,,Placements,R5017,TPP - Other,
07/05/2021,3748361,Redacted Personal Data,121.08,Redacted Personal Data,RC508044,,Placements,R5017,TPP - Other,
07/05/2021,3748362,Redacted Personal Data,295.62,Redacted Personal Data,RC300308,,Placements,R5017,TPP - Other,
07/05/2021,3748363,Redacted Personal Data,163,Redacted Personal Data,RC506313,,Placements,R5017,TPP - Other,
07/05/2021,3748364,Redacted Personal Data,163,Redacted Personal Data,RC506313,,Placements,R5017,TPP - Other,
07/05/2021,3748365,Redacted Personal Data,289.74,Redacted Personal Data,RC301477,,Placements,R5017,TPP - Other,
07/05/2021,3748366,Redacted Personal Data,330.74,Redacted Personal Data,RC301545,,Placements,R5017,TPP - Other,
07/05/2021,3748367,Redacted Personal Data,33.4,Redacted Personal Data,RC301118,,Care Leavers,R6292,Section 24 Payments,
07/05/2021,3748368,Redacted Personal Data,23.1,Redacted Personal Data,RC301277,,Care Leavers,R6292,Section 24 Payments,
07/05/2021,3748369,Redacted Personal Data,615,Ketton Playgroup,RC501972,,3 & 4 Year Old Nursery Funding,R5020,TPP - Nursery Provision,
04/05/2021,3748370,37080/1,1020,Aberdeen House Care Limited,RC506722,,Older People,R5028,TPP - Residental Care,
04/05/2021,3748371,37080/2,1022,Aberdeen House Care Limited,RC506722,,Older People,R5028,TPP - Residental Care,
04/05/2021,3748372,37080/3,956,Aberdeen House Care Limited,RC506722,,Older People,R5028,TPP - Residental Care,
04/05/2021,3748374,37080/5,956,Aberdeen House Care Limited,RC506722,,Older People,R5028,TPP - Residental Care,
04/05/2021,3748375,37080/6,1720,Aberdeen House Care Limited,RC506722,,Older People,R5028,TPP - Residental Care,
04/05/2021,3748376,37090/7,1022,Kross Investments Ltd T/A Belton House Retirement Home,RC502319,,ASC P&S Respite OP,R5018,Respite,
04/05/2021,3748377,37090/8,1022,Kross Investments Ltd T/A Belton House Retirement Home,RC502319,,Older People,R5028,TPP - Residental Care,
04/05/2021,3748378,37090/9,1022,Kross Investments Ltd T/A Belton House Retirement Home,RC502319,,Older People,R5028,TPP - Residental Care,
04/05/2021,3748379,37090/10,1022,Kross Investments Ltd T/A Belton House Retirement Home,RC502319,,Older People,R5025,Short Term Care,
04/05/2021,3748380,37090/11,956,Kross Investments Ltd T/A Belton House Retirement Home,RC502319,,Older People,R5028,TPP - Residental Care,
04/05/2021,3748381,37090/12,292,Kross Investments Ltd T/A Belton House Retirement Home,RC502319,,Older People,R5028,TPP - Residental Care,
04/05/2021,3748381,37090/12,511,Kross Investments Ltd T/A Belton House Retirement Home,RC502319,,Older People,R5028,TPP - Residental Care,
04/05/2021,3748381,37090/12,803,Kross Investments Ltd T/A Belton House Retirement Home,RC502319,,Older People,R5028,TPP - Residental Care,
04/05/2021,3748382,37097/13,1106,Braceborough Hall,RC502352,,Older People,R5028,TPP - Residental Care,
04/05/2021,3748383,37097/14,1004,Braceborough Hall,RC502352,,Older People,R5028,TPP - Residental Care,
04/05/2021,3748385,37098/16,1158,Broadoak Group Of Care Homes (Grange),RC502363,,Older People,R5028,TPP - Residental Care,
04/05/2021,3748386,37077/17,2138.64,Rutland House Community Trust (Care),RC502287,,ASC S&R Homecare LD,R5029,TPP - Home Care,
04/05/2021,3748387,37077/18,1218,Rutland House Community Trust (Care),RC502287,,ASC S&R Homecare LD,R5029,TPP - Home Care,
04/05/2021,3748388,37077/19,754,Rutland House Community Trust (Care),RC502287,,ASC S&R Homecare PD,R5029,TPP - Home Care,
04/05/2021,3748389,37081/20,1022,Chater Lodge Care Home,RC502286,,Older People,R5028,TPP - Residental Care,
04/05/2021,3748390,37081/21,1022,Chater Lodge Care Home,RC502286,,Older People,R5028,TPP - Residental Care,
04/05/2021,3748391,37099/22,1919.5,Chestnuts (Arnesby) Limited,RC506807,,Learning Disability,R5028,TPP - Residental Care,
04/05/2021,3748392,37099/23,2387.5,Chestnuts (Arnesby) Limited,RC506807,,Learning Disability,R5028,TPP - Residental Care,
04/05/2021,3748394,37119/25,-1062,Royal Masonic Benevolent Institution No 4 A/C,RC508527,,Older People,R5028,TPP - Residental Care,
04/05/2021,3748394,37119/25,-1062,Royal Masonic Benevolent Institution No 4 A/C,RC508527,,Older People,R5028,TPP - Residental Care,
04/05/2021,3748394,37119/25,-1062,Royal Masonic Benevolent Institution No 4 A/C,RC508527,,Older People,R5028,TPP - Residental Care,
04/05/2021,3748394,37119/25,-1062,Royal Masonic Benevolent Institution No 4 A/C,RC508527,,Older People,R5028,TPP - Residental Care,
04/05/2021,3748394,37119/25,-1062,Royal Masonic Benevolent Institution No 4 A/C,RC508527,,Older People,R5028,TPP - Residental Care,
04/05/2021,3748394,37119/25,-1062,Royal Masonic Benevolent Institution No 4 A/C,RC508527,,Older People,R5028,TPP - Residental Care,
04/05/2021,3748394,37119/25,1126,Royal Masonic Benevolent Institution No 4 A/C,RC508527,,Older People,R5028,TPP - Residental Care,
04/05/2021,3748394,37119/25,1126,Royal Masonic Benevolent Institution No 4 A/C,RC508527,,Older People,R5028,TPP - Residental Care,
04/05/2021,3748394,37119/25,1126,Royal Masonic Benevolent Institution No 4 A/C,RC508527,,Older People,R5028,TPP - Residental Care,
04/05/2021,3748394,37119/25,1162,Royal Masonic Benevolent Institution No 4 A/C,RC508527,,Older People,R5028,TPP - Residental Care,
